Workbook

Sheet 封面
A7: 工程竣工决算报表
A10: 工程名称：
D11: 配电网项目编号： | E11: =工作表!B21 -> 0
D12: 配电网项目名称： | E12: =工作表!C21 -> 0
A13: 编制单位：
A15: 编制日期：
B18: 单位负责人：佘国正 | E18: 财务负责人：张文恪 | H18: 报表填报人：杨恬
B20: 参加编制人员：冷建、杨恬

Sheet 概况表
A1: 配网工程竣工概况表
I2: 配竣建01表
A3: =封面!A13 -> 编制单位： | D3: =封面!A15 -> 编制日期： | I3: 单位：元
A4: 工程名称 | F4: 设计单位
A6: 建设地址 | F6: 施工单位
A7: 建设性质 | F7: 预算批准机关、日期、文号 | G7: =维护数据中批准文号合计（去重用“、”连接）
A8: 主要工程特征 | F8: 工程进度、投资
A9: 线路长度及导线型号 | B9: 线路起止地点 | C9: =工作表!H21 -> 0 | F9: 工程进度 | H9: 工期
B10: 线路长度（公里） | C10: =ERP账生成数据中线路长度（km）合计 | F10: 开工日期 | H10: =维护数据表中开工时间最早的
B11: 其中：10KV线路 | C11: =ERP账生成数据中其中：10KV线路合计 | F11: 竣工日期 | H11: =维护数据表中竣工时间最晚的
B12: 400V及以下 | C12: =ERP账生成数据中其中：400V及以下合计 | F12: 工程投资 | H12: 金额（元）
B13: 电压及回路数 | C13: =工作表!M21 -> 10kV/1回 | F13: 预算投资 | H13: =维护数据表中概算数合计的合计
A14: 杆塔 | B14: 混凝土杆（基） | C14: =工作表!N21 -> 0 | F14: 实际投资 | H14: =ERP账生成数据中实际投资合计
A15: 配变简况 | B15: 台数 | C15: =工作表!O21 -> 0 | F15: 移交生产的资产总值（元） | H15: =实际投资
B16: 总容量（千伏安） | C16: =工作表!P21 -> 0 | F16: 资金来源 | H16: 金额（元）
A17: 工程质量鉴定 | B17: 优良并达标投产 | F17: 1、企业自有 | H17: =实际投资
F18: 2、银行贷款
F19: 3、其它
A21: 预算书有多个项目，数据都是这几个项目的合计

Sheet 一览表
F1: 竣 工 工 程 决 算 一 览 表
O2: 配竣建02表
A3: =封面!A13 -> 编制单位： | G3: =封面!A15 -> 编制日期： | O3: 单位：元
A4: 栏 | B4: 项目定义编码 | C4: 工程项目 | D4: 预 算 价 值 | I4: 实 际 价 值 | N4: 实际较预算增减
A5: 行 次 | D5: 建筑工程 | E5: 安装工程 | F5: 设备价值 | G5: 其他费用 | H5: 合计 | I5: 建筑工程 | J5: 安装工程 | K5: 设备价值 | L5: 其他费用 | M5: 合计 | N5: 增减额(元) | O5: 增减率(%)
A6: 次 | C6: 1 | D6: 2 | E6: 4 | F6: 5 | G6: 6 | H6: 7=2+4+5+6 | I6: 8 | J6: 9 | K6: 10 | L6: 11 | M6: 12=8+9+10+11 | N6: 13＝12-7 | O6: 14＝13/7
A7: 1 | B7: =[1]ERP账生成数据!$B$4 -> 0 | C7: =[1]ERP账生成数据!$A$4 -> 0
A8: 2 | B8: =ERP账生成数据中项目定义（去重列示） | C8: =ERP账生成数据中项目名称（匹配项目定义） | D8: =维护数据中建筑费（匹配项目定义） | E8: =维护数据中安装费+主材费（匹配项目定义） | F8: =维护数据中设备购置费（匹配项目定义） | G8: =维护数据中其他费用小计（匹配项目定义） | H8: =预算价值中（建筑工程+安装工程+设备价值+其他费用） | I8: =ERP账生成数据中建筑费（匹配项目定义） | J8: =ERP账生成数据中安装费+材料费入账金额（不含税价）（匹配项目定义） | K8: =ERP账生成数据中设备费入账金额（不含税价）（匹配项目定义） | L8: =ERP账生成数据中其他费用合计入账金额（不含税价）（匹配项目定义） | M8: =实际价值中（建筑工程+安装工程+设备价值+其他费用） | N8: 13＝12-7 | O8: round（13/7,2）
A9: 3
A10: 4
A11: 5
A12: 6
A13: 7
A14: 8
A15: 9
A16: 10
A17: 11
A18: 12
A19: 13
A20: 14
A21: 15
A22: 16
A23: 17
A24: 18
C65: 合 计 | D65: =SUM(D7:D64) -> 0 | E65: 0 | F65: 0 | G65: 0 | H65: 0 | I65: 0 | J65: 0 | K65: 0 | L65: 0 | M65: =SUM(I65:L65) -> 0 | N65: =M65-H65 -> 0 | O65: =N65/H65 -> 
I66: =I65/10000 -> 0 | J66: =J65/10000 -> 0 | K66: =K65/10000 -> 0 | L66: 0 | M66: =L66+K66+J66+I66 -> 0 | N66: =N65/10000 -> 0
M68: =M65-移交生产的资产总表!G24 -> 0
M69: =M65-[2]汇总表!$E$24 -> -5857471.34

Sheet 其他费用明细表
C1: 其 他 费 用 明 细 表
A3: =封面!A13 -> 编制单位： | C3: =封面!A15 -> 编制日期： | D3: 单位：元
A4: 栏 | B4: 费 用 项 目 | C4: 预 算 数 | D4: 实际数
A5: 行 次
A6: 次 | B6: 1 | C6: 2 | D6: 3
A7: 1 | B7: 建设场地征用及清理费 | C7: =SUM(C8:C11) | D7: =SUM(D8:D11) | E7: 1.1+1.2+1.3+1.4
A8: 1.1 | B8: 土地征用补偿费
A9: 1.2 | B9: 余物清理费 | C9: =维护数据表中余物清理费合计
A10: 1.3 | B10: 集中配送物资保管费
A11: 1.4 | B11: 土地征用补偿费（赔青费） | D11: =ERP账生成数据中线路施工赔偿费合计
A12: 2 | B12: 项目建设管理费 | C12: =SUM(C13:C16) | D12: =SUM(D14:D16) | E12: 2.1+2.2.+2.3+2.4
A13: 2.1 | B13: 项目前期工作费 | C13: =维护数据表中项目前期工作费合计 | D13: =ERP账生成数据中项目前期工作费合计
A14: 2.2 | B14: 项目管理经费 | C14: =维护数据表中项目管理经费合计 | D14: =ERP账生成数据中法人管理费合计
A15: 2.3 | B15: 招标费
A16: 2.4 | B16: 工程监理费 | C16: =维护数据表中监理费合计 | D16: =ERP账生成数据中监理费合计
A17: 3 | B17: 项目建设技术服务费 | C17: =SUM(C18:C22) | D17: =SUM(D18:D22) | E17: 3.1+3.2+3.3+3.4+3.5
A18: 3.1 | B18: 工程勘察费
A19: 3.2 | B19: 工程设计费 | C19: =维护数据表中设计费合计 | D19: =ERP账生成数据中设计费合计
A20: 3.3 | B20: 施工图预算编制费
A21: 3.4 | B21: 项目后评价费
A22: 3.5 | B22: 技术经济标准编制管理费
A23: 4 | B23: 工程建设监督检测费
A24: 5 | B24: 生产准备费
A25: 6 | B25: 基本预备费
A26: 7 | B26: 资本化利息 | D26: =ERP账生成数据中建设期贷款利息合计
B27: 合 计 | C27: =SUM(C7,C12,C17,C23,C24,C25,C26) | D27: =SUM(D7,D12,D17,D23,D24,D25,D26) | E27: 1+2+3+4+5+6+7

Sheet 移交生产的资产总表
A1: 移交生产的资产总表
G2: 配竣建04表
A3: =封面!A13 -> 编制单位： | D3: =封面!A15 -> 编制日期： | G3: 单位：元
A4: 栏次 | B4: 财产名称 | C4: 建筑工程 | D4: 安装工程费 | E4: 设备价值 | F4: 分摊费用 | G4: 交付使用资产价值
A5: 行次
C6: 1 | D6: 2 | E6: 3 | F6: 4 | G6: 5
A7: 1 | B7: 固定资产 | C7: =SUM(C8:C9) | D7: =SUM(D8:D9) | E7: =SUM(E8:E9) | F7: =SUM(F8:F9) | G7: =SUM(C7:F7)
A8: 2 | B8: 1、配电网线路 | C8: =移交资产—配电网资产一览表!G7 | D8: =移交资产—配电网资产一览表!H7 | E8: 0 | F8: =移交资产—配电网资产一览表!I7 | G8: =SUM(C8:F8)
A9: 3 | B9: 2、配电网设备 | E9: ='移交资产—配电网资产一览表 (2)'!H7 | F9: ='移交资产—配电网资产一览表 (2)'!I7 | G9: =SUM(C9:F9)
A10: 4
A11: 5
A12: 6
A13: 7
A14: 8
A15: 9
A16: 10
A17: 11
A18: 12
A19: 13
A20: 14
A21: 15
A22: 16
A23: 17
A24: 18 | B24: 小 计 | C24: =SUM(C8:C23) -> 0 | D24: 0 | E24: 0 | F24: 0 | G24: 0
G26: =G24-一览表!M65 -> 0

Sheet 移交资产—配电网资产一览表
A1: 移交资产—配电网资产一览表(线路)
K2: 配竣建04-1表
A3: 编制单位：国网江苏省电力有限公司常州市金坛供电分公司 | E3: 编制日期：2019年4月20日 | K3: 单位：元
A4: 配电网项目编号 | B4: 配电网资产名称 | C4: 线路起、止地点或配变所在地 | D4: 使用、保管部门 | E4: 10KV线路长度（KM） | F4: 10KV电缆、架空导线型号 | G4: 建筑费用 | H4: 安装费用 | I4: 摊入费用 | J4: 交付使用资产价值 | K4: 其中：附属设备价值
A5: 1 | B5: 2 | C5: 3 | D5: 4 | E5: 5 | F5: 6 | G5: 7 | H5: 8 | I5: 9 | J5: 10=9+8+7 | K5: 11
A6: =工作表!B3 -> 18104117A102 | B6: =工作表!C3 -> 常州金坛区10kV电胜线城东下塘2队东新建工程 | C6: =工作表!H3 -> 0 | D6: 配电检修工区 | E6: =工作表!J3 -> 0.13 | F6: =工作表!L3 -> 架空绝缘导线,AC10kV,JKLYJ,150 | G6: =工作表!AU3 -> 0 | H6: =工作表!AV3 -> 110542.26 | I6: =H6/(H6+'移交资产—配电网资产一览表 (2)'!H6)*工作表!AX3 -> 15798.44565 | J6: =SUM(G6:I6) -> 126340.7056
A7: =ERP账生成数据中项目定义（去重列示） | B7: =ERP账生成数据中项目名称（匹配项目定义） | C7: 暂无 | D7: 默认配电检修工区 | E7: =ERP账生成数据中（其中：10kV线路）（匹配项目定义） | F7: =ERP账生成数据中（其中：10KV电缆、架空导线型号）（匹配项目定义）（随意） | G7: =ERP账生成数据中建筑费（匹配项目定义） | H7: 公式判断（若10KV电缆、架空导线型号不为空），则=ERP账生成数据中安装费（匹配项目定义）否则为0 | I7: =H6/(H6+设备h6的和）)*ERP账生成数据中其他费用（匹配项目定义） | J7: =SUM(G7:I7) | K7: 空
I9: 其他费用 根据线路安装费用和设备价值各自占比分摊
B115: 合 计 | E115: =SUM(E6:E114) | G115: =SUM(G6:G114) | H115: =SUM(H6:H114) | I115: =SUM(I6:I114) | J115: =SUM(J6:J114) | K115: =SUM(K6:K114)
G117: 2621248.75 | H117: 1453204.47 | I117: 644058.4705 | J117: 4718511.69

Sheet 移交资产—配电网资产一览表 (2)
A1: 移交资产—配电网资产一览表（设备）
K2: 配竣建04-1表
A3: 编制单位：国网江苏省电力有限公司常州市金坛供电分公司 | E3: 编制日期：2019年4月20日 | K3: 单位：元
A4: 配电网项目编号 | B4: 配电网资产名称 | C4: 线路起、止地点或配变所在地 | D4: 使用、保管部门 | E4: 配变数量 | F4: 计量单位 | G4: 配变容量(型号) | H4: 设备价值 | I4: 摊入费用 | J4: 交付使用资产价值 | K4: 其中：附属设备价值
A5: 1 | B5: 2 | C5: 3 | D5: 4 | E5: 5 | F5: 6 | G5: 7 | H5: 8 | I5: 9 | J5: 10=9+8 | K5: 11
A6: =工作表!B3 -> 18104117A102 | B6: =工作表!C3 -> 常州金坛区10kV电胜线城东下塘2队东新建工程 | C6: =工作表!H3 -> 0 | D6: 配电检修工区 | E6: =工作表!AR3 -> 1 | F6: =VLOOKUP(A6,Sheet2!T:V,3,0) -> 套 | G6: =工作表!AS3 -> 10kV箱式变电站,630kVA,美式,硅钢片,普通,无环网柜 | H6: =工作表!AW3 -> 117527.18 | I6: =H6/(H6+移交资产—配电网资产一览表!H6)*工作表!AX3 -> 16796.71435 | J6: =SUM(H6:I6) -> 134323.8944
A7: =ERP账生成数据中项目定义（去重列示） | B7: =ERP账生成数据中项目名称（匹配项目定义） | C7: 暂无 | D7: 默认配电检修工区 | E7: =ERP账生成数据中设备费台数 | F7: =ERP账生成数据中设备费单位 | G7: =ERP账生成数据中物料描述（不同类型设备均要列示） | H7: 公式判断（若10KV电缆、架空导线型号为空，配变容量不为空）=ERP账生成数据中设备费入账金额+安装费（安装费按比例分摊）；否则仅为设备费入账金额 | I7: =H6/(H6+移交资产—配电网资产一览表!安装费（匹配项目定义）)*ERP账生成数据中建筑费（匹配项目定义） | J7: =SUM(H7:I7) | K7: 暂无
H8: 多设备类型项目，安装费按照设备的入账金额比例分摊
H10: 若没有电线、有设备
B25: 合 计 | E25: =SUM(E6:E24) | H25: =SUM(H6:H24) | I25: =SUM(I6:I24) | J25: =SUM(J6:J24) | K25: =SUM(K7:K24)
H27: 1066431.61 | I27: 72528.03952 | J27: 1138959.65

Sheet 设备材料清册
A1: 设 备 材 料 清 册
A2: =封面!A13 -> 编制单位： | D2: =封面!A15 -> 编制日期：
A3: 配电网项目编号： | C3: =封面!E11 -> 0 | H3: 配竣建05表
A4: 配电网项目名称： | C4: =封面!E12 -> 0 | H4: 单位：元
A5: 序号 | B5: 设备材料名称 | C5: 规格型号 | D5: 供应单位制造厂家 | E5: 计量单位 | F5: 数量 | G5: 单价 | H5: 合价
A6: 1 | B6: 10kV箱式变电站,630kVA,美式,硅钢片,普通,无环网柜 | E6: 套 | F6: 1 | G6: =H6/F6 -> 117527.18 | H6: 117527.18
B7: 将所有设备清册去重统计
B8: =项目明细账中物料描述 | E8: =项目明细账中单位 | F8: =项目明细账中数量 | G8: =合计/数量 | H8: =项目明细账中行项目金额小计
B3519: 合 计 | H3519: =SUM(H6:H3518) -> 117527.18

Sheet 05(资金）
A1: 竣 工 工 程 财 务 决 算 表
H2: 竣建05表
A3: 编制单位：国网江苏省电力有限公司常州市金坛供电分公司 2019 年 4 月 20 日 | H3: 单位：元
A4: 资金来源 | B4: 行次 | C4: 金 额 | D4: 资金占用 | E4: 行次 | F4: 金 额 | G4: 历年资金到位情况 | H4: 金 额
A5: 一、项目资本金小计 | B5: 1 | D5: 一、移交资产合计 | E5: 1 | F5: =F7+F8+F9+F10 | G5: 2016年
A6: 1、 | B6: 2 | D6: 其中: | E6: 2 | G6: 2017年
A7: 2、 | B7: 3 | D7: 交付使用固定资产 | E7: 3 | F7: =项目明细账行项目金额合计
B8: 4 | D8: 交付使用流动资产 | E8: 4
B9: 5 | D9: 长期待摊费用 | E9: 5
A10: 二、基建投资借款 | B10: 6 | D10: 交付使用无形资产 | E10: 6
A11: 1、 | B11: 7 | E11: 7
A12: 3、 | B12: 8 | D12: 二、抵扣增值税 | E12: 8 | F12: =项目明细账进项税额合计
A13: 三、债券资金 | B13: 9 | E13: 9
B14: 10 | D14: 三、含税投资完成 | E14: 10 | F14: =F5+F12
B15: 11 | E15: 11
A16: 四、上级拨入资金 | B16: 12 | C16: =维护数据表中概算数合计 | E16: 12
B17: 13 | D17: 四、结余资金小计 | E17: 13 | F17: =C23-F14
B18: 14 | D18: 其中: 货币资金 | E18: 14 | F18: =F17 -> =C23-F14
A19: 五、应付未付款项 | B19: 15 | C19: ='05-1表'!E30 | E19: 15
B20: 16 | E20: 16
B21: 17 | E21: 17
A23: 资金来源合计 | B23: 18 | C23: =C5+C10+C13+C16+C19 | D23: 资金占用合计 | E23: 18 | F23: =F14+F17

Sheet 05-1表
A1: 工程竣工决算 应付未付款项明细表
F2: 竣建05-1表
A3: 单位名称： 国网江苏省电力有限公司常州市金坛供电分公司 | C3: 2019 年 4 月 20 日 | F3: 金额单位：元
A4: 序号 | B4: 合同号 | C4: 债权单位 | D4: 内容摘要 | E4: 金额 | F4: 备 注
A5: 1 | C5: 可填 | D5: 暂定未入账编审费用 | E5: 可填
A6: 2
A7: 3
B30: 合计 | E30: =SUM(E5:E29) -> 0

Sheet 04-1
A1: 移交资产—配电网资产一览表(线路)
M2: 配竣建04-1表
A3: 编制单位：国网江苏省电力有限公司常州市金坛供电分公司 | G3: 编制日期：2019年4月20日 | M3: 单位：元
A4: 配电网项目编号 | B4: 配电网资产名称 | C4: 线路条数 | D4: 资产类别 | E4: 线路起、止地点或配变所在地 | F4: 使用、保管部门 | G4: 10KV线路长度（KM） | H4: 10KV电缆、架空导线型号 | I4: 建筑费用 | J4: 安装费用 | K4: 摊入费用 | L4: 交付使用资产价值 | M4: 其中：附属设备价值
A5: 1 | B5: 2 | C5: 3 | D5: 4 | E5: 5 | F5: 6 | G5: 7 | H5: 8 | I5: 9 | J5: 10 | K5: 11 | L5: 12=11+10+9 | M5: 13
A6: 18104117A102 | B6: 常州金坛区10kV电胜线城东下塘2队东新建工程 | C6: 1 | D6: 中压线路 | E6: 0 | F6: 配电检修工区 | G6: 0.13 | H6: 架空绝缘导线,AC10kV,JKLYJ,150 | I6: 0 | J6: 110542.26 | K6: 15798.45 | L6: 126340.71
A7: 18104117A105 | B7: 常州金坛区10kV直溪线庄房3#变新建工程 | C7: 1 | D7: 中压线路 | E7: 0 | F7: 配电检修工区 | G7: 0.08 | H7: 架空绝缘导线,AC10kV,JKLYJ,150 | I7: 0 | J7: 60449.04 | K7: 5463.99 | L7: 65913.03
A8: 与移交资产—配电网资产一览表 一致 | D8: 若有10KV电缆、架空导线型号则线路条数默认为1，资产类别默认为中压线路
B24: 合 计 | G24: =SUM(G6:G23) -> 0.21 | I24: 0 | J24: 170991.3 | K24: 21262.44 | L24: 192253.74 | M24: 0

Sheet 04-2
A1: 移交资产—配电网资产一览表（设备）
L2: 配竣建04-1表
A3: 编制单位：国网江苏省电力有限公司常州市金坛供电分公司 | G3: 编制日期：2019年4月20日 | L3: 单位：元
A4: 配电网项目编号 | B4: 配电网资产名称 | C4: 资产类别 | D4: 线路起、止地点或配变所在地 | E4: 使用、保管部门 | F4: 配变数量 | G4: 计量单位 | H4: 配变容量(型号) | I4: 设备价值 | J4: 摊入费用 | K4: 交付使用资产价值 | L4: 其中：附属设备价值
A5: 1 | B5: 2 | C5: 3 | D5: 4 | E5: 5 | F5: 6 | G5: 7 | H5: 8 | I5: 9 | J5: 10 | K5: 11=10+9 | L5: 12
A6: 18104117A102 | B6: 常州金坛区10kV电胜线城东下塘2队东新建工程 | C6: 160200002 | D6: 0 | E6: 配电检修工区 | F6: 1 | G6: 套 | H6: 10kV箱式变电站,630kVA,美式,硅钢片,普通,无环网柜 | I6: 117527.18 | J6: 16796.71 | K6: 134323.89
A8: 与移交资产—配电网资产一览表 (2)一致 | B8: 需判断资产列别,具体如下：
B9: 变压器 | C9: 160200001
B10: 箱式变电站 | C10: 160200002
B11: 环网柜 | C11: 160200003
B12: 高压开关柜 | C12: 160200010
B24: 合 计 | F24: =SUM(F6:F23) -> 1 | I24: =SUM(I6:I23) -> 117527.18 | J24: =SUM(J6:J23) -> 16796.71 | K24: =SUM(K6:K23) -> 134323.89 | L24: =SUM(L6:L23) -> 0
C29: 变压器 | D29: 160200001
C30: 箱式变电站 | D30: 160200002
C31: 环网柜 | D31: 160200003
C32: 高压开关柜 | D32: 160200010

Sheet 工作表
A1: 序号 | B1: 配电网项目编号 | C1: 工程名称 | D1: 批准文号 | E1: 概算金额 | F1: 概况 | Z1: 预 算 价 值 | AG1: 施工费 | AH1: 监理费 | AI1: 设计费 | AJ1: 利息分摊金额 | AK1: 管理费分摊金额 | AL1: 赔青费 | AM1: 总支出 | AN1: 实际较概算节约 | AO1: 实际较概算节约率 | AP1: 设备材料已入账 | AQ1: 其中：设备费 | AR1: 台数 | AS1: 型号 | AT1: 其中：材料费 | AU1: 实际支出情况 | AZ1: 配电网资产名称1 | BA1: 配电网资产名称2 | BB1: 配电网资产名称3 | BC1: 备注 | BD1: pm系统自动生成的AM资产编号 | BE1: 资产号 | BF1: 利息 | BG1: 静态费用 | BH1: 设计费 | BI1: 监理费 | BJ1: 管理费 | BK1: 赔偿费 | BL1: 待摊费用 | BM1: 在安装设备 | BN1: 建筑工程费 | BO1: 安装费 | BP1: 主材费 | BQ1: 安装工程 | BR1: 预算合计
F2: 建设地址 | G2: 建设性质 | H2: 线路起止地点 | I2: 线路长度（KM）或配变数量 | J2: 其中：10KV线路 | K2: 其中：400V及以下 | L2: 导线规格或配变容量 | M2: 电压及回路数 | N2: 混凝土杆（基） | O2: 配变台数 | P2: 总容量（千伏安） | Q2: 设计单位 | R2: 监理单位 | S2: 施工单位 | T2: 预算批准机关、日期、文号 | U2: 开工日期 | V2: 竣工日期 | W2: 预算投资 | X2: 实际投资 | Y2: 移交生产的资产总值（元） | Z2: 建筑工程 | AA2: 安装工程 | AB2: 设备价值 | AC2: 其他费用 | AD2: 合计 | AE2: 原施工费 | AF2: 施工费调整 | AU2: 建筑工程 | AV2: 安装工程 | AW2: 设备价值 | AX2: 其他费用 | AY2: 合计
A3: 1 | B3: 18104117A102 | C3: 常州金坛区10kV电胜线城东下塘2队东新建工程 | E3: =AD3 -> 263300 | I3: =J3+K3 -> 0.13 | J3: =SUMIF(Sheet2!AH:AH,B3,Sheet2!AJ:AJ) -> 0.13 | K3: =SUMIF(Sheet2!AH:AH,B3,Sheet2!AK:AK) -> 0 | L3: =VLOOKUP(B3,Sheet2!AH:AI,2,0) -> 架空绝缘导线,AC10kV,JKLYJ,150 | U3: =VLOOKUP(B3,Sheet2!AD:AF,2,0) -> 2018-10-15 | V3: =VLOOKUP(B3,Sheet2!AD:AF,3,0) -> 2018-11-26 | W3: =E3 -> 263300 | X3: =AY3 -> 260664.6 | Y3: =X3 -> 260664.6 | Z3: =VLOOKUP(B3,Sheet2!AN:AT,3,0) -> 60326.56653 | AA3: =VLOOKUP(B3,Sheet2!AN:AT,4,0) -> 64292.69905 | AB3: =VLOOKUP(B3,Sheet2!AN:AT,5,0) -> 120983.1247 | AC3: =VLOOKUP(B3,Sheet2!AN:AT,6,0) -> 17697.60973 | AD3: =VLOOKUP(B3,Sheet2!AN:AT,7,0) -> 263300 | AE3: =SUMIF(Sheet2!A:A,工作表!B3,Sheet2!B:B) -> 78282.04 | AG3: =AE3-AF3 -> 78282.04 | AH3: =SUMIF(Sheet2!E:E,工作表!B3,Sheet2!F:F) -> 2849.1 | AI3: =SUMIF(Sheet2!H:H,工作表!B3,Sheet2!I:I) -> 11356.79 | AJ3: =SUMIF(Sheet2!K:K,工作表!B3,Sheet2!L:L) -> 109.47 | AK3: =SUMIF(Sheet2!N:N,工作表!B3,Sheet2!O:O) -> 1779.8 | AL3: =SUMIF(Sheet2!Q:Q,工作表!B3,Sheet2!R:R) -> 16500 | AM3: =AY3 -> 260664.6 | AN3: =AD3-AM3 -> 2635.4 | AO3: =AN3/AD3 -> 0.01000911508 | AP3: =AQ3+AT3 -> 149787.4 | AQ3: =SUMIF(Sheet2!T:T,工作表!B3,Sheet2!U:U) -> 117527.18 | AR3: =SUMIF(Sheet2!T:T,B3,Sheet2!W:W) -> 1 | AS3: =VLOOKUP(B3,Sheet2!T:X,5,FALSE) -> 10kV箱式变电站,630kVA,美式,硅钢片,普通,无环网柜 | AT3: =SUMIF(Sheet2!Z:Z,工作表!B3,Sheet2!AA:AA) -> 32260.22 | AV3: =AT3+AG3 -> 110542.26 | AW3: =AQ3 -> 117527.18 | AX3: =AH3+AI3+AJ3+AK3+AL3 -> 32595.16 | AY3: =AU3+AV3+AW3+AX3 -> 260664.6 | BR3: =E3 -> 263300
A4: 2 | B4: 18104117A105 | C4: 常州金坛区10kV直溪线庄房3#变新建工程 | E4: =AD4 -> 217900 | I4: =J4+K4 -> 0.08 | J4: =SUMIF(Sheet2!AH:AH,B4,Sheet2!AJ:AJ) -> 0.08 | K4: =SUMIF(Sheet2!AH:AH,B4,Sheet2!AK:AK) -> 0 | L4: =VLOOKUP(B4,Sheet2!AH:AI,2,0) -> 架空绝缘导线,AC10kV,JKLYJ,150 | U4: =VLOOKUP(B4,Sheet2!AD:AF,2,0) -> 2018-10-08 | V4: =VLOOKUP(B4,Sheet2!AD:AF,3,0) -> 2018-11-09 | W4: =E4 -> 217900 | X4: =AY4 -> 162368.09 | Y4: =X4 -> 162368.09 | Z4: =VLOOKUP(B4,Sheet2!AN:AT,3,0) -> 57163.8437 | AA4: =VLOOKUP(B4,Sheet2!AN:AT,4,0) -> 51660.86372 | AB4: =VLOOKUP(B4,Sheet2!AN:AT,5,0) -> 93352.1004 | AC4: =VLOOKUP(B4,Sheet2!AN:AT,6,0) -> 15723.19218 | AD4: =VLOOKUP(B4,Sheet2!AN:AT,7,0) -> 217900 | AE4: =SUMIF(Sheet2!A:A,工作表!B4,Sheet2!B:B) -> 43046.9 | AG4: =AE4-AF4 -> 43046.9 | AH4: =SUMIF(Sheet2!E:E,工作表!B4,Sheet2!F:F) -> 2487.92 | AI4: =SUMIF(Sheet2!H:H,工作表!B4,Sheet2!I:I) -> 10150.38 | AJ4: =SUMIF(Sheet2!K:K,工作表!B4,Sheet2!L:L) -> 81.52 | AK4: =SUMIF(Sheet2!N:N,工作表!B4,Sheet2!O:O) -> 740 | AL4: =SUMIF(Sheet2!Q:Q,工作表!B4,Sheet2!R:R) -> 0 | AM4: =AY4 -> 162368.09 | AN4: =AD4-AM4 -> 55531.91 | AO4: 0.254850436 | AP4: =AQ4+AT4 -> 105861.37 | AQ4: =SUMIF(Sheet2!T:T,工作表!B4,Sheet2!U:U) -> 88459.23 | AR4: =SUMIF(Sheet2!T:T,B4,Sheet2!W:W) -> 1 | AS4: =VLOOKUP(B4,Sheet2!T:X,5,FALSE) -> 10kV箱式变电站,400kVA,美式,硅钢片,普通,无环网柜 | AT4: =SUMIF(Sheet2!Z:Z,工作表!B4,Sheet2!AA:AA) -> 17402.14 | AV4: =AT4+AG4 -> 60449.04 | AW4: =AQ4 -> 88459.23 | AX4: =AH4+AI4+AJ4+AK4+AL4 -> 13459.82 | AY4: =AU4+AV4+AW4+AX4 -> 162368.09 | BR4: =E4 -> 217900
A5: 3 | B5: 18104117A106 | C5: 常州金坛区10kV白塔线白塔北商品房1#变改造工程 | E5: 244100 | I5: 0.249 | J5: =SUMIF(Sheet2!AH:AH,B5,Sheet2!AJ:AJ) -> 0.159 | K5: =SUMIF(Sheet2!AH:AH,B5,Sheet2!AK:AK) -> 0.09 | L5: =VLOOKUP(B5,Sheet2!AH:AI,2,0) -> 架空绝缘导线,AC10kV,JKLYJ,150 | U5: =VLOOKUP(B5,Sheet2!AD:AF,2,0) -> 2018-08-20 | V5: =VLOOKUP(B5,Sheet2!AD:AF,3,0) -> 2018-10-24 | W5: 244100 | X5: 276151.04 | Y5: 276151.04 | Z5: =VLOOKUP(B5,Sheet2!AN:AT,3,0) -> 55746.65044 | AA5: =VLOOKUP(B5,Sheet2!AN:AT,4,0) -> 72538.18691 | AB5: =VLOOKUP(B5,Sheet2!AN:AT,5,0) -> 95255.99538 | AC5: =VLOOKUP(B5,Sheet2!AN:AT,6,0) -> 20559.16728 | AD5: =VLOOKUP(B5,Sheet2!AN:AT,7,0) -> 244100 | AE5: =SUMIF(Sheet2!A:A,工作表!B5,Sheet2!B:B) -> 81162 | AG5: 81162 | AH5: =SUMIF(Sheet2!E:E,工作表!B5,Sheet2!F:F) -> 2931.56 | AI5: =SUMIF(Sheet2!H:H,工作表!B5,Sheet2!I:I) -> 11465.28 | AJ5: =SUMIF(Sheet2!K:K,工作表!B5,Sheet2!L:L) -> 9.51 | AK5: =SUMIF(Sheet2!N:N,工作表!B5,Sheet2!O:O) -> 404.31 | AL5: =SUMIF(Sheet2!Q:Q,工作表!B5,Sheet2!R:R) -> 19500 | AM5: 276151.04 | AN5: -32051.04 | AO5: -0.1313029086 | AP5: 160678.38 | AQ5: =SUMIF(Sheet2!T:T,工作表!B5,Sheet2!U:U) -> 88459.22 | AR5: =SUMIF(Sheet2!T:T,B5,Sheet2!W:W) -> 1 | AS5: =VLOOKUP(B5,Sheet2!T:X,5,FALSE) -> 10kV箱式变电站,400kVA,美式,硅钢片,普通,无环网柜 | AT5: =SUMIF(Sheet2!Z:Z,工作表!B5,Sheet2!AA:AA) -> 72219.16 | AV5: =AT5+AG5 -> 153381.16 | AW5: 88459.22 | AX5: 34310.66 | AY5: 276151.04 | BR5: 244100
A6: 4 | B6: 18104117A19F | C6: 常州金坛区南环二路（兴隆路-良湖路）新建电缆管沟工程 | E6: 1419900 | I6: 0 | J6: =SUMIF(Sheet2!AH:AH,B6,Sheet2!AJ:AJ) -> 0 | K6: =SUMIF(Sheet2!AH:AH,B6,Sheet2!AK:AK) -> 0 | L6: =VLOOKUP(B6,Sheet2!AH:AI,2,0) ->  | U6: =VLOOKUP(B6,Sheet2!AD:AF,2,0) -> 2018-03-15 | V6: =VLOOKUP(B6,Sheet2!AD:AF,3,0) -> 2018-04-11 | W6: 1419900 | X6: 1582079.53 | Y6: 1582079.53 | Z6: =VLOOKUP(B6,Sheet2!AN:AT,3,0) -> 950892.2867 | AA6: =VLOOKUP(B6,Sheet2!AN:AT,4,0) -> 304857.6974 | AB6: =VLOOKUP(B6,Sheet2!AN:AT,5,0) -> 0 | AC6: =VLOOKUP(B6,Sheet2!AN:AT,6,0) -> 164150.0159 | AD6: =VLOOKUP(B6,Sheet2!AN:AT,7,0) -> 1419900 | AE6: =SUMIF(Sheet2!A:A,工作表!B6,Sheet2!B:B) -> 874806.3 | AG6: 874806.3 | AH6: =SUMIF(Sheet2!E:E,工作表!B6,Sheet2!F:F) -> 28698.96 | AI6: =SUMIF(Sheet2!H:H,工作表!B6,Sheet2!I:I) -> 102142.56 | AJ6: =SUMIF(Sheet2!K:K,工作表!B6,Sheet2!L:L) -> 68.55 | AK6: =SUMIF(Sheet2!N:N,工作表!B6,Sheet2!O:O) -> 5266.08 | AL6: =SUMIF(Sheet2!Q:Q,工作表!B6,Sheet2!R:R) -> 42500 | AM6: 1582079.53 | AN6: -162179.53 | AO6: -0.1142189802 | AP6: 528597.08 | AQ6: =SUMIF(Sheet2!T:T,工作表!B6,Sheet2!U:U) -> 0 | AR6: =SUMIF(Sheet2!T:T,B6,Sheet2!W:W) -> 0 | AS6: =VLOOKUP(B6,Sheet2!T:X,5,FALSE) ->  | AT6: =SUMIF(Sheet2!Z:Z,工作表!B6,Sheet2!AA:AA) -> 528597.08 | AU6: =AT6+AG6 -> 1403403.38 | AW6: 0 | AX6: 178676.15 | AY6: 1582079.53 | BR6: 1419900
A7: 5 | B7: 18104117A1A3 | C7: 常州金坛区S239省道北侧新建电缆管沟工程 | E7: 1443800 | I7: 0 | J7: =SUMIF(Sheet2!AH:AH,B7,Sheet2!AJ:AJ) -> 0 | K7: =SUMIF(Sheet2!AH:AH,B7,Sheet2!AK:AK) -> 0 | L7: =VLOOKUP(B7,Sheet2!AH:AI,2,0) ->  | U7: =VLOOKUP(B7,Sheet2!AD:AF,2,0) -> 2017-09-10 | V7: =VLOOKUP(B7,Sheet2!AD:AF,3,0) -> 2017-11-11 | W7: 1443800 | X7: 1600380.45 | Y7: 1600380.45 | Z7: =VLOOKUP(B7,Sheet2!AN:AT,3,0) -> 840024.3466 | AA7: =VLOOKUP(B7,Sheet2!AN:AT,4,0) -> 436976.0191 | AB7: =VLOOKUP(B7,Sheet2!AN:AT,5,0) -> 0 | AC7: =VLOOKUP(B7,Sheet2!AN:AT,6,0) -> 166799.6343 | AD7: =VLOOKUP(B7,Sheet2!AN:AT,7,0) -> 1443800 | AE7: =SUMIF(Sheet2!A:A,工作表!B7,Sheet2!B:B) -> 799954.68 | AG7: 799954.68 | AH7: =SUMIF(Sheet2!E:E,工作表!B7,Sheet2!F:F) -> 29184.72 | AI7: =SUMIF(Sheet2!H:H,工作表!B7,Sheet2!I:I) -> 103760.38 | AJ7: =SUMIF(Sheet2!K:K,工作表!B7,Sheet2!L:L) -> 390.77 | AK7: =SUMIF(Sheet2!N:N,工作表!B7,Sheet2!O:O) -> 2709.89 | AL7: =SUMIF(Sheet2!Q:Q,工作表!B7,Sheet2!R:R) -> 246489.32 | AM7: 1600380.45 | AN7: -156580.45 | AO7: -0.1084502355 | AP7: 417890.69 | AQ7: =SUMIF(Sheet2!T:T,工作表!B7,Sheet2!U:U) -> 0 | AR7: =SUMIF(Sheet2!T:T,B7,Sheet2!W:W) -> 0 | AS7: =VLOOKUP(B7,Sheet2!T:X,5,FALSE) ->  | AT7: =SUMIF(Sheet2!Z:Z,工作表!B7,Sheet2!AA:AA) -> 417890.69 | AU7: =AT7+AG7 -> 1217845.37 | AW7: 0 | AX7: 382535.08 | AY7: 1600380.45 | BR7: 1443800
A8: 6 | B8: 18104117A1D3 | C8: 常州金坛区10kV云住线、窑上线新增动补装置工程 | E8: 273000 | I8: 0.16 | J8: =SUMIF(Sheet2!AH:AH,B8,Sheet2!AJ:AJ) -> 0.16 | K8: =SUMIF(Sheet2!AH:AH,B8,Sheet2!AK:AK) -> 0 | L8: =VLOOKUP(B8,Sheet2!AH:AI,2,0) -> 架空绝缘导线,AC10kV,JKLYJ,150 | U8: =VLOOKUP(B8,Sheet2!AD:AF,2,0) -> 2018-01-20 | V8: =VLOOKUP(B8,Sheet2!AD:AF,3,0) -> 2018-03-18 | W8: 273000 | X8: 239243.13 | Y8: 239243.13 | Z8: =VLOOKUP(B8,Sheet2!AN:AT,3,0) -> 0 | AA8: =VLOOKUP(B8,Sheet2!AN:AT,4,0) -> 243076.2797 | AB8: =VLOOKUP(B8,Sheet2!AN:AT,5,0) -> 3132.647774 | AC8: =VLOOKUP(B8,Sheet2!AN:AT,6,0) -> 26791.07249 | AD8: =VLOOKUP(B8,Sheet2!AN:AT,7,0) -> 273000 | AE8: =SUMIF(Sheet2!A:A,工作表!B8,Sheet2!B:B) -> 213761.91 | AG8: 213761.91 | AH8: =SUMIF(Sheet2!E:E,工作表!B8,Sheet2!F:F) -> 5411.01 | AI8: =SUMIF(Sheet2!H:H,工作表!B8,Sheet2!I:I) -> 13670.16 | AJ8: =SUMIF(Sheet2!K:K,工作表!B8,Sheet2!L:L) -> 128.24 | AK8: =SUMIF(Sheet2!N:N,工作表!B8,Sheet2!O:O) -> 1707.91 | AL8: =SUMIF(Sheet2!Q:Q,工作表!B8,Sheet2!R:R) -> 0 | AM8: 239243.13 | AN8: 33756.87 | AO8: 0.1236515385 | AP8: 4563.9 | AQ8: =SUMIF(Sheet2!T:T,工作表!B8,Sheet2!U:U) -> 0 | AR8: =SUMIF(Sheet2!T:T,B8,Sheet2!W:W) -> 0 | AS8: =VLOOKUP(B8,Sheet2!T:X,5,FALSE) ->  | AT8: =SUMIF(Sheet2!Z:Z,工作表!B8,Sheet2!AA:AA) -> 4563.9 | AV8: =AT8+AG8 -> 218325.81 | AW8: 0 | AX8: 20917.32 | AY8: 239243.13 | BR8: 273000
A9: 7 | B9: 18104117A1D4 | C9: 常州金坛区城南花园、金源福地等变电所改造工程 | E9: 786000 | I9: 0 | J9: =SUMIF(Sheet2!AH:AH,B9,Sheet2!AJ:AJ) -> 0 | K9: =SUMIF(Sheet2!AH:AH,B9,Sheet2!AK:AK) -> 0 | L9: =VLOOKUP(B9,Sheet2!AH:AI,2,0) ->  | U9: =VLOOKUP(B9,Sheet2!AD:AF,2,0) -> 2018-03-01 | V9: =VLOOKUP(B9,Sheet2!AD:AF,3,0) -> 2018-11-30 | W9: 786000 | X9: 738098.12 | Y9: 738098.12 | Z9: =VLOOKUP(B9,Sheet2!AN:AT,3,0) -> 46448.25942 | AA9: =VLOOKUP(B9,Sheet2!AN:AT,4,0) -> 670448.025 | AB9: =VLOOKUP(B9,Sheet2!AN:AT,5,0) -> 41616.91224 | AC9: =VLOOKUP(B9,Sheet2!AN:AT,6,0) -> 27486.80339 | AD9: =VLOOKUP(B9,Sheet2!AN:AT,7,0) -> 786000 | AE9: =SUMIF(Sheet2!A:A,工作表!B9,Sheet2!B:B) -> 38416.58 | AG9: 38416.58 | AH9: =SUMIF(Sheet2!E:E,工作表!B9,Sheet2!F:F) -> 0 | AI9: =SUMIF(Sheet2!H:H,工作表!B9,Sheet2!I:I) -> 0 | AJ9: =SUMIF(Sheet2!K:K,工作表!B9,Sheet2!L:L) -> 470.5 | AK9: =SUMIF(Sheet2!N:N,工作表!B9,Sheet2!O:O) -> 0 | AL9: =SUMIF(Sheet2!Q:Q,工作表!B9,Sheet2!R:R) -> 0 | AM9: 738098.12 | AN9: 47901.88 | AO9: 0.06094386768 | AP9: 699211.04 | AQ9: =SUMIF(Sheet2!T:T,工作表!B9,Sheet2!U:U) -> 0 | AR9: =SUMIF(Sheet2!T:T,B9,Sheet2!W:W) -> 0 | AS9: =VLOOKUP(B9,Sheet2!T:X,5,FALSE) ->  | AT9: =SUMIF(Sheet2!Z:Z,工作表!B9,Sheet2!AA:AA) -> 699211.04 | AV9: =AT9+AG9 -> 737627.62 | AW9: 0 | AX9: 470.5 | AY9: 738098.12 | BR9: 786000
A10: 8 | B10: 18104117A1D5 | C10: 常州金坛区10kV长兴线小木桥3#配变新增工程 | E10: 208800 | I10: 0.262 | J10: =SUMIF(Sheet2!AH:AH,B10,Sheet2!AJ:AJ) -> 0.246 | K10: =SUMIF(Sheet2!AH:AH,B10,Sheet2!AK:AK) -> 0.016 | L10: =VLOOKUP(B10,Sheet2!AH:AI,2,0) -> 架空绝缘导线,AC10kV,JKLYJ,150 | U10: =VLOOKUP(B10,Sheet2!AD:AF,2,0) -> 2018-03-24 | V10: =VLOOKUP(B10,Sheet2!AD:AF,3,0) -> 2018-04-24 | W10: 208800 | X10: =AY10 -> 147067.22 | Y10: =X10 -> 147067.22 | Z10: =VLOOKUP(B10,Sheet2!AN:AT,3,0) -> 46448.25942 | AA10: =VLOOKUP(B10,Sheet2!AN:AT,4,0) -> 93248.02496 | AB10: =VLOOKUP(B10,Sheet2!AN:AT,5,0) -> 41616.91224 | AC10: =VLOOKUP(B10,Sheet2!AN:AT,6,0) -> 27486.80339 | AD10: =VLOOKUP(B10,Sheet2!AN:AT,7,0) -> 208800 | AE10: =SUMIF(Sheet2!A:A,工作表!B10,Sheet2!B:B) -> 59028.2 | AG10: 59028.2 | AH10: =SUMIF(Sheet2!E:E,工作表!B10,Sheet2!F:F) -> 5784.29 | AI10: =SUMIF(Sheet2!H:H,工作表!B10,Sheet2!I:I) -> 9491.62 | AJ10: =SUMIF(Sheet2!K:K,工作表!B10,Sheet2!L:L) -> 40.1 | AK10: =SUMIF(Sheet2!N:N,工作表!B10,Sheet2!O:O) -> 313.51 | AL10: =SUMIF(Sheet2!Q:Q,工作表!B10,Sheet2!R:R) -> 0 | AM10: 147067.22 | AN10: =AD10-AM10 -> 61732.78 | AO10: =AN10/AD10 -> 0.2956550766 | AP10: 72409.5 | AQ10: =SUMIF(Sheet2!T:T,工作表!B10,Sheet2!U:U) -> 28464.87 | AR10: =SUMIF(Sheet2!T:T,B10,Sheet2!W:W) -> 1 | AS10: =VLOOKUP(B10,Sheet2!T:X,5,FALSE) -> 10kV变压器,400kVA,普通,硅钢片,油浸 | AT10: =SUMIF(Sheet2!Z:Z,工作表!B10,Sheet2!AA:AA) -> 43944.63 | AV10: =AT10+AG10 -> 102972.83 | AW10: 28464.87 | AX10: =AH10+AI10+AJ10+AK10+AL10 -> 15629.52 | AY10: =AU10+AV10+AW10+AX10 -> 147067.22 | BR10: =E10 -> 208800
A11: 9 | B11: 18104117A1D6 | C11: 常州金坛区10kV茅东线西阳1#变更换工程 | E11: 67200 | I11: 0.016 | J11: =SUMIF(Sheet2!AH:AH,B11,Sheet2!AJ:AJ) -> 0 | K11: =SUMIF(Sheet2!AH:AH,B11,Sheet2!AK:AK) -> 0.016 | L11: =VLOOKUP(B11,Sheet2!AH:AI,2,0) -> 0 | U11: =VLOOKUP(B11,Sheet2!AD:AF,2,0) -> 2017-12-15 | V11: =VLOOKUP(B11,Sheet2!AD:AF,3,0) -> 2018-01-15 | W11: 67200 | X11: 51514.95 | Y11: 51514.95 | Z11: =VLOOKUP(B11,Sheet2!AN:AT,3,0) -> 15.5511 | AA11: =VLOOKUP(B11,Sheet2!AN:AT,4,0) -> 28830.52526 | AB11: =VLOOKUP(B11,Sheet2!AN:AT,5,0) -> 34313.72039 | AC11: =VLOOKUP(B11,Sheet2!AN:AT,6,0) -> 4040.203252 | AD11: =VLOOKUP(B11,Sheet2!AN:AT,7,0) -> 67200 | AE11: =SUMIF(Sheet2!A:A,工作表!B11,Sheet2!B:B) -> 7029.99 | AG11: 7029.99 | AH11: =SUMIF(Sheet2!E:E,工作表!B11,Sheet2!F:F) -> 850.18 | AI11: =SUMIF(Sheet2!H:H,工作表!B11,Sheet2!I:I) -> 1654.61 | AJ11: =SUMIF(Sheet2!K:K,工作表!B11,Sheet2!L:L) -> 23.15 | AK11: =SUMIF(Sheet2!N:N,工作表!B11,Sheet2!O:O) -> 25.4 | AL11: =SUMIF(Sheet2!Q:Q,工作表!B11,Sheet2!R:R) -> 0 | AM11: 51514.95 | AN11: 15685.05 | AO11: 0.2334084821 | AP11: 41931.62 | AQ11: =SUMIF(Sheet2!T:T,工作表!B11,Sheet2!U:U) -> 33316.34 | AR11: =SUMIF(Sheet2!T:T,B11,Sheet2!W:W) -> 1 | AS11: =VLOOKUP(B11,Sheet2!T:X,5,FALSE) -> 10kV变压器,400kVA,普通,非晶合金,油浸 | AT11: =SUMIF(Sheet2!Z:Z,工作表!B11,Sheet2!AA:AA) -> 8615.28 | AW11: =AQ11+AT11+AG11 -> 48961.61 | AX11: 2553.34 | AY11: 51514.95 | BR11: 67200
A12: 10 | B12: 18104117A1D7 | C12: 常州金坛区10kV集镇线圩田村支上汤站配变改造工程 | E12: 31600 | I12: 0 | J12: =SUMIF(Sheet2!AH:AH,B12,Sheet2!AJ:AJ) -> 0 | K12: =SUMIF(Sheet2!AH:AH,B12,Sheet2!AK:AK) -> 0 | L12: =VLOOKUP(B12,Sheet2!AH:AI,2,0) ->  | U12: =VLOOKUP(B12,Sheet2!AD:AF,2,0) -> 2018-01-05 | V12: =VLOOKUP(B12,Sheet2!AD:AF,3,0) -> 2018-01-19 | W12: 31600 | X12: 26302.74 | Y12: 26302.74 | Z12: =VLOOKUP(B12,Sheet2!AN:AT,3,0) -> 0 | AA12: =VLOOKUP(B12,Sheet2!AN:AT,4,0) -> 3634.649667 | AB12: =VLOOKUP(B12,Sheet2!AN:AT,5,0) -> 25011.72343 | AC12: =VLOOKUP(B12,Sheet2!AN:AT,6,0) -> 2953.626905 | AD12: =VLOOKUP(B12,Sheet2!AN:AT,7,0) -> 31600 | AE12: =SUMIF(Sheet2!A:A,工作表!B12,Sheet2!B:B) -> 2835.85 | AG12: 2835.85 | AH12: =SUMIF(Sheet2!E:E,工作表!B12,Sheet2!F:F) -> 71.61 | AI12: =SUMIF(Sheet2!H:H,工作表!B12,Sheet2!I:I) -> 1619.2 | AJ12: =SUMIF(Sheet2!K:K,工作表!B12,Sheet2!L:L) -> 14.63 | AK12: =SUMIF(Sheet2!N:N,工作表!B12,Sheet2!O:O) -> 12.07 | AL12: =SUMIF(Sheet2!Q:Q,工作表!B12,Sheet2!R:R) -> 0 | AM12: 26302.74 | AN12: 5297.26 | AO12: 0.1676348101 | AP12: 21749.38 | AQ12: =SUMIF(Sheet2!T:T,工作表!B12,Sheet2!U:U) -> 21749.38 | AR12: =SUMIF(Sheet2!T:T,B12,Sheet2!W:W) -> 1 | AS12: =VLOOKUP(B12,Sheet2!T:X,5,FALSE) -> 10kV变压器,200kVA,普通,非晶合金,油浸 | AT12: =SUMIF(Sheet2!Z:Z,工作表!B12,Sheet2!AA:AA) -> 0 | AW12: =AQ12+AT12+AG12 -> 24585.23 | AX12: 1717.51 | AY12: 26302.74 | BR12: 31600
A13: 11 | B13: 18104117A1D8 | C13: 常州金坛区10kV尧塘线尧塘集镇4#变配变改造工程 | E13: 44500 | I13: 0.008 | J13: =SUMIF(Sheet2!AH:AH,B13,Sheet2!AJ:AJ) -> 0 | K13: =SUMIF(Sheet2!AH:AH,B13,Sheet2!AK:AK) -> 0.008 | L13: =VLOOKUP(B13,Sheet2!AH:AI,2,0) -> 0 | U13: =VLOOKUP(B13,Sheet2!AD:AF,2,0) -> 2018-01-05 | V13: =VLOOKUP(B13,Sheet2!AD:AF,3,0) -> 2018-01-19 | W13: 44500 | X13: 42735.83 | Y13: 42735.83 | Z13: =VLOOKUP(B13,Sheet2!AN:AT,3,0) -> 0 | AA13: =VLOOKUP(B13,Sheet2!AN:AT,4,0) -> 9661.401219 | AB13: =VLOOKUP(B13,Sheet2!AN:AT,5,0) -> 30496.77514 | AC13: =VLOOKUP(B13,Sheet2!AN:AT,6,0) -> 4341.823641 | AD13: =VLOOKUP(B13,Sheet2!AN:AT,7,0) -> 44500 | AE13: =SUMIF(Sheet2!A:A,工作表!B13,Sheet2!B:B) -> 5436.35 | AG13: 5436.35 | AH13: =SUMIF(Sheet2!E:E,工作表!B13,Sheet2!F:F) -> 323 | AI13: =SUMIF(Sheet2!H:H,工作表!B13,Sheet2!I:I) -> 2249.66 | AJ13: =SUMIF(Sheet2!K:K,工作表!B13,Sheet2!L:L) -> 20.68 | AK13: =SUMIF(Sheet2!N:N,工作表!B13,Sheet2!O:O) -> 20.77 | AL13: =SUMIF(Sheet2!Q:Q,工作表!B13,Sheet2!R:R) -> 0 | AM13: 42735.83 | AN13: 1764.17 | AO13: 0.03964426966 | AP13: 34685.37 | AQ13: =SUMIF(Sheet2!T:T,工作表!B13,Sheet2!U:U) -> 21749.38 | AR13: =SUMIF(Sheet2!T:T,B13,Sheet2!W:W) -> 1 | AS13: =VLOOKUP(B13,Sheet2!T:X,5,FALSE) -> 10kV变压器,200kVA,普通,非晶合金,油浸 | AT13: =SUMIF(Sheet2!Z:Z,工作表!B13,Sheet2!AA:AA) -> 12935.99 | AW13: =AQ13+AT13+AG13 -> 40121.72 | AX13: 2614.11 | AY13: 42735.83 | BR13: 44500
A14: 12 | B14: 18104117A1D9 | C14: 常州金坛区10kV东明线城东界沟站配变改造工程 | E14: 83300 | I14: 0.034 | J14: =SUMIF(Sheet2!AH:AH,B14,Sheet2!AJ:AJ) -> 0.018 | K14: =SUMIF(Sheet2!AH:AH,B14,Sheet2!AK:AK) -> 0.016 | L14: =VLOOKUP(B14,Sheet2!AH:AI,2,0) -> 架空绝缘导线,AC10kV,JKLYJ,150 | U14: =VLOOKUP(B14,Sheet2!AD:AF,2,0) -> 2018-02-08 | V14: =VLOOKUP(B14,Sheet2!AD:AF,3,0) -> 2018-03-08 | W14: 83300 | X14: 69964.07 | Y14: 69964.07 | Z14: =VLOOKUP(B14,Sheet2!AN:AT,3,0) -> 591.6724078 | AA14: =VLOOKUP(B14,Sheet2!AN:AT,4,0) -> 34217.55767 | AB14: =VLOOKUP(B14,Sheet2!AN:AT,5,0) -> 39320.2631 | AC14: =VLOOKUP(B14,Sheet2!AN:AT,6,0) -> 9170.506821 | AD14: =VLOOKUP(B14,Sheet2!AN:AT,7,0) -> 83300 | AE14: =SUMIF(Sheet2!A:A,工作表!B14,Sheet2!B:B) -> 12963.54 | AG14: 12963.54 | AH14: =SUMIF(Sheet2!E:E,工作表!B14,Sheet2!F:F) -> 1065.97 | AI14: =SUMIF(Sheet2!H:H,工作表!B14,Sheet2!I:I) -> 4324.35 | AJ14: =SUMIF(Sheet2!K:K,工作表!B14,Sheet2!L:L) -> 26.07 | AK14: =SUMIF(Sheet2!N:N,工作表!B14,Sheet2!O:O) -> 117.37 | AL14: =SUMIF(Sheet2!Q:Q,工作表!B14,Sheet2!R:R) -> 0 | AM14: 69964.07 | AN14: 13335.93 | AO14: 0.1600951981 | AP14: 51466.77 | AQ14: =SUMIF(Sheet2!T:T,工作表!B14,Sheet2!U:U) -> 28464.86 | AR14: =SUMIF(Sheet2!T:T,B14,Sheet2!W:W) -> 1 | AS14: =VLOOKUP(B14,Sheet2!T:X,5,FALSE) -> 10kV变压器,400kVA,普通,硅钢片,油浸 | AT14: =SUMIF(Sheet2!Z:Z,工作表!B14,Sheet2!AA:AA) -> 23001.91 | AV14: =AT14+AG14 -> 35965.45 | AW14: =AQ14 -> 28464.86 | AX14: 5533.76 | AY14: 69964.07 | BR14: 83300
A15: 13 | B15: 18104117A1DA | C15: 常州金坛区10kV愚池线愚池2#箱变改造工程 | E15: 135000 | I15: 0 | J15: =SUMIF(Sheet2!AH:AH,B15,Sheet2!AJ:AJ) -> 0 | K15: =SUMIF(Sheet2!AH:AH,B15,Sheet2!AK:AK) -> 0 | L15: =VLOOKUP(B15,Sheet2!AH:AI,2,0) ->  | U15: =VLOOKUP(B15,Sheet2!AD:AF,2,0) -> 2018-02-02 | V15: =VLOOKUP(B15,Sheet2!AD:AF,3,0) -> 2018-03-16 | W15: 135000 | X15: 134967.6 | Y15: 134967.6 | Z15: =VLOOKUP(B15,Sheet2!AN:AT,3,0) -> 7797.131301 | AA15: =VLOOKUP(B15,Sheet2!AN:AT,4,0) -> 9538.325305 | AB15: =VLOOKUP(B15,Sheet2!AN:AT,5,0) -> 111570.1288 | AC15: =VLOOKUP(B15,Sheet2!AN:AT,6,0) -> 6094.414561 | AD15: =VLOOKUP(B15,Sheet2!AN:AT,7,0) -> 135000 | AE15: =SUMIF(Sheet2!A:A,工作表!B15,Sheet2!B:B) -> 20179.51 | AG15: 20179.51 | AH15: =SUMIF(Sheet2!E:E,工作表!B15,Sheet2!F:F) -> 342.05 | AI15: =SUMIF(Sheet2!H:H,工作表!B15,Sheet2!I:I) -> 3535.58 | AJ15: =SUMIF(Sheet2!K:K,工作表!B15,Sheet2!L:L) -> 74.32 | AK15: =SUMIF(Sheet2!N:N,工作表!B15,Sheet2!O:O) -> 121.53 | AL15: =SUMIF(Sheet2!Q:Q,工作表!B15,Sheet2!R:R) -> 0 | AM15: 134967.6 | AN15: 32.4 | AO15: 0.00024 | AP15: 110714.61 | AQ15: =SUMIF(Sheet2!T:T,工作表!B15,Sheet2!U:U) -> 110400 | AR15: =SUMIF(Sheet2!T:T,B15,Sheet2!W:W) -> 1 | AS15: =VLOOKUP(B15,Sheet2!T:X,5,FALSE) -> 10kV箱式变电站,400kVA,欧式,硅钢片,普通,有环网柜 | AT15: =SUMIF(Sheet2!Z:Z,工作表!B15,Sheet2!AA:AA) -> 314.61 | AW15: =AQ15+AT15+AG15 -> 130894.12 | AX15: 4073.48 | AY15: 134967.6 | BR15: 135000
A16: 14 | B16: 18104117A1DB | C16: 常州金坛区10kV罗村线赤岗村2#变更换工程 | E16: 73300 | I16: 0.016 | J16: =SUMIF(Sheet2!AH:AH,B16,Sheet2!AJ:AJ) -> 0 | K16: =SUMIF(Sheet2!AH:AH,B16,Sheet2!AK:AK) -> 0.016 | L16: =VLOOKUP(B16,Sheet2!AH:AI,2,0) -> 0 | U16: =VLOOKUP(B16,Sheet2!AD:AF,2,0) -> 2017-11-22 | V16: =VLOOKUP(B16,Sheet2!AD:AF,3,0) -> 2017-12-22 | W16: 73300 | X16: 49266.07 | Y16: 49266.07 | Z16: =VLOOKUP(B16,Sheet2!AN:AT,3,0) -> 15.5511 | AA16: =VLOOKUP(B16,Sheet2!AN:AT,4,0) -> 31680.20753 | AB16: =VLOOKUP(B16,Sheet2!AN:AT,5,0) -> 36140.64264 | AC16: =VLOOKUP(B16,Sheet2!AN:AT,6,0) -> 5463.598724 | AD16: =VLOOKUP(B16,Sheet2!AN:AT,7,0) -> 73300 | AE16: =SUMIF(Sheet2!A:A,工作表!B16,Sheet2!B:B) -> 8458.37 | AG16: 8458.37 | AH16: =SUMIF(Sheet2!E:E,工作表!B16,Sheet2!F:F) -> 905.63 | AI16: =SUMIF(Sheet2!H:H,工作表!B16,Sheet2!I:I) -> 1910.82 | AJ16: =SUMIF(Sheet2!K:K,工作表!B16,Sheet2!L:L) -> 22.76 | AK16: =SUMIF(Sheet2!N:N,工作表!B16,Sheet2!O:O) -> 28.7 | AL16: =SUMIF(Sheet2!Q:Q,工作表!B16,Sheet2!R:R) -> 0 | AM16: 49266.07 | AN16: 24033.93 | AO16: 0.3278844475 | AP16: 37939.79 | AQ16: =SUMIF(Sheet2!T:T,工作表!B16,Sheet2!U:U) -> 28119.56 | AR16: =SUMIF(Sheet2!T:T,B16,Sheet2!W:W) -> 1 | AS16: =VLOOKUP(B16,Sheet2!T:X,5,FALSE) -> 10kV变压器,400kVA,普通,硅钢片,油浸 | AT16: =SUMIF(Sheet2!Z:Z,工作表!B16,Sheet2!AA:AA) -> 9820.23 | AW16: =AQ16+AT16+AG16 -> 46398.16 | AX16: 2867.91 | AY16: 49266.07 | BR16: 73300
A17: 15 | B17: 18104117A1DC | C17: 常州金坛区10kV岸头线岸头亚明机械厂配变改造工程 | E17: 32700 | I17: 0 | J17: =SUMIF(Sheet2!AH:AH,B17,Sheet2!AJ:AJ) -> 0 | K17: =SUMIF(Sheet2!AH:AH,B17,Sheet2!AK:AK) -> 0 | L17: =VLOOKUP(B17,Sheet2!AH:AI,2,0) ->  | U17: =VLOOKUP(B17,Sheet2!AD:AF,2,0) -> 2018-01-08 | V17: =VLOOKUP(B17,Sheet2!AD:AF,3,0) -> 2018-01-12 | W17: 32700 | X17: 27595.58 | Y17: 27595.58 | Z17: =VLOOKUP(B17,Sheet2!AN:AT,3,0) -> 0 | AA17: =VLOOKUP(B17,Sheet2!AN:AT,4,0) -> 4621.40921 | AB17: =VLOOKUP(B17,Sheet2!AN:AT,5,0) -> 25011.72343 | AC17: =VLOOKUP(B17,Sheet2!AN:AT,6,0) -> 3066.867362 | AD17: =VLOOKUP(B17,Sheet2!AN:AT,7,0) -> 32700 | AE17: =SUMIF(Sheet2!A:A,工作表!B17,Sheet2!B:B) -> 3809.95 | AG17: 3809.95 | AH17: =SUMIF(Sheet2!E:E,工作表!B17,Sheet2!F:F) -> 90.65 | AI17: =SUMIF(Sheet2!H:H,工作表!B17,Sheet2!I:I) -> 1672.66 | AJ17: =SUMIF(Sheet2!K:K,工作表!B17,Sheet2!L:L) -> 14.65 | AK17: =SUMIF(Sheet2!N:N,工作表!B17,Sheet2!O:O) -> 17.13 | AL17: =SUMIF(Sheet2!Q:Q,工作表!B17,Sheet2!R:R) -> 0 | AM17: 27595.58 | AN17: 5104.42 | AO17: 0.1560984709 | AP17: 21990.54 | AQ17: =SUMIF(Sheet2!T:T,工作表!B17,Sheet2!U:U) -> 21749.38 | AR17: =SUMIF(Sheet2!T:T,B17,Sheet2!W:W) -> 1 | AS17: =VLOOKUP(B17,Sheet2!T:X,5,FALSE) -> 10kV变压器,200kVA,普通,非晶合金,油浸 | AT17: =SUMIF(Sheet2!Z:Z,工作表!B17,Sheet2!AA:AA) -> 241.16 | AW17: =AQ17+AT17+AG17 -> 25800.49 | AX17: 1795.09 | AY17: 27595.58 | BR17: 32700
A18: 16 | B18: 18104117A1DD | C18: 常州金坛区10kV罗村线洪村变更换工程 | E18: 72700 | I18: 0.016 | J18: =SUMIF(Sheet2!AH:AH,B18,Sheet2!AJ:AJ) -> 0 | K18: =SUMIF(Sheet2!AH:AH,B18,Sheet2!AK:AK) -> 0.016 | L18: =VLOOKUP(B18,Sheet2!AH:AI,2,0) -> 0 | U18: =VLOOKUP(B18,Sheet2!AD:AF,2,0) -> 2017-11-22 | V18: =VLOOKUP(B18,Sheet2!AD:AF,3,0) -> 2017-12-22 | W18: 72700 | X18: 54511.68 | Y18: 54511.68 | Z18: =VLOOKUP(B18,Sheet2!AN:AT,3,0) -> 15.5511 | AA18: =VLOOKUP(B18,Sheet2!AN:AT,4,0) -> 31714.20753 | AB18: =VLOOKUP(B18,Sheet2!AN:AT,5,0) -> 36140.64264 | AC18: =VLOOKUP(B18,Sheet2!AN:AT,6,0) -> 4829.598724 | AD18: =VLOOKUP(B18,Sheet2!AN:AT,7,0) -> 72700 | AE18: =SUMIF(Sheet2!A:A,工作表!B18,Sheet2!B:B) -> 8505.35 | AG18: 8505.35 | AH18: =SUMIF(Sheet2!E:E,工作表!B18,Sheet2!F:F) -> 905.64 | AI18: =SUMIF(Sheet2!H:H,工作表!B18,Sheet2!I:I) -> 1910.82 | AJ18: =SUMIF(Sheet2!K:K,工作表!B18,Sheet2!L:L) -> 23.25 | AK18: =SUMIF(Sheet2!N:N,工作表!B18,Sheet2!O:O) -> 30.04 | AL18: =SUMIF(Sheet2!Q:Q,工作表!B18,Sheet2!R:R) -> 0 | AM18: 54511.68 | AN18: 18188.32 | AO18: 0.2501832187 | AP18: 43136.58 | AQ18: =SUMIF(Sheet2!T:T,工作表!B18,Sheet2!U:U) -> 33316.34 | AR18: =SUMIF(Sheet2!T:T,B18,Sheet2!W:W) -> 1 | AS18: =VLOOKUP(B18,Sheet2!T:X,5,FALSE) -> 10kV变压器,400kVA,普通,非晶合金,油浸 | AT18: =SUMIF(Sheet2!Z:Z,工作表!B18,Sheet2!AA:AA) -> 9820.24 | AW18: =AQ18+AT18+AG18 -> 51641.93 | AX18: 2869.75 | AY18: 54511.68 | BR18: 72700
A19: 17 | B19: 18104117A1DE | C19: 常州金坛区10kV民丰线毛白塘支五家站配变改造工程 | E19: 92400 | I19: 0.034 | J19: =SUMIF(Sheet2!AH:AH,B19,Sheet2!AJ:AJ) -> 0.018 | K19: =SUMIF(Sheet2!AH:AH,B19,Sheet2!AK:AK) -> 0.016 | L19: =VLOOKUP(B19,Sheet2!AH:AI,2,0) -> 架空绝缘导线,AC10kV,JKLYJ,150 | U19: =VLOOKUP(B19,Sheet2!AD:AF,2,0) -> 2018-02-07 | V19: =VLOOKUP(B19,Sheet2!AD:AF,3,0) -> 2018-03-07 | W19: 92400 | X19: 68109.89 | Y19: 68109.89 | Z19: =VLOOKUP(B19,Sheet2!AN:AT,3,0) -> 591.6724078 | AA19: =VLOOKUP(B19,Sheet2!AN:AT,4,0) -> 38097.50721 | AB19: =VLOOKUP(B19,Sheet2!AN:AT,5,0) -> 44223.15869 | AC19: =VLOOKUP(B19,Sheet2!AN:AT,6,0) -> 9487.661699 | AD19: =VLOOKUP(B19,Sheet2!AN:AT,7,0) -> 92400 | AE19: =SUMIF(Sheet2!A:A,工作表!B19,Sheet2!B:B) -> 11950.11 | AG19: 11950.11 | AH19: =SUMIF(Sheet2!E:E,工作表!B19,Sheet2!F:F) -> 1044.41 | AI19: =SUMIF(Sheet2!H:H,工作表!B19,Sheet2!I:I) -> 4520.85 | AJ19: =SUMIF(Sheet2!K:K,工作表!B19,Sheet2!L:L) -> 25.98 | AK19: =SUMIF(Sheet2!N:N,工作表!B19,Sheet2!O:O) -> 113.48 | AL19: =SUMIF(Sheet2!Q:Q,工作表!B19,Sheet2!R:R) -> 0 | AM19: 68109.89 | AN19: 24290.11 | AO19: 0.2628799784 | AP19: 50455.06 | AQ19: =SUMIF(Sheet2!T:T,工作表!B19,Sheet2!U:U) -> 28464.87 | AR19: =SUMIF(Sheet2!T:T,B19,Sheet2!W:W) -> 1 | AS19: =VLOOKUP(B19,Sheet2!T:X,5,FALSE) -> 10kV变压器,400kVA,普通,硅钢片,油浸 | AT19: =SUMIF(Sheet2!Z:Z,工作表!B19,Sheet2!AA:AA) -> 21990.19 | AV19: =AT19+AG19 -> 33940.3 | AW19: =AQ19 -> 28464.87 | AX19: 5704.72 | AY19: 68109.89 | BR19: 92400
A20: 18 | B20: 18104117A1DF | C20: 常州金坛区10kV思模线天赐园小区1#、3#箱变改造工程 | E20: 302300 | I20: 0 | J20: =SUMIF(Sheet2!AH:AH,B20,Sheet2!AJ:AJ) -> 0 | K20: =SUMIF(Sheet2!AH:AH,B20,Sheet2!AK:AK) -> 0 | L20: =VLOOKUP(B20,Sheet2!AH:AI,2,0) ->  | U20: =VLOOKUP(B20,Sheet2!AD:AF,2,0) -> 2018-02-02 | V20: =VLOOKUP(B20,Sheet2!AD:AF,3,0) -> 2018-03-26 | W20: 302300 | X20: 326450.75 | Y20: 326450.75 | Z20: =VLOOKUP(B20,Sheet2!AN:AT,3,0) -> 0 | AA20: =VLOOKUP(B20,Sheet2!AN:AT,4,0) -> 19040.89473 | AB20: =VLOOKUP(B20,Sheet2!AN:AT,5,0) -> 271851.1271 | AC20: =VLOOKUP(B20,Sheet2!AN:AT,6,0) -> 11407.97814 | AD20: =VLOOKUP(B20,Sheet2!AN:AT,7,0) -> 302300 | AE20: =SUMIF(Sheet2!A:A,工作表!B20,Sheet2!B:B) -> 48648.07 | AG20: 48648.07 | AH20: =SUMIF(Sheet2!E:E,工作表!B20,Sheet2!F:F) -> 375.58 | AI20: =SUMIF(Sheet2!H:H,工作表!B20,Sheet2!I:I) -> 7423.88 | AJ20: =SUMIF(Sheet2!K:K,工作表!B20,Sheet2!L:L) -> 181.04 | AK20: =SUMIF(Sheet2!N:N,工作表!B20,Sheet2!O:O) -> 282.13 | AL20: =SUMIF(Sheet2!Q:Q,工作表!B20,Sheet2!R:R) -> 0 | AM20: 326450.75 | AN20: -24150.75 | AO20: -0.07989000992 | AP20: 269540.05 | AQ20: =SUMIF(Sheet2!T:T,工作表!B20,Sheet2!U:U) -> 269000 | AR20: =SUMIF(Sheet2!T:T,B20,Sheet2!W:W) -> 2 | AS20: =VLOOKUP(B20,Sheet2!T:X,5,FALSE) -> 10kV箱式变电站,500kVA,欧式,硅钢片,普通,有环网柜 | AT20: =SUMIF(Sheet2!Z:Z,工作表!B20,Sheet2!AA:AA) -> 540.05 | AW20: =AQ20+AT20+AG20 -> 318188.12 | AX20: 8262.63 | AY20: 326450.75 | BR20: 302300
E21: =SUM(E3:E20) -> 5791800 | G21: 电网建设与改造 | I21: =SUM(I3:I20) -> 1.005 | J21: =SUM(J3:J20) -> 0.811 | K21: =SUM(K3:K20) -> 0.194 | M21: 10kV/1回 | O21: =SUM(O3:O20) -> 0 | P21: =SUM(P3:P20) -> 0 | Q21: 常州金坛天源电力设计有限公司 | R21: 江苏兴力建设集团有限公司 | S21: 常州华科电力建设有限公司 | T21: 江苏省电力公司、2017年6月15日、苏电运检〔2017〕533号、常供电运检〔2017〕247号 | U21: =MINA(U3:U20) -> 2017-09-10 | V21: =MAXA(V3:V20) -> 2018-11-30 | W21: =SUM(W3:W20) -> 5791800 | X21: 5857471.34 | Y21: 5857471.34 | Z21: 2066077.342 | AA21: 2148134.481 | AB21: 1050037.598 | AC21: 527550.5785 | AD21: 5791800 | AE21: 2318275.7 | AF21: 0 | AG21: 2318275.7 | AH21: 83322.28 | AI21: 292859.6 | AJ21: 1725.19 | AK21: 13690.12 | AL21: 324989.32 | AM21: 5857471.34 | AN21: -65671.34 | AO21: -0.01133867537 | AP21: =SUM(AP3:AP20) -> 2822609.13 | AQ21: =SUM(AQ3:AQ20) -> 919240.61 | AT21: =SUM(AT3:AT20) -> 1903368.52 | AU21: 2621248.75 | AV21: 1453204.47 | AW21: 1066431.61 | AX21: 716586.51 | AY21: 5857471.34 | AZ21: 0 | BA21: 0 | BB21: 0 | BC21: 0 | BD21: 0 | BE21: 0 | BF21: 0 | BG21: 0 | BH21: 0 | BI21: 0 | BJ21: 0 | BK21: 0 | BL21: 0 | BM21: 0 | BN21: 0 | BO21: 0 | BP21: 0 | BQ21: 0 | BR21: 5791800
AG22: =[3]施工费用!$M$102 -> 2473398.92 | AH22: =[3]监理费用!$M$81 -> 96451.83 | AI22: =[3]设计费用!$M$82 -> 251193.6 | AJ22: =[3]建设期贷款利息!$M$122 -> 1968.91 | AK22: ='[3]项目管理经费 - 会议费'!$M$60+'[3]项目管理经费 -租车费、结算审计费'!$M$34 -> 89101.19 | AL22: =[3]线路施工赔偿费!$M$40 -> 152945 | AP22: =[3]物资!$M$1454 -> 4476694.76 | AV22: =AT21+AG21 -> 4221644.22
AG23: =AG21-AG22 -> -155123.22 | AH23: =AH21-AH22 -> -13129.55 | AI23: 41666 | AJ23: -243.72 | AK23: -75411.07 | AL23: 172044.32 | AP23: =AP21-AP22 -> -1654085.63 | AV23: 64567901.82 | AW23: 25764398.95 | AX23: 11533926.54
AV25: =AV22-AV21 -> 2768439.75
AG27: =AG25-AG21 -> -2318275.7

Sheet Sheet2
A1: 项目定义编码 | B1: 行项目金额 | C1: 施工费 | D1: 监理费 | E1: 项目定义编码 | F1: 行项目金额 | G1: 设计费 | H1: 项目定义编码 | I1: 行项目金额 | J1: 建设期贷款利息 | K1: 项目定义编码 | L1: 行项目金额 | M1: 管理费 | N1: 项目定义编码 | O1: 行项目金额 | P1: 线路施工赔偿费 | Q1: 项目定义编码 | R1: 行项目金额 | S1: 设备费 | T1: 项目定义编码 | U1: 行项目金额 | V1: 单位 | W1: 台数 | X1: 物料描述 | Y1: 材料费 | Z1: 项目定义编码 | AA1: 行项目金额 | AB1: 线路长度（KM）或配变数量 | AC1: 开竣工时间 | AD1: 工程编号 | AE1: 开工时间 | AF1: 竣工时间 | AG1: 电缆 | AH1: 项目定义编码 | AI1: 项目定义描述 | AJ1: 10kV | AK1: 低压 | AM1: 预算拆分 | AN1: 项目定义 | AO1: 项目名称 | AP1: 建筑工程费 | AQ1: 安装工程费 | AR1: 设备购置费 | AS1: 其它费用 | AT1: 工程总造价 | AX1: 项目定义 | AY1: 项目名称 | AZ1: 项目估算（万元） | BA1: 发文批次
A2: 18104117A1A3 | B2: 418551.71 | E2: 18104117A1A3 | F2: 29184.72 | H2: 18104117A106 | I2: 11465.28 | K2: 18104117A105 | L2: 8.42 | N2: 18104117A105 | O2: 740 | Q2: 18104117A1A3 | R2: 43689.32 | T2: 18104117A102 | U2: 117527.18 | V2: 套 | W2: 1 | X2: 10kV箱式变电站,630kVA,美式,硅钢片,普通,无环网柜 | Z2: 18104117A1A3 | AA2: 373027.94 | AD2: 18104117A102 | AE2: 2018-10-15 | AF2: 2018-11-26 | AH2: 18104117A106 | AI2: 架空绝缘导线,AC10kV,JKLYJ,150 | AJ2: 0.009 | AN2: 18104117A102 | AO2: 常州金坛区10kV电胜线城东下塘2队东新建工程 | AP2: 60326.56653 | AQ2: 64292.69905 | AR2: 120983.1247 | AS2: 17697.60973 | AT2: 263300
A3: 18104117A19F | B3: 482324.77 | E3: 18104117A19F | F3: 28698.96 | H3: 18104117A102 | I3: 11356.79 | K3: 18104117A19F | L3: 1.88 | N3: 18104117A102 | O3: 900 | Q3: 18104117A1A3 | R3: 49000 | T3: 18104117A105 | U3: 88459.23 | V3: 套 | W3: 1 | X3: 10kV箱式变电站,400kVA,美式,硅钢片,普通,无环网柜 | Z3: 18104117A106 | AA3: 35.64 | AD3: 18104117A105 | AE3: 2018-10-08 | AF3: 2018-11-09 | AH3: 18104117A106 | AI3: 电力电缆,AC10kV,YJV,70,3,22,ZC,无阻水 | AJ3: 0.15 | AN3: 18104117A105 | AO3: 常州金坛区10kV直溪线庄房3#变新建工程 | AP3: 57163.8437 | AQ3: 51660.86372 | AR3: 93352.1004 | AS3: 15723.19218 | AT3: 217900
A4: 18104117A1A3 | B4: 0.01 | E4: 18104117A106 | F4: 2931.56 | H4: 18104117A1A3 | I4: 39490.87 | K4: 18104117A1A3 | L4: 39.26 | N4: 18104117A1D8 | O4: 20.77 | Q4: 18104117A1A3 | R4: 153800 | T4: 18104117A106 | U4: 88459.22 | V4: 套 | W4: 1 | X4: 10kV箱式变电站,400kVA,美式,硅钢片,普通,无环网柜 | Z4: 18104117A106 | AA4: 35.64 | AD4: 18104117A106 | AE4: 2018-08-20 | AF4: 2018-10-24 | AH4: 18104117A102 | AI4: 架空绝缘导线,AC10kV,JKLYJ,150 | AJ4: 0.015 | AN4: 18104117A106 | AO4: 常州金坛区10kV白塔线白塔北商品房1#变改造工程 | AP4: 55746.65044 | AQ4: 72538.18691 | AR4: 95255.99538 | AS4: 20559.16728 | AT4: 244100
A5: 18104117A1DE | B5: 11950.11 | E5: 18104117A102 | F5: 2849.1 | H5: 18104117A19F | I5: 19751.29 | K5: 18104117A102 | L5: 12.27 | N5: 18104117A1DB | O5: 28.7 | Q5: 18104117A19F | R5: 42500 | T5: 18104117A1D6 | U5: 33316.34 | V5: 台 | W5: 1 | X5: 10kV变压器,400kVA,普通,非晶合金,油浸 | Z5: 18104117A106 | AA5: 254.55 | AD5: 18104117A19F | AE5: 2018-03-15 | AF5: 2018-04-11 | AH5: 18104117A102 | AI5: 电力电缆,AC10kV,YJV,70,3,22,ZC,无阻水 | AJ5: 0.115 | AN5: 18104117A19F | AO5: 常州金坛区南环二路（兴隆路-良湖路）新建电缆管沟工程 | AP5: 950892.2867 | AQ5: 304857.6974 | AR5: 0 | AS5: 164150.0159 | AT5: 1419900
A6: 18104117A1DA | B6: 20179.51 | E6: 18104117A105 | F6: 2487.92 | H6: 18104117A105 | I6: 10150.38 | K6: 18104117A106 | L6: 9.51 | N6: 18104117A1D5 | O6: 313.51 | Q6: 18104117A106 | R6: 19500 | T6: 18104117A1DF | U6: 134500 | V6: 套 | W6: 1 | X6: 10kV箱式变电站,500kVA,欧式,硅钢片,普通,有环网柜 | Z6: 18104117A106 | AA6: 75.58 | AD6: 18104117A1A3 | AE6: 2017-09-10 | AF6: 2017-11-11 | AH6: 18104117A1D9 | AI6: 架空绝缘导线,AC10kV,JKLYJ,150 | AJ6: 0.018 | AN6: 18104117A1A3 | AO6: 常州金坛区S239省道北侧新建电缆管沟工程 | AP6: 840024.3466 | AQ6: 436976.0191 | AR6: 0 | AS6: 166799.6343 | AT6: 1443800
A7: 18104117A1D7 | B7: 2835.85 | E7: 18104117A1D5 | F7: 5784.29 | H7: 18104117A19F | I7: 82391.27 | K7: 18104117A19F | L7: 66.67 | N7: 18104117A1D7 | O7: 12.07 | Q7: 18104117A102 | R7: 16500 | T7: 18104117A1DE | U7: 28464.87 | V7: 台 | W7: 1 | X7: 10kV变压器,400kVA,普通,硅钢片,油浸 | Z7: 18104117A106 | AA7: 11871.81 | AD7: 18104117A1D3 | AE7: 2018-01-20 | AF7: 2018-03-18 | AH7: 18104117A1DE | AI7: 架空绝缘导线,AC10kV,JKLYJ,150 | AJ7: 0.018 | AN7: 18104117A1D3 | AO7: 常州金坛区10kV云住线、窑上线新增动补装置工程 | AP7: 0 | AQ7: 243076.2797 | AR7: 3132.647774 | AS7: 26791.07249 | AT7: 273000
A8: 18104117A1D8 | B8: 5436.35 | E8: 18104117A1D9 | F8: 1065.97 | H8: 18104117A1A3 | I8: 64269.51 | K8: 18104117A1A3 | L8: 351.51 | N8: 18104117A1D6 | O8: 25.4 | T8: 18104117A1DF | U8: 134500 | V8: 套 | W8: 1 | X8: 10kV箱式变电站,500kVA,欧式,硅钢片,普通,有环网柜 | Z8: 18104117A106 | AA8: 9185.49 | AD8: 18104117A1D4 | AE8: 2018-03-01 | AF8: 2018-11-30 | AH8: 18104117A1D5 | AI8: 架空绝缘导线,AC10kV,JKLYJ,150 | AJ8: 0.246 | AN8: 18104117A1D4 | AO8: 常州金坛区城南花园、金源福地等变电所改造工程 | AP8: 46448.25942 | AQ8: 670448.025 | AR8: 41616.91224 | AS8: 27486.80339 | AT8: 786000
A9: 18104117A1D9 | B9: 12963.54 | E9: 18104117A1D3 | F9: 5411.01 | H9: 18104117A1DF | I9: 7423.88 | K9: 18104117A105 | L9: 73.1 | N9: 18104117A19F | O9: 5266.08 | T9: 18104117A1DA | U9: 110400 | V9: 套 | W9: 1 | X9: 10kV箱式变电站,400kVA,欧式,硅钢片,普通,有环网柜 | Z9: 18104117A106 | AA9: 409.32 | AD9: 18104117A1D5 | AE9: 2018-03-24 | AF9: 2018-04-24 | AH9: 18104117A1D3 | AI9: 架空绝缘导线,AC10kV,JKLYJ,150 | AJ9: 0.08 | AN9: 18104117A1D5 | AO9: 常州金坛区10kV长兴线小木桥3#配变新增工程 | AP9: 46448.25942 | AQ9: 93248.02496 | AR9: 41616.91224 | AS9: 27486.80339 | AT9: 208800
A10: 18104117A1D5 | B10: 59028.2 | E10: 18104117A1DA | F10: 342.05 | H10: 18104117A1D6 | I10: 1654.61 | K10: 18104117A102 | L10: 97.2 | N10: 18104117A1D9 | O10: 117.37 | T10: 18104117A1D5 | U10: 28464.87 | V10: 台 | W10: 1 | X10: 10kV变压器,400kVA,普通,硅钢片,油浸 | Z10: 18104117A106 | AA10: 916.67 | AD10: 18104117A1D6 | AE10: 2017-12-15 | AF10: 2018-01-15 | AH10: 18104117A1D3 | AI10: 架空绝缘导线,AC10kV,JKYJ,50 | AJ10: 0.08 | AN10: 18104117A1D6 | AO10: 常州金坛区10kV茅东线西阳1#变更换工程 | AP10: 15.5511 | AQ10: 28830.52526 | AR10: 34313.72039 | AS10: 4040.203252 | AT10: 67200
A11: 18104117A1DC | B11: 3809.95 | E11: 18104117A1D8 | F11: 323 | H11: 18104117A1DD | I11: 1910.82 | K11: 18104117A1D7 | L11: 10.94 | N11: 18104117A1A3 | O11: 2709.89 | T11: 18104117A1DC | U11: 21749.38 | V11: 台 | W11: 1 | X11: 10kV变压器,200kVA,普通,非晶合金,油浸 | Z11: 18104117A106 | AA11: 578.33 | AD11: 18104117A1D7 | AE11: 2018-01-05 | AF11: 2018-01-19 | AH11: 18104117A105 | AI11: 架空绝缘导线,AC10kV,JKLYJ,150 | AJ11: 0.02 | AN11: 18104117A1D7 | AO11: 常州金坛区10kV集镇线圩田村支上汤站配变改造工程 | AP11: 0 | AQ11: 3634.649667 | AR11: 25011.72343 | AS11: 2953.626905 | AT11: 31600
A12: 18104117A1D6 | B12: 7029.99 | E12: 18104117A1DF | F12: 375.57 | H12: 18104117A1D5 | I12: 9491.62 | K12: 18104117A1DF | L12: 135.37 | N12: 18104117A1DE | O12: 113.48 | T12: 18104117A1DD | U12: 33316.34 | V12: 台 | W12: 1 | X12: 10kV变压器,400kVA,普通,非晶合金,油浸 | Z12: 18104117A106 | AA12: 10.44 | AD12: 18104117A1D8 | AE12: 2018-01-05 | AF12: 2018-01-19 | AH12: 18104117A105 | AI12: 电力电缆,AC10kV,YJV,70,3,22,ZC,无阻水 | AJ12: 0.06 | AN12: 18104117A1D8 | AO12: 常州金坛区10kV尧塘线尧塘集镇4#变配变改造工程 | AP12: 0 | AQ12: 9661.401219 | AR12: 30496.77514 | AS12: 4341.823641 | AT12: 44500
A13: 18104117A1DD | B13: 8505.35 | E13: 18104117A1DD | F13: 905.63 | H13: 18104117A1DB | I13: 1910.82 | K13: 18104117A1DC | L13: 10.94 | N13: 18104117A1DC | O13: 17.13 | T13: 18104117A1D9 | U13: 28464.86 | V13: 台 | W13: 1 | X13: 10kV变压器,400kVA,普通,硅钢片,油浸 | Z13: 18104117A106 | AA13: 35.64 | AD13: 18104117A1D9 | AE13: 2018-02-08 | AF13: 2018-03-08 | AH13: 18104117A1D9 | AK13: 0.016 | AN13: 18104117A1D9 | AO13: 常州金坛区10kV东明线城东界沟站配变改造工程 | AP13: 591.6724078 | AQ13: 34217.55767 | AR13: 39320.2631 | AS13: 9170.506821 | AT13: 83300
A14: 18104117A1DB | B14: 8458.37 | E14: 18104117A1DE | F14: 1044.42 | H14: 18104117A1DA | I14: 3535.58 | K14: 18104117A1DD | L14: 16.76 | N14: 18104117A1DA | O14: 121.53 | T14: 18104117A1D7 | U14: 21749.38 | V14: 台 | W14: 1 | X14: 10kV变压器,200kVA,普通,非晶合金,油浸 | Z14: 18104117A106 | AA14: 14.7 | AD14: 18104117A1DA | AE14: 2018-02-02 | AF14: 2018-03-16 | AH14: 18104117A1DD | AK14: 0.016 | AN14: 18104117A1DA | AO14: 常州金坛区10kV愚池线愚池2#箱变改造工程 | AP14: 7797.131301 | AQ14: 9538.325305 | AR14: 111570.1288 | AS14: 6094.414561 | AT14: 135000
A15: 18104117A1D3 | B15: 213761.91 | E15: 18104117A1D7 | F15: 71.61 | H15: 18104117A1D8 | I15: 2249.66 | K15: 18104117A1DA | L15: 55.56 | N15: 18104117A1D3 | O15: 1707.91 | T15: 18104117A1D8 | U15: 21749.38 | V15: 台 | W15: 1 | X15: 10kV变压器,200kVA,普通,非晶合金,油浸 | Z15: 18104117A106 | AA15: 40.73 | AD15: 18104117A1DB | AE15: 2017-11-22 | AF15: 2017-12-22 | AH15: 18104117A1D6 | AK15: 0.016 | AN15: 18104117A1DB | AO15: 常州金坛区10kV罗村线赤岗村2#变更换工程 | AP15: 15.5511 | AQ15: 31680.20753 | AR15: 36140.64264 | AS15: 5463.598724 | AT15: 73300
A16: 18104117A19F | B16: 202162.36 | E16: 18104117A1DB | F16: 905.63 | H16: 18104117A1DC | I16: 1672.66 | K16: 18104117A1D6 | L16: 16.76 | N16: 18104117A1DD | O16: 30.04 | T16: 18104117A1DB | U16: 28464.87 | V16: 台 | W16: 1 | X16: 10kV变压器,400kVA,普通,硅钢片,油浸 | Z16: 18104117A106 | AA16: 9.8 | AD16: 18104117A1DC | AE16: 2018-01-08 | AF16: 2018-01-12 | AH16: 18104117A1DB | AK16: 0.016 | AN16: 18104117A1DC | AO16: 常州金坛区10kV岸头线岸头亚明机械厂配变改造工程 | AP16: 0 | AQ16: 4621.40921 | AR16: 25011.72343 | AS16: 3066.867362 | AT16: 32700
A17: 18104117A1A3 | B17: 221984.11 | E17: 18104117A1DC | F17: 90.65 | H17: 18104117A1D3 | I17: 13670.16 | K17: 18104117A1D9 | L17: 18.57 | N17: 18104117A1DF | O17: 282.13 | T17: 18104117A1DB | U17: 32760.42 | V17: 台 | W17: 1 | X17: 10kV变压器,400kVA,普通,非晶合金,油浸 | Z17: 18104117A106 | AA17: 4.9 | AD17: 18104117A1DD | AE17: 2017-11-22 | AF17: 2017-12-22 | AH17: 18104117A1D8 | AK17: 0.008 | AN17: 18104117A1DD | AO17: 常州金坛区10kV罗村线洪村变更换工程 | AP17: 15.5511 | AQ17: 31714.20753 | AR17: 36140.64264 | AS17: 4829.598724 | AT17: 72700
A18: 18104117A1A3 | B18: 159418.85 | E18: 18104117A1D6 | F18: 850.18 | H18: 18104117A1D9 | I18: 4324.35 | K18: 18104117A1DB | L18: 14.32 | N18: 18104117A106 | O18: 404.31 | T18: 18104117A1DB | U18: -33105.73 | V18: 台 | W18: -1 | X18: 10kV变压器,400kVA,普通,非晶合金,油浸 | Z18: 18104117A106 | AA18: 22.86 | AD18: 18104117A1DE | AE18: 2018-02-07 | AF18: 2018-03-07 | AH18: 18104117A1DE | AK18: 0.016 | AN18: 18104117A1DE | AO18: 常州金坛区10kV民丰线毛白塘支五家站配变改造工程 | AP18: 591.6724078 | AQ18: 38097.50721 | AR18: 44223.15869 | AS18: 9487.661699 | AT18: 92400
A19: 18104117A1DF | B19: 48648.07 | E19: 18104117A1DE | F19: -0.01 | H19: 18104117A1D7 | I19: 1619.2 | K19: 18104117A1D5 | L19: 18.57 | N19: 18104117A102 | O19: 879.8 | Z19: 18104117A106 | AA19: 39.54 | AD19: 18104117A1DF | AE19: 2018-02-02 | AF19: 2018-03-26 | AH19: 18104117A1D5 | AK19: 0.016 | AN19: 18104117A1DF | AO19: 常州金坛区10kV思模线天赐园小区1#、3#箱变改造工程 | AP19: 0 | AQ19: 19040.89473 | AR19: 271851.1271 | AS19: 11407.97814 | AT19: 302300
A20: 18104117A19F | B20: 190319.17 | E20: 18104117A1DD | F20: 0.01 | H20: 18104117A1DE | I20: 4520.85 | K20: 18104117A1DE | L20: 18.57 | Z20: 18104117A106 | AA20: 59.51 | AH20: 18104117A106 | AK20: 0.09
A21: 18104117A106 | B21: 81162 | E21: 18104117A1DF | F21: 0.01 | K21: 18104117A1D8 | L21: 15.18 | Z21: 18104117A106 | AA21: 138.03
A22: 18104117A102 | B22: 78282.06 | K22: 18104117A1D4 | L22: 351.87 | Z22: 18104117A106 | AA22: 66.85
A23: 18104117A105 | B23: 43046.87 | K23: 18104117A1DE | L23: 7.41 | Z23: 18104117A106 | AA23: 101.82
A24: 18104117A102 | B24: -0.02 | K24: 18104117A1D3 | L24: 1.16 | Z24: 18104117A106 | AA24: 32.21
A25: 18104117A105 | B25: 0.03 | K25: 18104117A1D5 | L25: 21.53 | Z25: 18104117A106 | AA25: 62.65
A26: 18104117A1D4 | B26: 38416.58 | K26: 18104117A1DB | L26: 8.44 | Z26: 18104117A106 | AA26: 52.21
K27: 18104117A1D4 | L27: 118.63 | Z27: 18104117A106 | AA27: 213.38
K28: 18104117A1D6 | L28: 6.39 | Z28: 18104117A106 | AA28: 88.75
K29: 18104117A1D7 | L29: 3.69 | Z29: 18104117A106 | AA29: 9.52
K30: 18104117A1D9 | L30: 7.5 | Z30: 18104117A106 | AA30: 122.06
K31: 18104117A1DD | L31: 6.49 | Z31: 18104117A106 | AA31: 30.55
K32: 18104117A1DA | L32: 18.76 | Z32: 18104117A106 | AA32: 15.27 | AH32: 总计
K33: 18104117A1D8 | L33: 5.5 | Z33: 18104117A106 | AA33: 20.36
K34: 18104117A1DF | L34: 45.67 | Z34: 18104117A106 | AA34: 40.73
K35: 18104117A1DC | L35: 3.71 | Z35: 18104117A102 | AA35: 24.51
K36: 18104117A1D3 | L36: 92.55 | Z36: 18104117A102 | AA36: 4.9
K37: 18104117A1D3 | L37: 34.53 | Z37: 18104117A102 | AA37: 49.28
Z38: 18104117A106 | AA38: 17884.6
Z39: 18104117A102 | AA39: 10.18
Z40: 18104117A102 | AA40: 9.8
Z41: 18104117A102 | AA41: 9.8
Z42: 18104117A102 | AA42: 15.27
Z43: 18104117A102 | AA43: 125.97
Z44: 18104117A102 | AA44: 13711.53
Z45: 18104117A102 | AA45: 15598
Z46: 18104117A102 | AA46: 916.67
Z47: 18104117A102 | AA47: 578.33
Z48: 18104117A102 | AA48: 254.55
Z49: 18104117A102 | AA49: 35.64
Z50: 18104117A102 | AA50: 92.02
Z51: 18104117A102 | AA51: 152.73
Z52: 18104117A102 | AA52: 61.09
Z53: 18104117A102 | AA53: 50.91
Z54: 18104117A102 | AA54: 213.38
Z55: 18104117A102 | AA55: 39.54
Z56: 18104117A102 | AA56: 16.67
Z57: 18104117A102 | AA57: 35.64
Z58: 18104117A102 | AA58: 35.64
Z59: 18104117A102 | AA59: 15.27
Z60: 18104117A102 | AA60: 20.36
Z61: 18104117A102 | AA61: 10.18
Z62: 18104117A102 | AA62: 76.29
Z63: 18104117A102 | AA63: 86.55
Z64: 18104117A102 | AA64: 9.52
Z65: 18104117A1A3 | AA65: 44862.75
Z66: 18104117A19F | AA66: 249237.48
Z67: 18104117A19F | AA67: 230046.19
Z68: 18104117A1D4 | AA68: 175655
Z69: 18104117A1D4 | AA69: 523556.04
Z70: 18104117A1D8 | AA70: 8427.51
Z71: 18104117A1D9 | AA71: 8427.51
Z72: 18104117A1DE | AA72: 8427.52
Z73: 18104117A1D5 | AA73: 8427.51
Z74: 18104117A1D9 | AA74: 13.4
Z75: 18104117A1D9 | AA75: 44.67
Z76: 18104117A1D9 | AA76: 8.05
Z77: 18104117A1D9 | AA77: 19.76
Z78: 18104117A1D9 | AA78: 429.46
Z79: 18104117A1D9 | AA79: 25.72
Z80: 18104117A1D9 | AA80: 58.88
Z81: 18104117A1D9 | AA81: 34.39
Z82: 18104117A1D9 | AA82: 150.42
Z83: 18104117A1D9 | AA83: 43.01
Z84: 18104117A1D9 | AA84: 8.51
Z85: 18104117A1D9 | AA85: 45.71
Z86: 18104117A1D9 | AA86: 156.06
Z87: 18104117A1D9 | AA87: 50.77
Z88: 18104117A1D9 | AA88: 59.51
Z89: 18104117A1D9 | AA89: 40.82
Z90: 18104117A1D9 | AA90: 44.31
Z91: 18104117A1D9 | AA91: 46.58
Z92: 18104117A1D9 | AA92: 213.38
Z93: 18104117A1DC | AA93: 22.86
Z94: 18104117A1DC | AA94: 30.51
Z95: 18104117A1D9 | AA95: 9.52
Z96: 18104117A1D9 | AA96: 106.8
Z97: 18104117A1D9 | AA97: 149.04
Z98: 18104117A1D9 | AA98: 275.07
Z99: 18104117A1D9 | AA99: 1328.98
Z100: 18104117A1D9 | AA100: 5589.93
Z101: 18104117A1D9 | AA101: 916.67
Z102: 18104117A1D9 | AA102: 578.33
Z103: 18104117A1DB | AA103: 213.38
Z104: 18104117A1DB | AA104: 40.82
Z105: 18104117A1DB | AA105: 22.86
Z106: 18104117A1DD | AA106: 5589.93
Z107: 18104117A1DD | AA107: 1328.98
Z108: 18104117A1DD | AA108: 275.07
Z109: 18104117A1DD | AA109: 149.04
Z110: 18104117A1DD | AA110: 106.8
Z111: 18104117A1DD | AA111: 9.52
Z112: 18104117A1DD | AA112: 213.38
Z113: 18104117A1DD | AA113: 40.82
Z114: 18104117A1DD | AA114: 22.86
Z115: 18104117A1DD | AA115: 916.67
Z116: 18104117A1DD | AA116: 578.33
Z117: 18104117A1D6 | AA117: 5589.93
Z118: 18104117A1DB | AA118: 578.33
Z119: 18104117A1DB | AA119: 916.67
Z120: 18104117A1D6 | AA120: 916.67
Z121: 18104117A1D6 | AA121: 9.52
Z122: 18104117A1D6 | AA122: 106.8
Z123: 18104117A1D6 | AA123: 149.04
Z124: 18104117A1D6 | AA124: 275.07
Z125: 18104117A1D6 | AA125: 1328.97
Z126: 18104117A1DB | AA126: 5589.93
Z127: 18104117A1DB | AA127: 1328.97
Z128: 18104117A1DB | AA128: 275.07
Z129: 18104117A1DB | AA129: 149.04
Z130: 18104117A1DB | AA130: 106.8
Z131: 18104117A1DB | AA131: 9.52
Z132: 18104117A1D8 | AA132: 2794.97
Z133: 18104117A1D8 | AA133: 1328.97
Z134: 18104117A1D8 | AA134: 137.54
Z135: 18104117A1D8 | AA135: 74.52
Z136: 18104117A1D8 | AA136: 45.77
Z137: 18104117A1DE | AA137: 578.33
Z138: 18104117A1DE | AA138: 916.67
Z139: 18104117A1DE | AA139: 5589.93
Z140: 18104117A1DE | AA140: 1328.98
Z141: 18104117A1DE | AA141: 275.07
Z142: 18104117A1DE | AA142: 149.04
Z143: 18104117A1DE | AA143: 106.8
Z144: 18104117A1DE | AA144: 9.52
Z145: 18104117A1DE | AA145: 150.42
Z146: 18104117A1DE | AA146: 22.86
Z147: 18104117A1DF | AA147: 45.77
Z148: 18104117A1DE | AA148: 59.51
Z149: 18104117A1DE | AA149: 40.82
Z150: 18104117A1DE | AA150: 44.31
Z151: 18104117A1DA | AA151: 22.89
Z152: 18104117A1DE | AA152: 43.67
Z153: 18104117A1DE | AA153: 213.38
Z154: 18104117A1D5 | AA154: 149.04
Z155: 18104117A1D5 | AA155: 275.07
Z156: 18104117A1D5 | AA156: 1133.33
Z157: 18104117A1D5 | AA157: 106.8
Z158: 18104117A1D5 | AA158: 9.52
Z159: 18104117A1D5 | AA159: 213.38
Z160: 18104117A1D5 | AA160: 43.67
Z161: 18104117A1D5 | AA161: 44.31
Z162: 18104117A1D5 | AA162: 122.45
Z163: 18104117A1D5 | AA163: 79.08
Z164: 18104117A1D5 | AA164: 312.12
Z165: 18104117A1D5 | AA165: 792.85
Z166: 18104117A1D5 | AA166: 89.35
Z167: 18104117A1D5 | AA167: 39.52
Z168: 18104117A1D5 | AA168: 68.78
Z169: 18104117A1D5 | AA169: 129.03
Z170: 18104117A1D5 | AA170: 22.86
Z171: 18104117A1D5 | AA171: 578.33
Z172: 18104117A1D5 | AA172: 5589.93
Z173: 18104117A1D5 | AA173: 1328.98
Z174: 18104117A1D5 | AA174: 2055.79
Z175: 18104117A1DF | AA175: 291.72
Z176: 18104117A1DE | AA176: 64.52
Z177: 18104117A1DA | AA177: 291.72
Z178: 18104117A1D5 | AA178: 17630
Z179: 18104117A1D5 | AA179: 3201.94
Z180: 18104117A1D9 | AA180: 3201.94
Z181: 18104117A1DE | AA181: 3201.94
Z182: 18104117A1D8 | AA182: 35.64
Z183: 18104117A1D8 | AA183: 35.64
Z184: 18104117A1D8 | AA184: 10.18
Z185: 18104117A1D8 | AA185: 9.8
Z186: 18104117A1D8 | AA186: 4.9
Z187: 18104117A1D8 | AA187: 30.55
Z188: 18104117A1D5 | AA188: 534.56
Z189: 18104117A1D5 | AA189: 5.09
Z190: 18104117A1D5 | AA190: 35.64
Z191: 18104117A1D5 | AA191: 152.73
Z192: 18104117A1D5 | AA192: 61.09
Z193: 18104117A1D5 | AA193: 35.64
Z194: 18104117A1D5 | AA194: 35.64
Z195: 18104117A1D5 | AA195: 10.18
Z196: 18104117A1D5 | AA196: 14.7
Z197: 18104117A1D5 | AA197: 24.51
Z198: 18104117A1D5 | AA198: 14.7
Z199: 18104117A1D5 | AA199: 15.27
Z200: 18104117A1D5 | AA200: 30.55
... 287 more rows

Sheet 移交资产—配电网资产一览表（OLD） (hidden)
A1: 移交资产—配电网资产一览表
N2: 配竣建04-1表
A3: =封面!A13 -> 编制单位： | F3: =封面!A15 -> 编制日期： | N3: 单位：元
A4: 配电网项目编号 | B4: 配电网资产名称 | C4: 线路起、止地点或配变所在地 | D4: 使用、保管部门 | E4: 计量单位 | F4: 线路长度（KM） | G4: 配变数量 | H4: 导线规格或配变容量(型号) | I4: 建筑费用 | J4: 安装费用 | K4: 设备价值 | L4: 摊入费用 | M4: 交付使用资产价值 | N4: 其中：附属设备价值
A5: 1 | B5: 2 | C5: 3 | D5: 4 | E5: 5 | F5: 6 | H5: 7 | I5: 8 | J5: 9 | K5: 10 | L5: 11 | M5: 12=8+9+10+11 | N5: 13
A6: =工作表!B3 -> 18104117A102 | B6: =工作表!C3 -> 常州金坛区10kV电胜线城东下塘2队东新建工程 | C6: =工作表!H3 -> 0 | D6: 配电检修工区 | E6: =Sheet2!V2 -> 套 | F6: =工作表!I3 -> 0.13 | G6: =工作表!AR3 -> 1 | H6: =工作表!L3 -> 架空绝缘导线,AC10kV,JKLYJ,150 | I6: =工作表!AU3 -> 0 | J6: =工作表!AV3 -> 110542.26 | K6: =工作表!AW3 -> 117527.18 | L6: =工作表!AX3 -> 32595.16 | M6: =SUM(I6:L6) -> 260664.6
A7: =工作表!B4 -> 18104117A105 | B7: =工作表!C4 -> 常州金坛区10kV直溪线庄房3#变新建工程 | C7: =工作表!H4 -> 0 | D7: 配电检修工区 | E7: =Sheet2!V3 -> 套 | F7: =工作表!I4 -> 0.08 | G7: =工作表!AR4 -> 1 | H7: =工作表!L4 -> 架空绝缘导线,AC10kV,JKLYJ,150 | I7: =工作表!AU4 -> 0 | J7: =工作表!AV4 -> 60449.04 | K7: =工作表!AW4 -> 88459.23 | L7: =工作表!AX4 -> 13459.82 | M7: =SUM(I7:L7) -> 162368.09
A8: =工作表!B5 -> 18104117A106 | B8: =工作表!C5 -> 常州金坛区10kV白塔线白塔北商品房1#变改造工程 | C8: =工作表!H5 -> 0 | D8: 配电检修工区 | E8: =Sheet2!V4 -> 套 | F8: =工作表!I5 -> 0.249 | G8: =工作表!AR5 -> 1 | H8: =工作表!L5 -> 架空绝缘导线,AC10kV,JKLYJ,150 | I8: =工作表!AU5 -> 0 | J8: =工作表!AV5 -> 153381.16 | K8: =工作表!AW5 -> 88459.22 | L8: =工作表!AX5 -> 34310.66 | M8: 276151.04
A9: =工作表!B6 -> 18104117A19F | B9: =工作表!C6 -> 常州金坛区南环二路（兴隆路-良湖路）新建电缆管沟工程 | C9: =工作表!H6 -> 0 | D9: 配电检修工区 | E9: =Sheet2!V5 -> 台 | F9: =工作表!I6 -> 0 | G9: =工作表!AR6 -> 0 | H9: =工作表!L6 ->  | I9: =工作表!AU6 -> 1403403.38 | J9: =工作表!AV6 -> 0 | K9: =工作表!AW6 -> 0 | L9: =工作表!AX6 -> 178676.15 | M9: 1582079.53
A10: =工作表!B7 -> 18104117A1A3 | B10: =工作表!C7 -> 常州金坛区S239省道北侧新建电缆管沟工程 | C10: =工作表!H7 -> 0 | D10: 配电检修工区 | E10: =Sheet2!V6 -> 套 | F10: =工作表!I7 -> 0 | G10: =工作表!AR7 -> 0 | H10: =工作表!L7 ->  | I10: =工作表!AU7 -> 1217845.37 | J10: =工作表!AV7 -> 0 | K10: =工作表!AW7 -> 0 | L10: =工作表!AX7 -> 382535.08 | M10: 1600380.45
A11: =工作表!B8 -> 18104117A1D3 | B11: =工作表!C8 -> 常州金坛区10kV云住线、窑上线新增动补装置工程 | C11: =工作表!H8 -> 0 | D11: 配电检修工区 | E11: =Sheet2!V7 -> 台 | F11: =工作表!I8 -> 0.16 | G11: =工作表!AR8 -> 0 | H11: =工作表!L8 -> 架空绝缘导线,AC10kV,JKLYJ,150 | I11: =工作表!AU8 -> 0 | J11: =工作表!AV8 -> 218325.81 | K11: =工作表!AW8 -> 0 | L11: =工作表!AX8 -> 20917.32 | M11: 239243.13
A12: =工作表!B9 -> 18104117A1D4 | B12: =工作表!C9 -> 常州金坛区城南花园、金源福地等变电所改造工程 | C12: =工作表!H9 -> 0 | D12: 配电检修工区 | E12: =Sheet2!V8 -> 套 | F12: =工作表!I9 -> 0 | G12: =工作表!AR9 -> 0 | H12: =工作表!L9 ->  | I12: =工作表!AU9 -> 0 | J12: =工作表!AV9 -> 737627.62 | K12: =工作表!AW9 -> 0 | L12: =工作表!AX9 -> 470.5 | M12: 738098.12
A13: =工作表!B10 -> 18104117A1D5 | B13: =工作表!C10 -> 常州金坛区10kV长兴线小木桥3#配变新增工程 | C13: =工作表!H10 -> 0 | D13: 配电检修工区 | E13: =Sheet2!V9 -> 套 | F13: =工作表!I10 -> 0.262 | G13: =工作表!AR10 -> 1 | H13: =工作表!L10 -> 架空绝缘导线,AC10kV,JKLYJ,150 | I13: =工作表!AU10 -> 0 | J13: =工作表!AV10 -> 102972.83 | K13: =工作表!AW10 -> 28464.87 | L13: =工作表!AX10 -> 15629.52 | M13: 147067.22
A14: =工作表!B11 -> 18104117A1D6 | B14: =工作表!C11 -> 常州金坛区10kV茅东线西阳1#变更换工程 | C14: =工作表!H11 -> 0 | D14: 配电检修工区 | E14: =Sheet2!V10 -> 台 | F14: =工作表!I11 -> 0.016 | G14: =工作表!AR11 -> 1 | H14: =工作表!L11 -> 0 | I14: =工作表!AU11 -> 0 | J14: =工作表!AV11 -> 0 | K14: =工作表!AW11 -> 48961.61 | L14: =工作表!AX11 -> 2553.34 | M14: 51514.95
A15: =工作表!B12 -> 18104117A1D7 | B15: =工作表!C12 -> 常州金坛区10kV集镇线圩田村支上汤站配变改造工程 | C15: =工作表!H12 -> 0 | D15: 配电检修工区 | E15: =Sheet2!V11 -> 台 | F15: =工作表!I12 -> 0 | G15: =工作表!AR12 -> 1 | H15: =工作表!L12 ->  | I15: =工作表!AU12 -> 0 | J15: =工作表!AV12 -> 0 | K15: =工作表!AW12 -> 24585.23 | L15: =工作表!AX12 -> 1717.51 | M15: 26302.74
A16: =工作表!B13 -> 18104117A1D8 | B16: =工作表!C13 -> 常州金坛区10kV尧塘线尧塘集镇4#变配变改造工程 | C16: =工作表!H13 -> 0 | D16: 配电检修工区 | E16: =Sheet2!V12 -> 台 | F16: =工作表!I13 -> 0.008 | G16: =工作表!AR13 -> 1 | H16: =工作表!L13 -> 0 | I16: =工作表!AU13 -> 0 | J16: =工作表!AV13 -> 0 | K16: =工作表!AW13 -> 40121.72 | L16: =工作表!AX13 -> 2614.11 | M16: 42735.83
A17: =工作表!B14 -> 18104117A1D9 | B17: =工作表!C14 -> 常州金坛区10kV东明线城东界沟站配变改造工程 | C17: =工作表!H14 -> 0 | D17: 配电检修工区 | E17: =Sheet2!V13 -> 台 | F17: =工作表!I14 -> 0.034 | G17: =工作表!AR14 -> 1 | H17: =工作表!L14 -> 架空绝缘导线,AC10kV,JKLYJ,150 | I17: =工作表!AU14 -> 0 | J17: =工作表!AV14 -> 35965.45 | K17: =工作表!AW14 -> 28464.86 | L17: =工作表!AX14 -> 5533.76 | M17: 69964.07
A18: =工作表!B15 -> 18104117A1DA | B18: =工作表!C15 -> 常州金坛区10kV愚池线愚池2#箱变改造工程 | C18: =工作表!H15 -> 0 | D18: 配电检修工区 | E18: =Sheet2!V14 -> 台 | F18: =工作表!I15 -> 0 | G18: =工作表!AR15 -> 1 | H18: =工作表!L15 ->  | I18: =工作表!AU15 -> 0 | J18: =工作表!AV15 -> 0 | K18: =工作表!AW15 -> 130894.12 | L18: =工作表!AX15 -> 4073.48 | M18: 134967.6
A19: =工作表!B16 -> 18104117A1DB | B19: =工作表!C16 -> 常州金坛区10kV罗村线赤岗村2#变更换工程 | C19: =工作表!H16 -> 0 | D19: 配电检修工区 | E19: =Sheet2!V16 -> 台 | F19: =工作表!I16 -> 0.016 | G19: =工作表!AR16 -> 1 | H19: =工作表!L16 -> 0 | I19: =工作表!AU16 -> 0 | J19: =工作表!AV16 -> 0 | K19: =工作表!AW16 -> 46398.16 | L19: =工作表!AX16 -> 2867.91 | M19: =SUM(I19:L19) -> 49266.07
A20: =工作表!B17 -> 18104117A1DC | B20: =工作表!C17 -> 常州金坛区10kV岸头线岸头亚明机械厂配变改造工程 | C20: =工作表!H17 -> 0 | D20: 配电检修工区 | E20: =Sheet2!V17 -> 台 | F20: =工作表!I17 -> 0 | G20: =工作表!AR17 -> 1 | H20: =工作表!L17 ->  | I20: =工作表!AU17 -> 0 | J20: =工作表!AV17 -> 0 | K20: =工作表!AW17 -> 25800.49 | L20: =工作表!AX17 -> 1795.09 | M20: 27595.58
A21: =工作表!B18 -> 18104117A1DD | B21: =工作表!C18 -> 常州金坛区10kV罗村线洪村变更换工程 | C21: =工作表!H18 -> 0 | D21: 配电检修工区 | E21: =Sheet2!V18 -> 台 | F21: =工作表!I18 -> 0.016 | G21: =工作表!AR18 -> 1 | H21: =工作表!L18 -> 0 | I21: =工作表!AU18 -> 0 | J21: =工作表!AV18 -> 0 | K21: =工作表!AW18 -> 51641.93 | L21: =工作表!AX18 -> 2869.75 | M21: 54511.68
A22: =工作表!B19 -> 18104117A1DE | B22: =工作表!C19 -> 常州金坛区10kV民丰线毛白塘支五家站配变改造工程 | C22: =工作表!H19 -> 0 | D22: 配电检修工区 | E22: =Sheet2!V19 -> 0 | F22: =工作表!I19 -> 0.034 | G22: =工作表!AR19 -> 1 | H22: =工作表!L19 -> 架空绝缘导线,AC10kV,JKLYJ,150 | I22: =工作表!AU19 -> 0 | J22: =工作表!AV19 -> 33940.3 | K22: =工作表!AW19 -> 28464.87 | L22: =工作表!AX19 -> 5704.72 | M22: 68109.89
A23: =工作表!B20 -> 18104117A1DF | B23: =工作表!C20 -> 常州金坛区10kV思模线天赐园小区1#、3#箱变改造工程 | C23: =工作表!H20 -> 0 | D23: 配电检修工区 | E23: =Sheet2!V20 -> 0 | F23: =工作表!I20 -> 0 | G23: =工作表!AR20 -> 2 | H23: =工作表!L20 ->  | I23: =工作表!AU20 -> 0 | J23: =工作表!AV20 -> 0 | K23: =工作表!AW20 -> 318188.12 | L23: =工作表!AX20 -> 8262.63 | M23: 326450.75
A24: =工作表!#REF! ->  | B24: =工作表!#REF! ->  | C24: =工作表!#REF! ->  | D24: 配电检修工区 | E24: =Sheet2!V21 -> 0 | F24: =工作表!#REF! ->  | G24: =工作表!#REF! ->  | H24: =工作表!#REF! ->  | I24: =工作表!#REF! ->  | J24: =工作表!#REF! ->  | K24: =工作表!#REF! ->  | L24: =工作表!#REF! -> 
A25: =工作表!#REF! ->  | B25: =工作表!#REF! ->  | C25: =工作表!#REF! ->  | D25: 配电检修工区 | E25: =Sheet2!V22 -> 0 | F25: =工作表!#REF! ->  | G25: =工作表!#REF! ->  | H25: =工作表!#REF! ->  | I25: =工作表!#REF! ->  | J25: =工作表!#REF! ->  | K25: =工作表!#REF! ->  | L25: =工作表!#REF! -> 
A26: =工作表!#REF! ->  | B26: =工作表!#REF! ->  | C26: =工作表!#REF! ->  | D26: 配电检修工区 | E26: =Sheet2!V23 -> 0 | F26: =工作表!#REF! ->  | G26: =工作表!#REF! ->  | H26: =工作表!#REF! ->  | I26: =工作表!#REF! ->  | J26: =工作表!#REF! ->  | K26: =工作表!#REF! ->  | L26: =工作表!#REF! -> 
A27: =工作表!#REF! ->  | B27: =工作表!#REF! ->  | C27: =工作表!#REF! ->  | D27: 配电检修工区 | E27: =Sheet2!V24 -> 0 | F27: =工作表!#REF! ->  | G27: =工作表!#REF! ->  | H27: =工作表!#REF! ->  | I27: =工作表!#REF! ->  | J27: =工作表!#REF! ->  | K27: =工作表!#REF! ->  | L27: =工作表!#REF! -> 
A28: =工作表!#REF! ->  | B28: =工作表!#REF! ->  | C28: =工作表!#REF! ->  | D28: 配电检修工区 | E28: =Sheet2!V25 -> 0 | F28: =工作表!#REF! ->  | G28: =工作表!#REF! ->  | H28: =工作表!#REF! ->  | I28: =工作表!#REF! ->  | J28: =工作表!#REF! ->  | K28: =工作表!#REF! ->  | L28: =工作表!#REF! -> 
A29: =工作表!#REF! ->  | B29: =工作表!#REF! ->  | C29: =工作表!#REF! ->  | D29: 配电检修工区 | E29: =Sheet2!V26 -> 0 | F29: =工作表!#REF! ->  | G29: =工作表!#REF! ->  | H29: =工作表!#REF! ->  | I29: =工作表!#REF! ->  | J29: =工作表!#REF! ->  | K29: =工作表!#REF! ->  | L29: =工作表!#REF! -> 
A30: =工作表!#REF! ->  | B30: =工作表!#REF! ->  | C30: =工作表!#REF! ->  | D30: 配电检修工区 | E30: =Sheet2!V27 -> 0 | F30: =工作表!#REF! ->  | G30: =工作表!#REF! ->  | H30: =工作表!#REF! ->  | I30: =工作表!#REF! ->  | J30: =工作表!#REF! ->  | K30: =工作表!#REF! ->  | L30: =工作表!#REF! -> 
A31: =工作表!#REF! ->  | B31: =工作表!#REF! ->  | C31: =工作表!#REF! ->  | D31: 配电检修工区 | E31: =Sheet2!V29 -> 0 | F31: =工作表!#REF! ->  | G31: =工作表!#REF! ->  | H31: =工作表!#REF! ->  | I31: =工作表!#REF! ->  | J31: =工作表!#REF! ->  | K31: =工作表!#REF! ->  | L31: =工作表!#REF! -> 
A32: =工作表!#REF! ->  | B32: =工作表!#REF! ->  | C32: =工作表!#REF! ->  | D32: 配电检修工区 | E32: =Sheet2!V30 -> 0 | F32: =工作表!#REF! ->  | G32: =工作表!#REF! ->  | H32: =工作表!#REF! ->  | I32: =工作表!#REF! ->  | J32: =工作表!#REF! ->  | K32: =工作表!#REF! ->  | L32: =工作表!#REF! -> 
A33: =工作表!#REF! ->  | B33: =工作表!#REF! ->  | C33: =工作表!#REF! ->  | D33: 配电检修工区 | E33: =Sheet2!V31 -> 0 | F33: =工作表!#REF! ->  | G33: =工作表!#REF! ->  | H33: =工作表!#REF! ->  | I33: =工作表!#REF! ->  | J33: =工作表!#REF! ->  | K33: =工作表!#REF! ->  | L33: =工作表!#REF! -> 
A34: =工作表!#REF! ->  | B34: =工作表!#REF! ->  | C34: =工作表!#REF! ->  | D34: 配电检修工区 | E34: =Sheet2!V32 -> 0 | F34: =工作表!#REF! ->  | G34: =工作表!#REF! ->  | H34: =工作表!#REF! ->  | I34: =工作表!#REF! ->  | J34: =工作表!#REF! ->  | K34: =工作表!#REF! ->  | L34: =工作表!#REF! -> 
A35: =工作表!#REF! ->  | B35: =工作表!#REF! ->  | C35: =工作表!#REF! ->  | D35: 配电检修工区 | E35: =Sheet2!V33 -> 0 | F35: =工作表!#REF! ->  | G35: =工作表!#REF! ->  | H35: =工作表!#REF! ->  | I35: =工作表!#REF! ->  | J35: =工作表!#REF! ->  | K35: =工作表!#REF! ->  | L35: =工作表!#REF! -> 
A36: =工作表!#REF! ->  | B36: =工作表!#REF! ->  | C36: =工作表!#REF! ->  | D36: 配电检修工区 | E36: =Sheet2!V34 -> 0 | F36: =工作表!#REF! ->  | G36: =工作表!#REF! ->  | H36: =工作表!#REF! ->  | I36: =工作表!#REF! ->  | J36: =工作表!#REF! ->  | K36: =工作表!#REF! ->  | L36: =工作表!#REF! -> 
A37: =工作表!#REF! ->  | B37: =工作表!#REF! ->  | C37: =工作表!#REF! ->  | D37: 配电检修工区 | E37: =Sheet2!V35 -> 0 | F37: =工作表!#REF! ->  | G37: =工作表!#REF! ->  | H37: =工作表!#REF! ->  | I37: =工作表!#REF! ->  | J37: =工作表!#REF! ->  | K37: =工作表!#REF! ->  | L37: =工作表!#REF! -> 
A38: =工作表!#REF! ->  | B38: =工作表!#REF! ->  | C38: =工作表!#REF! ->  | D38: 配电检修工区 | E38: =Sheet2!V36 -> 0 | F38: =工作表!#REF! ->  | G38: =工作表!#REF! ->  | H38: =工作表!#REF! ->  | I38: =工作表!#REF! ->  | J38: =工作表!#REF! ->  | K38: =工作表!#REF! ->  | L38: =工作表!#REF! -> 
A39: =工作表!#REF! ->  | B39: =工作表!#REF! ->  | C39: =工作表!#REF! ->  | D39: 配电检修工区 | E39: =Sheet2!V37 -> 0 | F39: =工作表!#REF! ->  | G39: =工作表!#REF! ->  | H39: =工作表!#REF! ->  | I39: =工作表!#REF! ->  | J39: =工作表!#REF! ->  | K39: =工作表!#REF! ->  | L39: =工作表!#REF! -> 
A40: =工作表!#REF! ->  | B40: =工作表!#REF! ->  | C40: =工作表!#REF! ->  | D40: 配电检修工区 | E40: =Sheet2!V38 -> 0 | F40: =工作表!#REF! ->  | G40: =工作表!#REF! ->  | H40: =工作表!#REF! ->  | I40: =工作表!#REF! ->  | J40: =工作表!#REF! ->  | K40: =工作表!#REF! ->  | L40: =工作表!#REF! -> 
A41: =工作表!#REF! ->  | B41: =工作表!#REF! ->  | C41: =工作表!#REF! ->  | D41: 配电检修工区 | E41: =Sheet2!V39 -> 0 | F41: =工作表!#REF! ->  | G41: =工作表!#REF! ->  | H41: =工作表!#REF! ->  | I41: =工作表!#REF! ->  | J41: =工作表!#REF! ->  | K41: =工作表!#REF! ->  | L41: =工作表!#REF! -> 
A42: =工作表!#REF! ->  | B42: =工作表!#REF! ->  | C42: =工作表!#REF! ->  | D42: 配电检修工区 | E42: =Sheet2!V40 -> 0 | F42: =工作表!#REF! ->  | G42: =工作表!#REF! ->  | H42: =工作表!#REF! ->  | I42: =工作表!#REF! ->  | J42: =工作表!#REF! ->  | K42: =工作表!#REF! ->  | L42: =工作表!#REF! -> 
A43: =工作表!#REF! ->  | B43: =工作表!#REF! ->  | C43: =工作表!#REF! ->  | D43: 配电检修工区 | E43: =Sheet2!V41 -> 0 | F43: =工作表!#REF! ->  | G43: =工作表!#REF! ->  | H43: =工作表!#REF! ->  | I43: =工作表!#REF! ->  | J43: =工作表!#REF! ->  | K43: =工作表!#REF! ->  | L43: =工作表!#REF! -> 
A44: =工作表!#REF! ->  | B44: =工作表!#REF! ->  | C44: =工作表!#REF! ->  | D44: 配电检修工区 | E44: =Sheet2!V42 -> 0 | F44: =工作表!#REF! ->  | G44: =工作表!#REF! ->  | H44: =工作表!#REF! ->  | I44: =工作表!#REF! ->  | J44: =工作表!#REF! ->  | K44: =工作表!#REF! ->  | L44: =工作表!#REF! -> 
A45: =工作表!#REF! ->  | B45: =工作表!#REF! ->  | C45: =工作表!#REF! ->  | D45: 配电检修工区 | E45: =Sheet2!V43 -> 0 | F45: =工作表!#REF! ->  | G45: =工作表!#REF! ->  | H45: =工作表!#REF! ->  | I45: =工作表!#REF! ->  | J45: =工作表!#REF! ->  | K45: =工作表!#REF! ->  | L45: =工作表!#REF! -> 
A46: =工作表!#REF! ->  | B46: =工作表!#REF! ->  | C46: =工作表!#REF! ->  | D46: 配电检修工区 | E46: =Sheet2!V44 -> 0 | F46: =工作表!#REF! ->  | G46: =工作表!#REF! ->  | H46: =工作表!#REF! ->  | I46: =工作表!#REF! ->  | J46: =工作表!#REF! ->  | K46: =工作表!#REF! ->  | L46: =工作表!#REF! -> 
A47: =工作表!#REF! ->  | B47: =工作表!#REF! ->  | C47: =工作表!#REF! ->  | D47: 配电检修工区 | E47: =Sheet2!V45 -> 0 | F47: =工作表!#REF! ->  | G47: =工作表!#REF! ->  | H47: =工作表!#REF! ->  | I47: =工作表!#REF! ->  | J47: =工作表!#REF! ->  | K47: =工作表!#REF! ->  | L47: =工作表!#REF! -> 
A48: =工作表!#REF! ->  | B48: =工作表!#REF! ->  | C48: =工作表!#REF! ->  | D48: 配电检修工区 | E48: =Sheet2!V46 -> 0 | F48: =工作表!#REF! ->  | G48: =工作表!#REF! ->  | H48: =工作表!#REF! ->  | I48: =工作表!#REF! ->  | J48: =工作表!#REF! ->  | K48: =工作表!#REF! ->  | L48: =工作表!#REF! -> 
B194: 合 计 | F194: =SUM(F6:F193) ->  | G194: =SUM(G6:G193) ->  | I194: =SUM(I6:I193) ->  | N194: 0

Sheet 45个项目开竣工时间 (hidden)
A1: 序号 | B1: 工程编号 | C1: 工程名称 | D1: 实施部门 | E1: 工程开工时间 | F1: 工程结束时间
A2: 1 | B2: 18104015A686 | C2: 常州本部10kV天泰线遥观剑湖金纯耿北新建配变工程 | D2: 输配电公司 | E2: 2016-02-25 | F2: 2016-03-11
A3: 2 | B3: 18104015A68B | C3: 常州本部10kV运河线遥观村2#东新建配变工程 | D3: 输配电公司 | E3: 2016-03-30 | F3: 2016-04-15
A4: 3 | B4: 18104015A682 | C4: 常州本部10kV杨区线遥观张家村灯总2#新建配变工程 | D4: 输配电公司 | E4: 2016-03-15 | F4: 2016-03-30
A5: 4 | B5: 18104015A6C5 | C5: 常州本部10kV恒耐线遥观勤剑新村2#新建配变工程 | D5: 输配电公司 | E5: 2016-07-15 | F5: 2016-08-02
A6: 5 | B6: 18104015A685 | C6: 常州本部10kV渔庄线遥观东方村东马庄2#新建配变工程 | D6: 输配电公司 | E6: 2016-04-01 | F6: 2016-04-15
A7: 6 | B7: 18104015A68A | C7: 常州本部10kV渔庄线后底巷西新建配变工程 | D7: 输配电公司 | E7: 2016-03-31 | F7: 2016-04-15
A8: 7 | B8: 18104015A68C | C8: 常州本部10kV渔庄线遥观东方彭家头2#新建配变工程 | D8: 输配电公司 | E8: 2016-05-11 | F8: 2016-05-27
A9: 8 | B9: 18104015A689 | C9: 常州本部10kV富邦线前杨村东2#新建配变工程 | D9: 输配电公司 | E9: 2016-07-14 | F9: 2016-08-02
A10: 9 | B10: 18104015A68D | C10: 常州本部10kV德玉线遥观建农村沟西2#新建配变工程 | D10: 输配电公司 | E10: 2016-07-15 | F10: 2016-08-02
A11: 10 | B11: 18104015A687 | C11: 常州本部10kV史家线遥观剑湖新南村邑塘2#新建配变工程 | D11: 输配电公司 | E11: 2016-03-23 | F11: 2016-04-08
A12: 11 | B12: 18104015A683 | C12: 常州本部10kV远扬线遥观新南村邑塘南2#新建配变工程 | D12: 输配电公司 | E12: 2016-03-24 | F12: 2016-04-09
A13: 12 | B13: 18104015A688 | C13: 常州本部10kV剑湖线剑湖电力管理站镇西2#新建配变工程 | D13: 输配电公司 | E13: 2016-02-26 | F13: 2016-03-11
A14: 13 | B14: 18104015A68E | C14: 常州本部10kV同创线遥观小井坝电站2#新建配变工程 | D14: 输配电公司 | E14: 2016-03-18 | F14: 2016-04-10
A15: 14 | B15: 18104015A706 | C15: 常州本部10kV姚渎线湟里武宜排涝站南新建配变工程 | D15: 输配电公司 | E15: 2016-03-01 | F15: 2016-03-17
A16: 15 | B16: 18104015A6A1 | C16: 常州本部10kV姚渎线湟里西安祁兰桥东新建配变工程 | D16: 输配电公司 | E16: 2016-05-12 | F16: 2016-05-27
A17: 16 | B17: 18104015A69C | C17: 常州本部10kV姚渎线湟里西安街里后新建配变工程 | D17: 输配电公司 | E17: 2016-03-01 | F17: 2016-03-17
A18: 17 | B18: 18104015A691 | C18: 常州本部10kV东鲁线湟里应家头西新建配变工程 | D18: 输配电公司 | E18: 2016-07-08 | F18: 2016-07-23
A19: 18 | B19: 18104015A693 | C19: 常州本部10kV宇征线湟里金家田舍前新建配变工程 | D19: 输配电公司 | E19: 2016-04-29 | F19: 2016-05-17
A20: 19 | B20: 18104015A707 | C20: 常州本部10kV宇征线湟里宜南花家新建配变工程 | D20: 输配电公司 | E20: 2016-04-26 | F20: 2016-05-11
A21: 20 | B21: 18104015A69A | C21: 常州本部10kV长润线湟里郑家头前新建配变工程 | D21: 输配电公司 | E21: 2016-04-27 | F21: 2016-05-11
A22: 21 | B22: 18104015A69B | C22: 常州本部10kV恒徳线湟里香泉松坟埂新建配变工程 | D22: 输配电公司 | E22: 2016-07-13 | F22: 2016-07-28
A23: 22 | B23: 18104015A69E | C23: 常州本部10kV东农线湟里蒋埝刁家新建配变工程 | D23: 输配电公司 | E23: 2016-07-08 | F23: 2016-07-23
A24: 23 | B24: 18104015A696 | C24: 常州本部10kV长润线湟里五巷大蒋巷南新建配变工程 | D24: 输配电公司 | E24: 2016-03-08 | F24: 2016-03-24
A25: 24 | B25: 18104015A70C | C25: 常州本部10kV长润线湟里宜南塘坝头新建配变工程 | D25: 输配电公司 | E25: 2016-04-25 | F25: 2016-05-11
A26: 25 | B26: 18104015A692 | C26: 常州本部10kV村北线湟里圩上乐家新建配变工程 | D26: 输配电公司 | E26: 2016-07-08 | F26: 2016-07-23
A27: 26 | B27: 18104015A6A6 | C27: 常州本部10kV夏南线嘉泽下渎前木新建配变工程 | D27: 输配电公司 | E27: 2016-04-26 | F27: 2016-05-12
A28: 27 | B28: 18104015A699 | C28: 常州本部10kV夏南线嘉泽下渎村北新建配变工程 | D28: 输配电公司 | E28: 2016-04-27 | F28: 2016-05-12
A29: 28 | B29: 18104015A6A2 | C29: 常州本部10kV章簖线嘉泽森庄巷头新建配变工程 | D29: 输配电公司 | E29: 2016-03-11 | F29: 2016-03-27
A30: 29 | B30: 18104015A69D | C30: 常州本部10kV鑫海线嘉泽章簖岳西西新建配变工程 | D30: 输配电公司 | E30: 2016-04-25 | F30: 2016-05-10
A31: 30 | B31: 18104015A6A7 | C31: 常州本部10kV嘉满线嘉泽厚余市镇三队新建配变工程 | D31: 输配电公司 | E31: 2016-03-11 | F31: 2016-03-27
A32: 31 | B32: 18104015A708 | C32: 常州本部10kV贝庄线嘉泽满墩石桥头北新建配变工程 | D32: 输配电公司 | E32: 2016-04-08 | F32: 2016-04-24
A33: 32 | B33: 18104015A695 | C33: 常州本部10kV章庄线嘉泽满墩村陆家巷东新建配变工程 | D33: 输配电公司 | E33: 2016-04-26 | F33: 2016-05-12
A34: 33 | B34: 18104015A694 | C34: 常州本部10kV章庄线嘉泽巷上潘塘新建配变工程 | D34: 输配电公司 | E34: 2016-04-27 | F34: 2016-05-12
A35: 34 | B35: 18104015A70B | C35: 常州本部10kV嘉泽线嘉泽龙岩路基沟新建配变工程 | D35: 输配电公司 | E35: 2016-05-11 | F35: 2016-05-27
A36: 35 | B36: 18104015A6EE | C36: 常州本部10kV嘉余线嘉泽厚余潘庄村马家南新建配变工程 | D36: 输配电公司 | E36: 2016-04-26 | F36: 2016-05-11
A37: 36 | B37: 18104015A70A | C37: 常州本部10kV华士线嘉泽丰庄闵西新建配变工程 | D37: 输配电公司 | E37: 2016-04-08 | F37: 2016-04-24
A38: 37 | B38: 18104015A698 | C38: 常州本部10kV夏北线嘉泽三星村坝头新建配变工程 | D38: 输配电公司 | E38: 2016-03-10 | F38: 2016-03-27
A39: 38 | B39: 18104015A6A5 | C39: 常州本部10kV章簖线嘉泽周庄外塘村北新建配变工程 | D39: 输配电公司 | E39: 2016-03-10 | F39: 2016-03-27
A40: 39 | B40: 18104015A709 | C40: 常州本部10kV章簖线嘉泽南庄南东新建配变工程 | D40: 输配电公司 | E40: 2016-03-11 | F40: 2016-03-27
A41: 40 | B41: 18104015A6A0 | C41: 常州本部10kV嘉泽线嘉泽观庄村西新建配变工程 | D41: 输配电公司 | E41: 2016-07-13 | F41: 2016-07-28
A42: 41 | B42: 18104015A69F | C42: 常州本部10kV华士线嘉泽丰杨村对门新建配变工程 | D42: 输配电公司 | E42: 2016-03-07 | F42: 2016-03-22
A43: 42 | B43: 18104015A6A3 | C43: 常州本部10kV水北线嘉泽闵市丁庄新建配变工程 | D43: 输配电公司 | E43: 2016-04-25 | F43: 2016-05-10
A44: 43 | B44: 18104015A6A4 | C44: 常州本部10kV宋庄线嘉泽闵市西留庄新建配变工程 | D44: 输配电公司 | E44: 2016-04-27 | F44: 2016-05-12
A45: 44 | B45: 18104015A697 | C45: 常州本部10kV嘉北线嘉泽晨山池塘新建配变工程 | D45: 输配电公司 | E45: 2016-04-28 | F45: 2016-05-12
A46: 45 | B46: 18104015A6AF | C46: 常州本部10kV嘉兴线嘉泽晨山章庄庙新建配变工程 | D46: 输配电公司 | E46: 2016-04-26 | F46: 2016-05-12
E47: =MINA(E2:E46) -> 2016-02-25 | F47: =MAXA(F2:F46) -> 2016-08-02

Sheet 项目明细账
A1: 过账日期 | B1: 凭证编码 | C1: 归档凭证类型 | D1: 归档凭证编码 | E1: 凭证抬头文本 | F1: WBS编码 | G1: WBS描述 | H1: 项目定义编码 | I1: 项目定义描述 | J1: 科目代码 | K1: 科目名称 | L1: 借贷方向 | M1: 行项目金额 | N1: 数量 | O1: 物料编码 | P1: 物料描述 | Q1: 单位 | R1: 进项税
A2: 2017-06-07 | B2: 4900112478 | C2: 发货 | D2: 22 | E2: 对常州金坛区10kV直溪线庄房3#变新建工发货 | F2: 18104117A10200A1310Z0001 | G2: 箱式变 | H2: 18104117A102 | I2: 常州金坛区10kV电胜线城东下塘2队东新建工程 | J2: 9201030000 | K2: 工程成本-在安装设备 | L2: 借 | M2: 117527.18 | N2: 1 | O2: 500001083 | P2: 10kV箱式变电站,630kVA,美式,硅钢片,普通,无环网柜 | Q2: 套 | R2: 19979.62 | S2: 0
A3: 2017-06-07 | B3: 4900112478 | C3: 发货 | D3: 22 | E3: 对常州金坛区10kV直溪线庄房3#变新建工发货 | F3: 18104117A10500A1310Z0001 | G3: 箱式变 | H3: 18104117A105 | I3: 常州金坛区10kV直溪线庄房3#变新建工程 | J3: 9201030000 | K3: 工程成本-在安装设备 | L3: 借 | M3: 88459.23 | N3: 1 | O3: 500001040 | P3: 10kV箱式变电站,400kVA,美式,硅钢片,普通,无环网柜 | Q3: 套 | R3: 15038.07 | S3: 0
A4: 2017-06-07 | B4: 4900112478 | C4: 发货 | D4: 22 | E4: 对常州金坛区10kV直溪线庄房3#变新建工发货 | F4: 18104117A10600A1310Z0001 | G4: 箱式变 | H4: 18104117A106 | I4: 常州金坛区10kV白塔线白塔北商品房1#变改造工程 | J4: 9201030000 | K4: 工程成本-在安装设备 | L4: 借 | M4: 88459.22 | N4: 1 | O4: 500001040 | P4: 10kV箱式变电站,400kVA,美式,硅钢片,普通,无环网柜 | Q4: 套 | R4: 15038.07 | S4: 0
A5: 2017-06-15 | B5: 4900130058 | C5: 发货 | D5: 60 | E5: 对常州金坛区10kV愚池线愚池小区54幢楼发货 | F5: 18104117A1A300A1370Z0001 | G5: 中压电缆线路 | H5: 18104117A1A3 | I5: 常州金坛区S239省道北侧新建电缆管沟工程 | J5: 9201030000 | K5: 工程成本-在安装设备 | L5: 借 | M5: 373027.94 | N5: 4545 | O5: 500021520 | P5: 电缆保护管,MPP,φ200 | Q5: 米 | R5: 63414.75 | S5: 0
A6: 2017-06-15 | B6: 5000068823 | C6: 转账 | D6: 217 | E6: 常州金坛区10kV白塔线白塔北商品房1#确认服务费 | F6: 18104117A10600A5320000 | G6: 工程设计费 | H6: 18104117A106 | I6: 常州金坛区10kV白塔线白塔北商品房1#变改造工程 | J6: 9201050000 | K6: 工程成本-待摊支出-其他 | L6: 借 | M6: 11465.28 | N6: 12153.2 | Q6: 作业单位 | R6: 687.92 | S6: 0 | V6: 1000125010 | W6: 常州金坛天源电力设计有限公司
A7: 2017-06-15 | B7: 5000068840 | C7: 转账 | D7: 228 | E7: 常州金坛区10kV电胜线城东下塘2队东新确认服务费 | F7: 18104117A10200A5320000 | G7: 工程设计费 | H7: 18104117A102 | I7: 常州金坛区10kV电胜线城东下塘2队东新建工程 | J7: 9201050000 | K7: 工程成本-待摊支出-其他 | L7: 借 | M7: 11356.79 | N7: 12038.2 | Q7: 作业单位 | R7: 681.41 | S7: 0 | V7: 1000125010 | W7: 常州金坛天源电力设计有限公司
A8: 2017-06-15 | B8: 5000068894 | C8: 转账 | D8: 270 | E8: 常州金坛区S239省道北侧新建电缆管沟工确认服务费 | F8: 18104117A1A300A5320000 | G8: 工程设计费 | H8: 18104117A1A3 | I8: 常州金坛区S239省道北侧新建电缆管沟工程 | J8: 9201050000 | K8: 工程成本-待摊支出-其他 | L8: 借 | M8: 39490.87 | N8: 41860.32 | Q8: 作业单位 | R8: 2369.45 | S8: 0 | V8: 1000125010 | W8: 常州金坛天源电力设计有限公司
A9: 2017-06-15 | B9: 5000068917 | C9: 转账 | D9: 292 | E9: 常州金坛区南环二路（兴隆路-良湖路）新建确认服务费 | F9: 18104117A19F00A5320000 | G9: 工程设计费 | H9: 18104117A19F | I9: 常州金坛区南环二路（兴隆路-良湖路）新建电缆管沟工程 | J9: 9201050000 | K9: 工程成本-待摊支出-其他 | L9: 借 | M9: 19751.29 | N9: 20936.37 | Q9: 作业单位 | R9: 1185.08 | S9: 0 | V9: 1000125010 | W9: 常州金坛天源电力设计有限公司
A10: 2017-06-21 | B10: 1900043501 | C10: 转账 | D10: 443 | E10: 2017年资本项目设计费（已付款） | F10: 18104117A10500A5320000 | G10: 工程设计费 | H10: 18104117A105 | I10: 常州金坛区10kV直溪线庄房3#变新建工程 | J10: 9201050000 | K10: 工程成本-待摊支出-其他 | L10: 借 | M10: 10150.38 | N10: 0 | R10: 0 | S10: 0 | V10: 1000125010 | W10: 常州金坛天源电力设计有限公司
A11: 2017-06-21 | B11: 1900043501 | C11: 转账 | D11: 443 | E11: 2017年资本项目设计费（已付款） | F11: 18104117A19F00A5320000 | G11: 工程设计费 | H11: 18104117A19F | I11: 常州金坛区南环二路（兴隆路-良湖路）新建电缆管沟工程 | J11: 9201050000 | K11: 工程成本-待摊支出-其他 | L11: 借 | M11: 82391.27 | N11: 0 | R11: 0 | S11: 0 | V11: 1000125010 | W11: 常州金坛天源电力设计有限公司
A12: 2017-06-21 | B12: 1900043501 | C12: 转账 | D12: 443 | E12: 2017年资本项目设计费（已付款） | F12: 18104117A1A300A5320000 | G12: 工程设计费 | H12: 18104117A1A3 | I12: 常州金坛区S239省道北侧新建电缆管沟工程 | J12: 9201050000 | K12: 工程成本-待摊支出-其他 | L12: 借 | M12: 64269.51 | N12: 0 | R12: 0 | S12: 0 | V12: 1000125010 | W12: 常州金坛天源电力设计有限公司
A13: 2017-06-30 | B13: 100137336 | C13: 转账 | D13: 574 | E13: 2017年2季度配基项目分摊基建贷款利息 | F13: 18104117A10500A6000000 | G13: 建设期贷款利息 | H13: 18104117A105 | I13: 常州金坛区10kV直溪线庄房3#变新建工程 | J13: 9201060000 | K13: 工程成本-待摊支出-建设期贷款利息 | L13: 借 | M13: 8.42 | N13: 0 | R13: 0 | S13: 0
A14: 2017-06-30 | B14: 100137336 | C14: 转账 | D14: 574 | E14: 2017年2季度配基项目分摊基建贷款利息 | F14: 18104117A19F00A6000000 | G14: 建设期贷款利息 | H14: 18104117A19F | I14: 常州金坛区南环二路（兴隆路-良湖路）新建电缆管沟工程 | J14: 9201060000 | K14: 工程成本-待摊支出-建设期贷款利息 | L14: 借 | M14: 1.88 | N14: 0 | R14: 0 | S14: 0
A15: 2017-06-30 | B15: 100137336 | C15: 转账 | D15: 574 | E15: 2017年2季度配基项目分摊基建贷款利息 | F15: 18104117A1A300A6000000 | G15: 建设期贷款利息 | H15: 18104117A1A3 | I15: 常州金坛区S239省道北侧新建电缆管沟工程 | J15: 9201060000 | K15: 工程成本-待摊支出-建设期贷款利息 | L15: 借 | M15: 39.26 | N15: 0 | R15: 0 | S15: 0
A16: 2017-06-30 | B16: 100137336 | C16: 转账 | D16: 574 | E16: 2017年2季度配基项目分摊基建贷款利息 | F16: 18104117A10200A6000000 | G16: 建设期贷款利息 | H16: 18104117A102 | I16: 常州金坛区10kV电胜线城东下塘2队东新建工程 | J16: 9201060000 | K16: 工程成本-待摊支出-建设期贷款利息 | L16: 借 | M16: 12.27 | N16: 0 | R16: 0 | S16: 0
A17: 2017-06-30 | B17: 100137336 | C17: 转账 | D17: 574 | E17: 2017年2季度配基项目分摊基建贷款利息 | F17: 18104117A10600A6000000 | G17: 建设期贷款利息 | H17: 18104117A106 | I17: 常州金坛区10kV白塔线白塔北商品房1#变改造工程 | J17: 9201060000 | K17: 工程成本-待摊支出-建设期贷款利息 | L17: 借 | M17: 9.51 | N17: 0 | R17: 0 | S17: 0
A18: 2017-09-30 | B18: 100227469 | C18: 转账 | D18: 403 | E18: 2017年3季度配基项目分摊基建贷款利息 | F18: 18104117A19F00A6000000 | G18: 建设期贷款利息 | H18: 18104117A19F | I18: 常州金坛区南环二路（兴隆路-良湖路）新建电缆管沟工程 | J18: 9201060000 | K18: 工程成本-待摊支出-建设期贷款利息 | L18: 借 | M18: 66.67 | N18: 0 | R18: 0 | S18: 0
A19: 2017-09-30 | B19: 100227469 | C19: 转账 | D19: 403 | E19: 2017年3季度配基项目分摊基建贷款利息 | F19: 18104117A1A300A6000000 | G19: 建设期贷款利息 | H19: 18104117A1A3 | I19: 常州金坛区S239省道北侧新建电缆管沟工程 | J19: 9201060000 | K19: 工程成本-待摊支出-建设期贷款利息 | L19: 借 | M19: 351.51 | N19: 0 | R19: 0 | S19: 0
A20: 2017-09-30 | B20: 100227469 | C20: 转账 | D20: 403 | E20: 2017年3季度配基项目分摊基建贷款利息 | F20: 18104117A10500A6000000 | G20: 建设期贷款利息 | H20: 18104117A105 | I20: 常州金坛区10kV直溪线庄房3#变新建工程 | J20: 9201060000 | K20: 工程成本-待摊支出-建设期贷款利息 | L20: 借 | M20: 73.1 | N20: 0 | R20: 0 | S20: 0
A21: 2017-09-30 | B21: 100227469 | C21: 转账 | D21: 403 | E21: 2017年3季度配基项目分摊基建贷款利息 | F21: 18104117A10200A6000000 | G21: 建设期贷款利息 | H21: 18104117A102 | I21: 常州金坛区10kV电胜线城东下塘2队东新建工程 | J21: 9201060000 | K21: 工程成本-待摊支出-建设期贷款利息 | L21: 借 | M21: 97.2 | N21: 0 | R21: 0 | S21: 0
A22: 2017-10-26 | B22: 1900096330 | C22: 转账 | D22: 580 | E22: 2017年配网工程管理费 | F22: 18104117A10500A5215000 | G22: 项目管理经费 -其它 | H22: 18104117A105 | I22: 常州金坛区10kV直溪线庄房3#变新建工程 | J22: 9201070500 | K22: 工程成本-待摊支出-法人管理费-其他 | L22: 借 | M22: 740 | N22: 0 | R22: 25.04 | S22: 0 | V22: 0399000086 | W22: 金坛供电公司（国网）一次性供应商
A23: 2017-10-26 | B23: 1900096330 | C23: 转账 | D23: 580 | E23: 2017年配网工程管理费 | F23: 18104117A10200A5215000 | G23: 项目管理经费 -其它 | H23: 18104117A102 | I23: 常州金坛区10kV电胜线城东下塘2队东新建工程 | J23: 9201070500 | K23: 工程成本-待摊支出-法人管理费-其他 | L23: 借 | M23: 900 | N23: 0 | R23: 30.45 | S23: 0 | V23: 0399000086 | W23: 金坛供电公司（国网）一次性供应商
A24: 2017-12-06 | B24: 4900385299 | C24: 发货 | D24: 16 | E24: 对常州金坛区10kV白塔线白塔北商品房1#发货 | F24: 18104117A10600A1321000 | G24: 10kV（20kV）配电装置 | H24: 18104117A106 | I24: 常州金坛区10kV白塔线白塔北商品房1#变改造工程 | J24: 9201030000 | K24: 工程成本-在安装设备 | L24: 借 | M24: 35.64 | N24: 0.007 | O24: 500018848 | P24: 半圆抱箍,—4×40,D100,U型 | Q24: 块 | R24: 6.06 | S24: 0
A25: 2017-12-06 | B25: 4900385299 | C25: 发货 | D25: 16 | E25: 对常州金坛区10kV白塔线白塔北商品房1#发货 | F25: 18104117A10600A1321000 | G25: 10kV（20kV）配电装置 | H25: 18104117A106 | I25: 常州金坛区10kV白塔线白塔北商品房1#变改造工程 | J25: 9201030000 | K25: 工程成本-在安装设备 | L25: 借 | M25: 35.64 | N25: 0.007 | O25: 500018848 | P25: 半圆抱箍,—4×40,D100,U型 | Q25: 块 | R25: 6.06 | S25: 0
A26: 2017-12-06 | B26: 4900385299 | C26: 发货 | D26: 16 | E26: 对常州金坛区10kV白塔线白塔北商品房1#发货 | F26: 18104117A10600A1321000 | G26: 10kV（20kV）配电装置 | H26: 18104117A106 | I26: 常州金坛区10kV白塔线白塔北商品房1#变改造工程 | J26: 9201030000 | K26: 工程成本-在安装设备 | L26: 借 | M26: 254.55 | N26: 0.05 | O26: 500018848 | P26: 半圆抱箍,—4×40,D100,U型 | Q26: 块 | R26: 43.27 | S26: 0
A27: 2017-12-06 | B27: 4900385299 | C27: 发货 | D27: 16 | E27: 对常州金坛区10kV白塔线白塔北商品房1#发货 | F27: 18104117A10600A1370Z0002 | G27: 中压架空线路 | H27: 18104117A106 | I27: 常州金坛区10kV白塔线白塔北商品房1#变改造工程 | J27: 9201030000 | K27: 工程成本-在安装设备 | L27: 借 | M27: 75.58 | N27: 0.009 | O27: 500014661 | P27: 架空绝缘导线,AC10kV,JKLYJ,150 | Q27: 千米 | R27: 12.85 | S27: 0
A28: 2017-12-06 | B28: 4900385299 | C28: 发货 | D28: 16 | E28: 对常州金坛区10kV白塔线白塔北商品房1#发货 | F28: 18104117A10600A1370Z0003 | G28: 中压电缆线路 | H28: 18104117A106 | I28: 常州金坛区10kV白塔线白塔北商品房1#变改造工程 | J28: 9201030000 | K28: 工程成本-在安装设备 | L28: 借 | M28: 11871.81 | N28: 137 | O28: 500021520 | P28: 电缆保护管,MPP,φ200 | Q28: 米 | R28: 2018.21 | S28: 0
A29: 2017-12-06 | B29: 4900385299 | C29: 发货 | D29: 16 | E29: 对常州金坛区10kV白塔线白塔北商品房1#发货 | F29: 18104117A10600A1370Z0003 | G29: 中压电缆线路 | H29: 18104117A106 | I29: 常州金坛区10kV白塔线白塔北商品房1#变改造工程 | J29: 9201030000 | K29: 工程成本-在安装设备 | L29: 借 | M29: 9185.49 | N29: 106 | O29: 500021520 | P29: 电缆保护管,MPP,φ200 | Q29: 米 | R29: 1561.53 | S29: 0
A30: 2017-12-06 | B30: 4900385299 | C30: 发货 | D30: 16 | E30: 对常州金坛区10kV白塔线白塔北商品房1#发货 | F30: 18104117A10600A1321000 | G30: 10kV（20kV）配电装置 | H30: 18104117A106 | I30: 常州金坛区10kV白塔线白塔北商品房1#变改造工程 | J30: 9201030000 | K30: 工程成本-在安装设备 | L30: 借 | M30: 409.32 | N30: 2 | O30: 500021056 | P30: 10kV电缆终端,3×70,户内终端,冷缩,铜 | Q30: 套 | R30: 69.58 | S30: 0
A31: 2017-12-06 | B31: 4900385299 | C31: 发货 | D31: 16 | E31: 对常州金坛区10kV白塔线白塔北商品房1#发货 | F31: 18104117A10600A1310Z0004 | G31: 杆上配变 | H31: 18104117A106 | I31: 常州金坛区10kV白塔线白塔北商品房1#变改造工程 | J31: 9201030000 | K31: 工程成本-在安装设备 | L31: 借 | M31: 916.67 | N31: 1 | O31: 500002150 | P31: 10kV三相隔离开关,630A,20kA,手动双柱立开式,不接地 | Q31: 组 | R31: 155.83 | S31: 0
A32: 2017-12-06 | B32: 4900385299 | C32: 发货 | D32: 16 | E32: 对常州金坛区10kV白塔线白塔北商品房1#发货 | F32: 18104117A10600A1310Z0004 | G32: 杆上配变 | H32: 18104117A106 | I32: 常州金坛区10kV白塔线白塔北商品房1#变改造工程 | J32: 9201030000 | K32: 工程成本-在安装设备 | L32: 借 | M32: 578.33 | N32: 3 | O32: 500007914 | P32: 高压熔断器,AC10kV,跌落式,100A | Q32: 只 | R32: 98.32 | S32: 0
A33: 2017-12-06 | B33: 4900385299 | C33: 发货 | D33: 16 | E33: 对常州金坛区10kV白塔线白塔北商品房1#发货 | F33: 18104117A10600A1321000 | G33: 10kV（20kV）配电装置 | H33: 18104117A106 | I33: 常州金坛区10kV白塔线白塔北商品房1#变改造工程 | J33: 9201030000 | K33: 工程成本-在安装设备 | L33: 借 | M33: 10.44 | N33: 0.002 | O33: 500060384 | P33: 接地铁,角钢+圆钢,镀锌,—5×50,1500mm | Q33: 付 | R33: 1.77 | S33: 0
A34: 2017-12-06 | B34: 4900385299 | C34: 发货 | D34: 16 | E34: 对常州金坛区10kV白塔线白塔北商品房1#发货 | F34: 18104117A10600A1321000 | G34: 10kV（20kV）配电装置 | H34: 18104117A106 | I34: 常州金坛区10kV白塔线白塔北商品房1#变改造工程 | J34: 9201030000 | K34: 工程成本-在安装设备 | L34: 借 | M34: 35.64 | N34: 0.007 | O34: 500018848 | P34: 半圆抱箍,—4×40,D100,U型 | Q34: 块 | R34: 6.06 | S34: 0
A35: 2017-12-06 | B35: 4900385299 | C35: 发货 | D35: 16 | E35: 对常州金坛区10kV白塔线白塔北商品房1#发货 | F35: 18104117A10600A1321000 | G35: 10kV（20kV）配电装置 | H35: 18104117A106 | I35: 常州金坛区10kV白塔线白塔北商品房1#变改造工程 | J35: 9201030000 | K35: 工程成本-在安装设备 | L35: 借 | M35: 14.7 | N35: 0.003 | O35: 500012204 | P35: 普通螺栓,M10,100mm,铁,热浸锌,配螺母 | Q35: 件 | R35: 2.5 | S35: 0
A36: 2017-12-06 | B36: 4900385299 | C36: 发货 | D36: 16 | E36: 对常州金坛区10kV白塔线白塔北商品房1#发货 | F36: 18104117A10600A1321000 | G36: 10kV（20kV）配电装置 | H36: 18104117A106 | I36: 常州金坛区10kV白塔线白塔北商品房1#变改造工程 | J36: 9201030000 | K36: 工程成本-在安装设备 | L36: 借 | M36: 40.73 | N36: 0.008 | O36: 500018848 | P36: 半圆抱箍,—4×40,D100,U型 | Q36: 块 | R36: 6.92 | S36: 0
A37: 2017-12-06 | B37: 4900385299 | C37: 发货 | D37: 16 | E37: 对常州金坛区10kV白塔线白塔北商品房1#发货 | F37: 18104117A10600A1321000 | G37: 10kV（20kV）配电装置 | H37: 18104117A106 | I37: 常州金坛区10kV白塔线白塔北商品房1#变改造工程 | J37: 9201030000 | K37: 工程成本-在安装设备 | L37: 借 | M37: 9.8 | N37: 0.002 | O37: 500012204 | P37: 普通螺栓,M10,100mm,铁,热浸锌,配螺母 | Q37: 件 | R37: 1.67 | S37: 0
A38: 2017-12-06 | B38: 4900385299 | C38: 发货 | D38: 16 | E38: 对常州金坛区10kV白塔线白塔北商品房1#发货 | F38: 18104117A10600A1321000 | G38: 10kV（20kV）配电装置 | H38: 18104117A106 | I38: 常州金坛区10kV白塔线白塔北商品房1#变改造工程 | J38: 9201030000 | K38: 工程成本-在安装设备 | L38: 借 | M38: 4.9 | N38: 0.001 | O38: 500012204 | P38: 普通螺栓,M10,100mm,铁,热浸锌,配螺母 | Q38: 件 | R38: 0.83 | S38: 0
A39: 2017-12-06 | B39: 4900385299 | C39: 发货 | D39: 16 | E39: 对常州金坛区10kV白塔线白塔北商品房1#发货 | F39: 18104117A10600A1321000 | G39: 10kV（20kV）配电装置 | H39: 18104117A106 | I39: 常州金坛区10kV白塔线白塔北商品房1#变改造工程 | J39: 9201030000 | K39: 工程成本-在安装设备 | L39: 借 | M39: 22.86 | N39: 0.005 | O39: 500065920 | P39: 钢绞线,1×7-7.8-1270-B,35,镀锌 | Q39: 吨 | R39: 3.89 | S39: 0
A40: 2017-12-06 | B40: 4900385299 | C40: 发货 | D40: 16 | E40: 对常州金坛区10kV白塔线白塔北商品房1#发货 | F40: 18104117A10600A1321000 | G40: 10kV（20kV）配电装置 | H40: 18104117A106 | I40: 常州金坛区10kV白塔线白塔北商品房1#变改造工程 | J40: 9201030000 | K40: 工程成本-在安装设备 | L40: 借 | M40: 39.54 | N40: 3 | O40: 500028236 | P40: 接续金具-跳线线夹,JYT-120/20 | Q40: 付 | R40: 6.72 | S40: 0
A41: 2017-12-06 | B41: 4900385299 | C41: 发货 | D41: 16 | E41: 对常州金坛区10kV白塔线白塔北商品房1#发货 | F41: 18104117A10600A1321000 | G41: 10kV（20kV）配电装置 | H41: 18104117A106 | I41: 常州金坛区10kV白塔线白塔北商品房1#变改造工程 | J41: 9201030000 | K41: 工程成本-在安装设备 | L41: 借 | M41: 59.51 | N41: 3 | O41: 500020770 | P41: T型线夹-T型线夹,TY-150/20 | Q41: 付 | R41: 10.12 | S41: 0
A42: 2017-12-06 | B42: 4900385299 | C42: 发货 | D42: 16 | E42: 对常州金坛区10kV白塔线白塔北商品房1#发货 | F42: 18104117A10600A1321000 | G42: 10kV（20kV）配电装置 | H42: 18104117A106 | I42: 常州金坛区10kV白塔线白塔北商品房1#变改造工程 | J42: 9201030000 | K42: 工程成本-在安装设备 | L42: 借 | M42: 138.03 | N42: 9 | O42: 500058163 | P42: 接续金具-接地线夹,JDL-50-240 | Q42: 付 | R42: 23.47 | S42: 0
A43: 2017-12-06 | B43: 4900385299 | C43: 发货 | D43: 16 | E43: 对常州金坛区10kV白塔线白塔北商品房1#发货 | F43: 18104117A10600A1321000 | G43: 10kV（20kV）配电装置 | H43: 18104117A106 | I43: 常州金坛区10kV白塔线白塔北商品房1#变改造工程 | J43: 9201030000 | K43: 工程成本-在安装设备 | L43: 借 | M43: 66.85 | N43: 3 | O43: 500020830 | P43: 设备线夹-铜铝过渡设备线夹,SYG-240/30A | Q43: 付 | R43: 11.36 | S43: 0
A44: 2017-12-06 | B44: 4900385299 | C44: 发货 | D44: 16 | E44: 对常州金坛区10kV白塔线白塔北商品房1#发货 | F44: 18104117A10600A1321000 | G44: 10kV（20kV）配电装置 | H44: 18104117A106 | I44: 常州金坛区10kV白塔线白塔北商品房1#变改造工程 | J44: 9201030000 | K44: 工程成本-在安装设备 | L44: 借 | M44: 101.82 | N44: 0.02 | O44: 500018848 | P44: 半圆抱箍,—4×40,D100,U型 | Q44: 块 | R44: 17.31 | S44: 0
A45: 2017-12-06 | B45: 4900385299 | C45: 发货 | D45: 16 | E45: 对常州金坛区10kV白塔线白塔北商品房1#发货 | F45: 18104117A10600A1321000 | G45: 10kV（20kV）配电装置 | H45: 18104117A106 | I45: 常州金坛区10kV白塔线白塔北商品房1#变改造工程 | J45: 9201030000 | K45: 工程成本-在安装设备 | L45: 借 | M45: 32.21 | N45: 20 | O45: 500014806 | P45: 布电线,BV,铜,4,1 | Q45: 米 | R45: 5.48 | S45: 0
A46: 2017-12-06 | B46: 4900385299 | C46: 发货 | D46: 16 | E46: 对常州金坛区10kV白塔线白塔北商品房1#发货 | F46: 18104117A10600A1321000 | G46: 10kV（20kV）配电装置 | H46: 18104117A106 | I46: 常州金坛区10kV白塔线白塔北商品房1#变改造工程 | J46: 9201030000 | K46: 工程成本-在安装设备 | L46: 借 | M46: 62.65 | N46: 0.012 | O46: 500060384 | P46: 接地铁,角钢+圆钢,镀锌,—5×50,1500mm | Q46: 付 | R46: 10.65 | S46: 0
A47: 2017-12-06 | B47: 4900385299 | C47: 发货 | D47: 16 | E47: 对常州金坛区10kV白塔线白塔北商品房1#发货 | F47: 18104117A10600A1321000 | G47: 10kV（20kV）配电装置 | H47: 18104117A106 | I47: 常州金坛区10kV白塔线白塔北商品房1#变改造工程 | J47: 9201030000 | K47: 工程成本-在安装设备 | L47: 借 | M47: 52.21 | N47: 0.01 | O47: 500060384 | P47: 接地铁,角钢+圆钢,镀锌,—5×50,1500mm | Q47: 付 | R47: 8.88 | S47: 0
A48: 2017-12-06 | B48: 4900385299 | C48: 发货 | D48: 16 | E48: 对常州金坛区10kV白塔线白塔北商品房1#发货 | F48: 18104117A10600A1321000 | G48: 10kV（20kV）配电装置 | H48: 18104117A106 | I48: 常州金坛区10kV白塔线白塔北商品房1#变改造工程 | J48: 9201030000 | K48: 工程成本-在安装设备 | L48: 借 | M48: 213.38 | N48: 3 | O48: 500027151 | P48: 交流避雷器,AC10kV,17kV,硅橡胶,50kV,不带间隙 | Q48: 台 | R48: 36.27 | S48: 0
A49: 2017-12-06 | B49: 4900385299 | C49: 发货 | D49: 16 | E49: 对常州金坛区10kV白塔线白塔北商品房1#发货 | F49: 18104117A10600A1321000 | G49: 10kV（20kV）配电装置 | H49: 18104117A106 | I49: 常州金坛区10kV白塔线白塔北商品房1#变改造工程 | J49: 9201030000 | K49: 工程成本-在安装设备 | L49: 借 | M49: 88.75 | N49: 0.017 | O49: 500060384 | P49: 接地铁,角钢+圆钢,镀锌,—5×50,1500mm | Q49: 付 | R49: 15.09 | S49: 0
A50: 2017-12-06 | B50: 4900385299 | C50: 发货 | D50: 16 | E50: 对常州金坛区10kV白塔线白塔北商品房1#发货 | F50: 18104117A10600A1321000 | G50: 10kV（20kV）配电装置 | H50: 18104117A106 | I50: 常州金坛区10kV白塔线白塔北商品房1#变改造工程 | J50: 9201030000 | K50: 工程成本-在安装设备 | L50: 借 | M50: 9.52 | N50: 2 | O50: 500020515 | P50: 接续金具-并沟线夹,JBB-1 | Q50: 付 | R50: 1.62 | S50: 0
A51: 2017-12-06 | B51: 4900385299 | C51: 发货 | D51: 16 | E51: 对常州金坛区10kV白塔线白塔北商品房1#发货 | F51: 18104117A10600A1321000 | G51: 10kV（20kV）配电装置 | H51: 18104117A106 | I51: 常州金坛区10kV白塔线白塔北商品房1#变改造工程 | J51: 9201030000 | K51: 工程成本-在安装设备 | L51: 借 | M51: 122.06 | N51: 32 | O51: 500021863 | P51: 电缆接线端子,铜,50mm2,单孔 | Q51: 只 | R51: 20.75 | S51: 0
A52: 2017-12-06 | B52: 4900385299 | C52: 发货 | D52: 16 | E52: 对常州金坛区10kV白塔线白塔北商品房1#发货 | F52: 18104117A10600A1321000 | G52: 10kV（20kV）配电装置 | H52: 18104117A106 | I52: 常州金坛区10kV白塔线白塔北商品房1#变改造工程 | J52: 9201030000 | K52: 工程成本-在安装设备 | L52: 借 | M52: 30.55 | N52: 0.006 | O52: 500018848 | P52: 半圆抱箍,—4×40,D100,U型 | Q52: 块 | R52: 5.19 | S52: 0
A53: 2017-12-06 | B53: 4900385299 | C53: 发货 | D53: 16 | E53: 对常州金坛区10kV白塔线白塔北商品房1#发货 | F53: 18104117A10600A1321000 | G53: 10kV（20kV）配电装置 | H53: 18104117A106 | I53: 常州金坛区10kV白塔线白塔北商品房1#变改造工程 | J53: 9201030000 | K53: 工程成本-在安装设备 | L53: 借 | M53: 15.27 | N53: 0.003 | O53: 500018848 | P53: 半圆抱箍,—4×40,D100,U型 | Q53: 块 | R53: 2.6 | S53: 0
A54: 2017-12-06 | B54: 4900385299 | C54: 发货 | D54: 16 | E54: 对常州金坛区10kV白塔线白塔北商品房1#发货 | F54: 18104117A10600A1321000 | G54: 10kV（20kV）配电装置 | H54: 18104117A106 | I54: 常州金坛区10kV白塔线白塔北商品房1#变改造工程 | J54: 9201030000 | K54: 工程成本-在安装设备 | L54: 借 | M54: 20.36 | N54: 0.004 | O54: 500018848 | P54: 半圆抱箍,—4×40,D100,U型 | Q54: 块 | R54: 3.46 | S54: 0
A55: 2017-12-06 | B55: 4900385299 | C55: 发货 | D55: 16 | E55: 对常州金坛区10kV白塔线白塔北商品房1#发货 | F55: 18104117A10600A1321000 | G55: 10kV（20kV）配电装置 | H55: 18104117A106 | I55: 常州金坛区10kV白塔线白塔北商品房1#变改造工程 | J55: 9201030000 | K55: 工程成本-在安装设备 | L55: 借 | M55: 40.73 | N55: 0.008 | O55: 500018848 | P55: 半圆抱箍,—4×40,D100,U型 | Q55: 块 | R55: 6.92 | S55: 0
A56: 2017-12-08 | B56: 4900391620 | C56: 发货 | D56: 57 | E56: 对常州金坛区10kV白龙线改接至110kV发货 | F56: 18104117A10200A1321000 | G56: 10kV（20kV）配电装置 | H56: 18104117A102 | I56: 常州金坛区10kV电胜线城东下塘2队东新建工程 | J56: 9201030000 | K56: 工程成本-在安装设备 | L56: 借 | M56: 24.51 | N56: 0.005 | O56: 500012204 | P56: 普通螺栓,M10,100mm,铁,热浸锌,配螺母 | Q56: 件 | R56: 4.17 | S56: 0
A57: 2017-12-08 | B57: 4900391620 | C57: 发货 | D57: 57 | E57: 对常州金坛区10kV白龙线改接至110kV发货 | F57: 18104117A10200A1321000 | G57: 10kV（20kV）配电装置 | H57: 18104117A102 | I57: 常州金坛区10kV电胜线城东下塘2队东新建工程 | J57: 9201030000 | K57: 工程成本-在安装设备 | L57: 借 | M57: 4.9 | N57: 0.001 | O57: 500012204 | P57: 普通螺栓,M10,100mm,铁,热浸锌,配螺母 | Q57: 件 | R57: 0.83 | S57: 0
A58: 2017-12-08 | B58: 4900391620 | C58: 发货 | D58: 57 | E58: 对常州金坛区10kV白龙线改接至110kV发货 | F58: 18104117A10200A1321000 | G58: 10kV（20kV）配电装置 | H58: 18104117A102 | I58: 常州金坛区10kV电胜线城东下塘2队东新建工程 | J58: 9201030000 | K58: 工程成本-在安装设备 | L58: 借 | M58: 49.28 | N58: 3 | O58: 500028325 | P58: T型线夹-T型线夹,TY-120/20 | Q58: 付 | R58: 8.38 | S58: 0
A59: 2017-12-08 | B59: 4900391760 | C59: 发货 | D59: 58 | E59: 对常州金坛区10kV冯庄线冯庄村支线环网柜发货 | F59: 18104117A10600A1370Z0003 | G59: 中压电缆线路 | H59: 18104117A106 | I59: 常州金坛区10kV白塔线白塔北商品房1#变改造工程 | J59: 9201030000 | K59: 工程成本-在安装设备 | L59: 借 | M59: 17884.6 | N59: 0.15 | O59: 500108478 | P59: 电力电缆,AC10kV,YJV,70,3,22,ZC,无阻水 | Q59: 千米 | R59: 3040.38 | S59: 0
A60: 2017-12-08 | B60: 4900391793 | C60: 发货 | D60: 62 | E60: 对常州金坛区10kV白龙线改接至110kV发货 | F60: 18104117A10200A1321000 | G60: 10kV（20kV）配电装置 | H60: 18104117A102 | I60: 常州金坛区10kV电胜线城东下塘2队东新建工程 | J60: 9201030000 | K60: 工程成本-在安装设备 | L60: 借 | M60: 10.18 | N60: 0.002 | O60: 500018848 | P60: 半圆抱箍,—4×40,D100,U型 | Q60: 块 | R60: 1.73 | S60: 0
A61: 2017-12-08 | B61: 4900391793 | C61: 发货 | D61: 62 | E61: 对常州金坛区10kV白龙线改接至110kV发货 | F61: 18104117A10200A1321000 | G61: 10kV（20kV）配电装置 | H61: 18104117A102 | I61: 常州金坛区10kV电胜线城东下塘2队东新建工程 | J61: 9201030000 | K61: 工程成本-在安装设备 | L61: 借 | M61: 9.8 | N61: 0.002 | O61: 500012204 | P61: 普通螺栓,M10,100mm,铁,热浸锌,配螺母 | Q61: 件 | R61: 1.67 | S61: 0
A62: 2017-12-08 | B62: 4900391793 | C62: 发货 | D62: 62 | E62: 对常州金坛区10kV白龙线改接至110kV发货 | F62: 18104117A10200A1321000 | G62: 10kV（20kV）配电装置 | H62: 18104117A102 | I62: 常州金坛区10kV电胜线城东下塘2队东新建工程 | J62: 9201030000 | K62: 工程成本-在安装设备 | L62: 借 | M62: 9.8 | N62: 0.002 | O62: 500012204 | P62: 普通螺栓,M10,100mm,铁,热浸锌,配螺母 | Q62: 件 | R62: 1.67 | S62: 0
A63: 2017-12-08 | B63: 4900391793 | C63: 发货 | D63: 62 | E63: 对常州金坛区10kV白龙线改接至110kV发货 | F63: 18104117A10200A1321000 | G63: 10kV（20kV）配电装置 | H63: 18104117A102 | I63: 常州金坛区10kV电胜线城东下塘2队东新建工程 | J63: 9201030000 | K63: 工程成本-在安装设备 | L63: 借 | M63: 15.27 | N63: 0.003 | O63: 500018848 | P63: 半圆抱箍,—4×40,D100,U型 | Q63: 块 | R63: 2.6 | S63: 0
A64: 2017-12-08 | B64: 4900391793 | C64: 发货 | D64: 62 | E64: 对常州金坛区10kV白龙线改接至110kV发货 | F64: 18104117A10200A1370Z0002 | G64: 中压架空线路 | H64: 18104117A102 | I64: 常州金坛区10kV电胜线城东下塘2队东新建工程 | J64: 9201030000 | K64: 工程成本-在安装设备 | L64: 借 | M64: 125.97 | N64: 0.015 | O64: 500014661 | P64: 架空绝缘导线,AC10kV,JKLYJ,150 | Q64: 千米 | R64: 21.41 | S64: 0
A65: 2017-12-08 | B65: 4900391793 | C65: 发货 | D65: 62 | E65: 对常州金坛区10kV白龙线改接至110kV发货 | F65: 18104117A10200A1370Z0003 | G65: 中压电缆线路 | H65: 18104117A102 | I65: 常州金坛区10kV电胜线城东下塘2队东新建工程 | J65: 9201030000 | K65: 工程成本-在安装设备 | L65: 借 | M65: 13711.53 | N65: 0.115 | O65: 500108478 | P65: 电力电缆,AC10kV,YJV,70,3,22,ZC,无阻水 | Q65: 千米 | R65: 2330.96 | S65: 0
A66: 2017-12-08 | B66: 4900391793 | C66: 发货 | D66: 62 | E66: 对常州金坛区10kV白龙线改接至110kV发货 | F66: 18104117A10200A1370Z0003 | G66: 中压电缆线路 | H66: 18104117A102 | I66: 常州金坛区10kV电胜线城东下塘2队东新建工程 | J66: 9201030000 | K66: 工程成本-在安装设备 | L66: 借 | M66: 15598 | N66: 180 | O66: 500021520 | P66: 电缆保护管,MPP,φ200 | Q66: 米 | R66: 2651.66 | S66: 0
A67: 2017-12-08 | B67: 4900391793 | C67: 发货 | D67: 62 | E67: 对常州金坛区10kV白龙线改接至110kV发货 | F67: 18104117A10200A1310Z0004 | G67: 杆上配变 | H67: 18104117A102 | I67: 常州金坛区10kV电胜线城东下塘2队东新建工程 | J67: 9201030000 | K67: 工程成本-在安装设备 | L67: 借 | M67: 916.67 | N67: 1 | O67: 500002150 | P67: 10kV三相隔离开关,630A,20kA,手动双柱立开式,不接地 | Q67: 组 | R67: 155.83 | S67: 0
A68: 2017-12-08 | B68: 4900391793 | C68: 发货 | D68: 62 | E68: 对常州金坛区10kV白龙线改接至110kV发货 | F68: 18104117A10200A1310Z0004 | G68: 杆上配变 | H68: 18104117A102 | I68: 常州金坛区10kV电胜线城东下塘2队东新建工程 | J68: 9201030000 | K68: 工程成本-在安装设备 | L68: 借 | M68: 578.33 | N68: 3 | O68: 500007914 | P68: 高压熔断器,AC10kV,跌落式,100A | Q68: 只 | R68: 98.32 | S68: 0
A69: 2017-12-08 | B69: 4900391793 | C69: 发货 | D69: 62 | E69: 对常州金坛区10kV白龙线改接至110kV发货 | F69: 18104117A10200A1321000 | G69: 10kV（20kV）配电装置 | H69: 18104117A102 | I69: 常州金坛区10kV电胜线城东下塘2队东新建工程 | J69: 9201030000 | K69: 工程成本-在安装设备 | L69: 借 | M69: 254.55 | N69: 0.05 | O69: 500018848 | P69: 半圆抱箍,—4×40,D100,U型 | Q69: 块 | R69: 43.27 | S69: 0
A70: 2017-12-08 | B70: 4900391793 | C70: 发货 | D70: 62 | E70: 对常州金坛区10kV白龙线改接至110kV发货 | F70: 18104117A10200A1321000 | G70: 10kV（20kV）配电装置 | H70: 18104117A102 | I70: 常州金坛区10kV电胜线城东下塘2队东新建工程 | J70: 9201030000 | K70: 工程成本-在安装设备 | L70: 借 | M70: 35.64 | N70: 0.007 | O70: 500018848 | P70: 半圆抱箍,—4×40,D100,U型 | Q70: 块 | R70: 6.06 | S70: 0
A71: 2017-12-08 | B71: 4900391793 | C71: 发货 | D71: 62 | E71: 对常州金坛区10kV白龙线改接至110kV发货 | F71: 18104117A10200A1321000 | G71: 10kV（20kV）配电装置 | H71: 18104117A102 | I71: 常州金坛区10kV电胜线城东下塘2队东新建工程 | J71: 9201030000 | K71: 工程成本-在安装设备 | L71: 借 | M71: 92.02 | N71: 6 | O71: 500058163 | P71: 接续金具-接地线夹,JDL-50-240 | Q71: 付 | R71: 15.64 | S71: 0
A72: 2017-12-08 | B72: 4900391793 | C72: 发货 | D72: 62 | E72: 对常州金坛区10kV白龙线改接至110kV发货 | F72: 18104117A10200A1321000 | G72: 10kV（20kV）配电装置 | H72: 18104117A102 | I72: 常州金坛区10kV电胜线城东下塘2队东新建工程 | J72: 9201030000 | K72: 工程成本-在安装设备 | L72: 借 | M72: 152.73 | N72: 0.03 | O72: 500018848 | P72: 半圆抱箍,—4×40,D100,U型 | Q72: 块 | R72: 25.96 | S72: 0
A73: 2017-12-08 | B73: 4900391793 | C73: 发货 | D73: 62 | E73: 对常州金坛区10kV白龙线改接至110kV发货 | F73: 18104117A10200A1321000 | G73: 10kV（20kV）配电装置 | H73: 18104117A102 | I73: 常州金坛区10kV电胜线城东下塘2队东新建工程 | J73: 9201030000 | K73: 工程成本-在安装设备 | L73: 借 | M73: 61.09 | N73: 0.012 | O73: 500018848 | P73: 半圆抱箍,—4×40,D100,U型 | Q73: 块 | R73: 10.39 | S73: 0
A74: 2017-12-08 | B74: 4900391793 | C74: 发货 | D74: 62 | E74: 对常州金坛区10kV白龙线改接至110kV发货 | F74: 18104117A10200A1321000 | G74: 10kV（20kV）配电装置 | H74: 18104117A102 | I74: 常州金坛区10kV电胜线城东下塘2队东新建工程 | J74: 9201030000 | K74: 工程成本-在安装设备 | L74: 借 | M74: 50.91 | N74: 0.01 | O74: 500018848 | P74: 半圆抱箍,—4×40,D100,U型 | Q74: 块 | R74: 8.65 | S74: 0
A75: 2017-12-08 | B75: 4900391793 | C75: 发货 | D75: 62 | E75: 对常州金坛区10kV白龙线改接至110kV发货 | F75: 18104117A10200A1321000 | G75: 10kV（20kV）配电装置 | H75: 18104117A102 | I75: 常州金坛区10kV电胜线城东下塘2队东新建工程 | J75: 9201030000 | K75: 工程成本-在安装设备 | L75: 借 | M75: 213.38 | N75: 3 | O75: 500027151 | P75: 交流避雷器,AC10kV,17kV,硅橡胶,50kV,不带间隙 | Q75: 台 | R75: 36.27 | S75: 0
A76: 2017-12-08 | B76: 4900391793 | C76: 发货 | D76: 62 | E76: 对常州金坛区10kV白龙线改接至110kV发货 | F76: 18104117A10200A1321000 | G76: 10kV（20kV）配电装置 | H76: 18104117A102 | I76: 常州金坛区10kV电胜线城东下塘2队东新建工程 | J76: 9201030000 | K76: 工程成本-在安装设备 | L76: 借 | M76: 39.54 | N76: 3 | O76: 500028236 | P76: 接续金具-跳线线夹,JYT-120/20 | Q76: 付 | R76: 6.72 | S76: 0
A77: 2017-12-08 | B77: 4900391793 | C77: 发货 | D77: 62 | E77: 对常州金坛区10kV白龙线改接至110kV发货 | F77: 18104117A10200A1321000 | G77: 10kV（20kV）配电装置 | H77: 18104117A102 | I77: 常州金坛区10kV电胜线城东下塘2队东新建工程 | J77: 9201030000 | K77: 工程成本-在安装设备 | L77: 借 | M77: 16.67 | N77: 0.003 | O77: 500065920 | P77: 钢绞线,1×7-7.8-1270-B,35,镀锌 | Q77: 吨 | R77: 2.83 | S77: 0
A78: 2017-12-08 | B78: 4900391793 | C78: 发货 | D78: 62 | E78: 对常州金坛区10kV白龙线改接至110kV发货 | F78: 18104117A10200A1321000 | G78: 10kV（20kV）配电装置 | H78: 18104117A102 | I78: 常州金坛区10kV电胜线城东下塘2队东新建工程 | J78: 9201030000 | K78: 工程成本-在安装设备 | L78: 借 | M78: 35.64 | N78: 0.007 | O78: 500018848 | P78: 半圆抱箍,—4×40,D100,U型 | Q78: 块 | R78: 6.06 | S78: 0
A79: 2017-12-08 | B79: 4900391793 | C79: 发货 | D79: 62 | E79: 对常州金坛区10kV白龙线改接至110kV发货 | F79: 18104117A10200A1321000 | G79: 10kV（20kV）配电装置 | H79: 18104117A102 | I79: 常州金坛区10kV电胜线城东下塘2队东新建工程 | J79: 9201030000 | K79: 工程成本-在安装设备 | L79: 借 | M79: 35.64 | N79: 0.007 | O79: 500018848 | P79: 半圆抱箍,—4×40,D100,U型 | Q79: 块 | R79: 6.06 | S79: 0
A80: 2017-12-08 | B80: 4900391793 | C80: 发货 | D80: 62 | E80: 对常州金坛区10kV白龙线改接至110kV发货 | F80: 18104117A10200A1321000 | G80: 10kV（20kV）配电装置 | H80: 18104117A102 | I80: 常州金坛区10kV电胜线城东下塘2队东新建工程 | J80: 9201030000 | K80: 工程成本-在安装设备 | L80: 借 | M80: 15.27 | N80: 0.003 | O80: 500018848 | P80: 半圆抱箍,—4×40,D100,U型 | Q80: 块 | R80: 2.6 | S80: 0
A81: 2017-12-08 | B81: 4900391793 | C81: 发货 | D81: 62 | E81: 对常州金坛区10kV白龙线改接至110kV发货 | F81: 18104117A10200A1321000 | G81: 10kV（20kV）配电装置 | H81: 18104117A102 | I81: 常州金坛区10kV电胜线城东下塘2队东新建工程 | J81: 9201030000 | K81: 工程成本-在安装设备 | L81: 借 | M81: 20.36 | N81: 0.004 | O81: 500018848 | P81: 半圆抱箍,—4×40,D100,U型 | Q81: 块 | R81: 3.46 | S81: 0
A82: 2017-12-08 | B82: 4900391793 | C82: 发货 | D82: 62 | E82: 对常州金坛区10kV白龙线改接至110kV发货 | F82: 18104117A10200A1321000 | G82: 10kV（20kV）配电装置 | H82: 18104117A102 | I82: 常州金坛区10kV电胜线城东下塘2队东新建工程 | J82: 9201030000 | K82: 工程成本-在安装设备 | L82: 借 | M82: 10.18 | N82: 0.002 | O82: 500018848 | P82: 半圆抱箍,—4×40,D100,U型 | Q82: 块 | R82: 1.73 | S82: 0
A83: 2017-12-08 | B83: 4900391793 | C83: 发货 | D83: 62 | E83: 对常州金坛区10kV白龙线改接至110kV发货 | F83: 18104117A10200A1321000 | G83: 10kV（20kV）配电装置 | H83: 18104117A102 | I83: 常州金坛区10kV电胜线城东下塘2队东新建工程 | J83: 9201030000 | K83: 工程成本-在安装设备 | L83: 借 | M83: 76.29 | N83: 20 | O83: 500021863 | P83: 电缆接线端子,铜,50mm2,单孔 | Q83: 只 | R83: 12.97 | S83: 0
A84: 2017-12-08 | B84: 4900391793 | C84: 发货 | D84: 62 | E84: 对常州金坛区10kV白龙线改接至110kV发货 | F84: 18104117A10200A1321000 | G84: 10kV（20kV）配电装置 | H84: 18104117A102 | I84: 常州金坛区10kV电胜线城东下塘2队东新建工程 | J84: 9201030000 | K84: 工程成本-在安装设备 | L84: 借 | M84: 86.55 | N84: 0.017 | O84: 500018848 | P84: 半圆抱箍,—4×40,D100,U型 | Q84: 块 | R84: 14.71 | S84: 0
A85: 2017-12-08 | B85: 4900391793 | C85: 发货 | D85: 62 | E85: 对常州金坛区10kV白龙线改接至110kV发货 | F85: 18104117A10200A1321000 | G85: 10kV（20kV）配电装置 | H85: 18104117A102 | I85: 常州金坛区10kV电胜线城东下塘2队东新建工程 | J85: 9201030000 | K85: 工程成本-在安装设备 | L85: 借 | M85: 9.52 | N85: 2 | O85: 500020515 | P85: 接续金具-并沟线夹,JBB-1 | Q85: 付 | R85: 1.62 | S85: 0
A86: 2017-12-11 | B86: 5000192015 | C86: 转账 | D86: 248 | E86: 常州金坛区S239省道北侧新建电缆管沟工确认服务费 | F86: 18104117A1A300A5230000 | G86: 工程监理费 | H86: 18104117A1A3 | I86: 常州金坛区S239省道北侧新建电缆管沟工程 | J86: 9201050000 | K86: 工程成本-待摊支出-其他 | L86: 借 | M86: 29184.72 | N86: 30935.8 | Q86: 作业单位 | R86: 1751.08 | S86: 0 | V86: 1000041455 | W86: 江苏兴力建设集团有限公司
A87: 2017-12-11 | B87: 5000192017 | C87: 转账 | D87: 249 | E87: 常州金坛区南环二路（兴隆路-良湖路）新建确认服务费 | F87: 18104117A19F00A5230000 | G87: 工程监理费 | H87: 18104117A19F | I87: 常州金坛区南环二路（兴隆路-良湖路）新建电缆管沟工程 | J87: 9201050000 | K87: 工程成本-待摊支出-其他 | L87: 借 | M87: 28698.96 | N87: 30420.9 | Q87: 作业单位 | R87: 1721.94 | S87: 0 | V87: 1000041455 | W87: 江苏兴力建设集团有限公司
A88: 2017-12-11 | B88: 5000192068 | C88: 转账 | D88: 274 | E88: 常州金坛区10kV白塔线白塔北商品房1#确认服务费 | F88: 18104117A10600A5230000 | G88: 工程监理费 | H88: 18104117A106 | I88: 常州金坛区10kV白塔线白塔北商品房1#变改造工程 | J88: 9201050000 | K88: 工程成本-待摊支出-其他 | L88: 借 | M88: 2931.56 | N88: 3107.45 | Q88: 作业单位 | R88: 175.89 | S88: 0 | V88: 1000041455 | W88: 江苏兴力建设集团有限公司
A89: 2017-12-11 | B89: 5000192069 | C89: 转账 | D89: 275 | E89: 常州金坛区10kV电胜线城东下塘2队东新确认服务费 | F89: 18104117A10200A5230000 | G89: 工程监理费 | H89: 18104117A102 | I89: 常州金坛区10kV电胜线城东下塘2队东新建工程 | J89: 9201050000 | K89: 工程成本-待摊支出-其他 | L89: 借 | M89: 2849.1 | N89: 3020.05 | Q89: 作业单位 | R89: 170.95 | S89: 0 | V89: 1000041455 | W89: 江苏兴力建设集团有限公司
A90: 2017-12-12 | B90: 1900128708 | C90: 转账 | D90: 393 | E90: 2017年配网资本项目安评费 | F90: 18104117A1A300A5140000 | G90: 线路施工赔偿费 | H90: 18104117A1A3 | I90: 常州金坛区S239省道北侧新建电缆管沟工程 | J90: 9201050000 | K90: 工程成本-待摊支出-其他 | L90: 借 | M90: 43689.32 | N90: 0 | R90: 1310.68 | S90: 0 | V90: 1000540121 | W90: 南京航专建设工程咨询有限公司
A91: 2017-12-14 | B91: 4900402769 | C91: 发货 | D91: 192 | E91: 对常州金坛区S239省道北侧新建电缆管沟工发货 | F91: 18104117A1A300A1370Z0001 | G91: 中压电缆线路 | H91: 18104117A1A3 | I91: 常州金坛区S239省道北侧新建电缆管沟工程 | J91: 9201030000 | K91: 工程成本-在安装设备 | L91: 借 | M91: 44862.75 | N91: 540 | O91: 500021520 | P91: 电缆保护管,MPP,φ200 | Q91: 米 | R91: 7626.67 | S91: 0
A92: 2017-12-14 | B92: 4900402769 | C92: 发货 | D92: 192 | E92: 对常州金坛区S239省道北侧新建电缆管沟工发货 | F92: 18104117A19F00A1370Z0001 | G92: 中压电缆线路 | H92: 18104117A19F | I92: 常州金坛区南环二路（兴隆路-良湖路）新建电缆管沟工程 | J92: 9201030000 | K92: 工程成本-在安装设备 | L92: 借 | M92: 249237.48 | N92: 3000 | O92: 500021520 | P92: 电缆保护管,MPP,φ200 | Q92: 米 | R92: 42370.37 | S92: 0
A93: 2017-12-14 | B93: 4900402769 | C93: 发货 | D93: 192 | E93: 对常州金坛区S239省道北侧新建电缆管沟工发货 | F93: 18104117A19F00A1370Z0001 | G93: 中压电缆线路 | H93: 18104117A19F | I93: 常州金坛区南环二路（兴隆路-良湖路）新建电缆管沟工程 | J93: 9201030000 | K93: 工程成本-在安装设备 | L93: 借 | M93: 230046.19 | N93: 2769 | O93: 500021520 | P93: 电缆保护管,MPP,φ200 | Q93: 米 | R93: 39107.85 | S93: 0
A94: 2017-12-20 | B94: 5000209560 | C94: 转账 | D94: 1392 | E94: 常州金坛区S239省道北侧新建电缆管沟工确认服务费 | F94: 18104117A1A300A1210000 | G94: 变压器安装 | H94: 18104117A1A3 | I94: 常州金坛区S239省道北侧新建电缆管沟工程 | J94: 9201020100 | K94: 工程成本-安装工程支出 | L94: 借 | M94: 418551.71 | N94: 464592.4 | Q94: 作业单位 | R94: 46040.69 | S94: 0 | V94: 1000136162 | W94: 常州华科电力建设有限公司
A95: 2017-12-20 | B95: 5000209561 | C95: 转账 | D95: 1393 | E95: 常州金坛区南环二路（兴隆路-良湖路）新建确认服务费 | F95: 18104117A19F00A1210000 | G95: 变压器安装 | H95: 18104117A19F | I95: 常州金坛区南环二路（兴隆路-良湖路）新建电缆管沟工程 | J95: 9201020100 | K95: 工程成本-安装工程支出 | L95: 借 | M95: 482324.77 | N95: 535380.5 | Q95: 作业单位 | R95: 53055.72 | S95: 0 | V95: 1000136162 | W95: 常州华科电力建设有限公司
A96: 2017-12-20 | B96: 5100122982 | C96: 转账 | D96: 1408 | E96: 采购订单4710681880发票校验 | F96: 18104117A1A300A1210000 | G96: 变压器安装 | H96: 18104117A1A3 | I96: 常州金坛区S239省道北侧新建电缆管沟工程 | J96: 9201020100 | K96: 工程成本-安装工程支出 | L96: 借 | M96: 0.01 | N96: 464592.4 | Q96: 作业单位 | R96: 0 | S96: 0 | V96: 1000136162 | W96: 常州华科电力建设有限公司
A97: 2017-12-21 | B97: 5000212032 | C97: 转账 | D97: 1566 | E97: 常州金坛区10kV直溪线庄房3#变新建工确认服务费 | F97: 18104117A10500A5230000 | G97: 工程监理费 | H97: 18104117A105 | I97: 常州金坛区10kV直溪线庄房3#变新建工程 | J97: 9201050000 | K97: 工程成本-待摊支出-其他 | L97: 借 | M97: 2487.92 | N97: 2637.2 | Q97: 作业单位 | R97: 149.28 | S97: 0 | V97: 1000041455 | W97: 江苏兴力建设集团有限公司
A98: 2017-12-25 | B98: 4900421826 | C98: 发货 | D98: 247 | E98: 对常州金坛区城南花园、金源福地等变电所改造发货 | F98: 18104117A1D400A1310Z0002 | G98: 生产管理用工器具 | H98: 18104117A1D4 | I98: 常州金坛区城南花园、金源福地等变电所改造工程 | J98: 9201030000 | K98: 工程成本-在安装设备 | L98: 借 | M98: 175655 | N98: 19 | O98: 500136631 | P98: 分体柜式空调器,通用,通用 | Q98: 台 | R98: 29861.35 | S98: 0
A99: 2017-12-25 | B99: 4900421826 | C99: 发货 | D99: 247 | E99: 对常州金坛区城南花园、金源福地等变电所改造发货 | F99: 18104117A1D400A1310Z0001 | G99: 生产管理用工器具 | H99: 18104117A1D4 | I99: 常州金坛区城南花园、金源福地等变电所改造工程 | J99: 9201030000 | K99: 工程成本-在安装设备 | L99: 借 | M99: 523556.04 | N99: 19 | O99: 500025056 | P99: 加湿器 | Q99: 台 | R99: 89004.53 | S99: 0
A100: 2017-12-27 | B100: 1900153307 | C100: 转账 | D100: 1794 | E100: 2017年配网资本项目政策处理补偿费（儒林镇） | F100: 18104117A1A300A5140000 | G100: 线路施工赔偿费 | H100: 18104117A1A3 | I100: 常州金坛区S239省道北侧新建电缆管沟工程 | J100: 9201050000 | K100: 工程成本-待摊支出-其他 | L100: 借 | M100: 49000 | N100: 0 | R100: 0 | S100: 0 | V100: 0399000086 | W100: 金坛供电公司（国网）一次性供应商
A101: 2017-12-27 | B101: 4900423065 | C101: 发货 | D101: 253 | E101: 对常州金坛区10kV集镇线圩田村支上汤站配发货 | F101: 18104117A1D800A1321000 | G101: 10kV（20kV）配电装置 | H101: 18104117A1D8 | I101: 常州金坛区10kV尧塘线尧塘集镇4#变配变改造工程 | J101: 9201030000 | K101: 工程成本-在安装设备 | L101: 借 | M101: 8427.51 | N101: 1 | O101: 500132919 | P101: 配电箱,户外,4回路400kVA | Q101: 个 | R101: 1432.68 | S101: 0
A102: 2017-12-27 | B102: 4900423065 | C102: 发货 | D102: 253 | E102: 对常州金坛区10kV集镇线圩田村支上汤站配发货 | F102: 18104117A1D600A1310Z0001 | G102: 杆上配变 | H102: 18104117A1D6 | I102: 常州金坛区10kV茅东线西阳1#变更换工程 | J102: 9201030000 | K102: 工程成本-在安装设备 | L102: 借 | M102: 33316.34 | N102: 1 | O102: 500007425 | P102: 10kV变压器,400kVA,普通,非晶合金,油浸 | Q102: 台 | R102: 5663.78 | S102: 0
A103: 2017-12-27 | B103: 4900423065 | C103: 发货 | D103: 253 | E103: 对常州金坛区10kV集镇线圩田村支上汤站配发货 | F103: 18104117A1DF00A1310Z0001 | G103: 箱式变 | H103: 18104117A1DF | I103: 常州金坛区10kV思模线天赐园小区1#、3#箱变改造工程 | J103: 9201030000 | K103: 工程成本-在安装设备 | L103: 借 | M103: 134500 | N103: 1 | O103: 500061862 | P103: 10kV箱式变电站,500kVA,欧式,硅钢片,普通,有环网柜 | Q103: 套 | R103: 22865 | S103: 0
A104: 2017-12-27 | B104: 4900423065 | C104: 发货 | D104: 253 | E104: 对常州金坛区10kV集镇线圩田村支上汤站配发货 | F104: 18104117A1DE00A1310Z0001 | G104: 杆上配变 | H104: 18104117A1DE | I104: 常州金坛区10kV民丰线毛白塘支五家站配变改造工程 | J104: 9201030000 | K104: 工程成本-在安装设备 | L104: 借 | M104: 28464.87 | N104: 1 | O104: 500007396 | P104: 10kV变压器,400kVA,普通,硅钢片,油浸 | Q104: 台 | R104: 4839.03 | S104: 0
A105: 2017-12-27 | B105: 4900423065 | C105: 发货 | D105: 253 | E105: 对常州金坛区10kV集镇线圩田村支上汤站配发货 | F105: 18104117A1DF00A1310Z0001 | G105: 箱式变 | H105: 18104117A1DF | I105: 常州金坛区10kV思模线天赐园小区1#、3#箱变改造工程 | J105: 9201030000 | K105: 工程成本-在安装设备 | L105: 借 | M105: 134500 | N105: 1 | O105: 500061862 | P105: 10kV箱式变电站,500kVA,欧式,硅钢片,普通,有环网柜 | Q105: 套 | R105: 22865 | S105: 0
A106: 2017-12-27 | B106: 4900423065 | C106: 发货 | D106: 253 | E106: 对常州金坛区10kV集镇线圩田村支上汤站配发货 | F106: 18104117A1DA00A1310Z0001 | G106: 箱式变 | H106: 18104117A1DA | I106: 常州金坛区10kV愚池线愚池2#箱变改造工程 | J106: 9201030000 | K106: 工程成本-在安装设备 | L106: 借 | M106: 110400 | N106: 1 | O106: 500061857 | P106: 10kV箱式变电站,400kVA,欧式,硅钢片,普通,有环网柜 | Q106: 套 | R106: 18768 | S106: 0
A107: 2017-12-27 | B107: 4900423065 | C107: 发货 | D107: 253 | E107: 对常州金坛区10kV集镇线圩田村支上汤站配发货 | F107: 18104117A1D500A1310Z0002 | G107: 杆上配变 | H107: 18104117A1D5 | I107: 常州金坛区10kV长兴线小木桥3#配变新增工程 | J107: 9201030000 | K107: 工程成本-在安装设备 | L107: 借 | M107: 28464.87 | N107: 1 | O107: 500007396 | P107: 10kV变压器,400kVA,普通,硅钢片,油浸 | Q107: 台 | R107: 4839.03 | S107: 0
A108: 2017-12-27 | B108: 4900423065 | C108: 发货 | D108: 253 | E108: 对常州金坛区10kV集镇线圩田村支上汤站配发货 | F108: 18104117A1D900A1321000 | G108: 10kV（20kV）配电装置 | H108: 18104117A1D9 | I108: 常州金坛区10kV东明线城东界沟站配变改造工程 | J108: 9201030000 | K108: 工程成本-在安装设备 | L108: 借 | M108: 8427.51 | N108: 1 | O108: 500132919 | P108: 配电箱,户外,4回路400kVA | Q108: 个 | R108: 1432.68 | S108: 0
A109: 2017-12-27 | B109: 4900423065 | C109: 发货 | D109: 253 | E109: 对常州金坛区10kV集镇线圩田村支上汤站配发货 | F109: 18104117A1DE00A1321000 | G109: 10kV（20kV）配电装置 | H109: 18104117A1DE | I109: 常州金坛区10kV民丰线毛白塘支五家站配变改造工程 | J109: 9201030000 | K109: 工程成本-在安装设备 | L109: 借 | M109: 8427.52 | N109: 1 | O109: 500132919 | P109: 配电箱,户外,4回路400kVA | Q109: 个 | R109: 1432.68 | S109: 0
A110: 2017-12-27 | B110: 4900423065 | C110: 发货 | D110: 253 | E110: 对常州金坛区10kV集镇线圩田村支上汤站配发货 | F110: 18104117A1DC00A1310Z0002 | G110: 杆上配变 | H110: 18104117A1DC | I110: 常州金坛区10kV岸头线岸头亚明机械厂配变改造工程 | J110: 9201030000 | K110: 工程成本-在安装设备 | L110: 借 | M110: 21749.38 | N110: 1 | O110: 500007415 | P110: 10kV变压器,200kVA,普通,非晶合金,油浸 | Q110: 台 | R110: 3697.39 | S110: 0
A111: 2017-12-27 | B111: 4900423065 | C111: 发货 | D111: 253 | E111: 对常州金坛区10kV集镇线圩田村支上汤站配发货 | F111: 18104117A1DD00A1310Z0001 | G111: 杆上配变 | H111: 18104117A1DD | I111: 常州金坛区10kV罗村线洪村变更换工程 | J111: 9201030000 | K111: 工程成本-在安装设备 | L111: 借 | M111: 33316.34 | N111: 1 | O111: 500007425 | P111: 10kV变压器,400kVA,普通,非晶合金,油浸 | Q111: 台 | R111: 5663.78 | S111: 0
A112: 2017-12-27 | B112: 4900423065 | C112: 发货 | D112: 253 | E112: 对常州金坛区10kV集镇线圩田村支上汤站配发货 | F112: 18104117A1D500A1321000 | G112: 10kV（20kV）配电装置 | H112: 18104117A1D5 | I112: 常州金坛区10kV长兴线小木桥3#配变新增工程 | J112: 9201030000 | K112: 工程成本-在安装设备 | L112: 借 | M112: 8427.51 | N112: 1 | O112: 500132919 | P112: 配电箱,户外,4回路400kVA | Q112: 个 | R112: 1432.68 | S112: 0
A113: 2017-12-27 | B113: 4900423065 | C113: 发货 | D113: 253 | E113: 对常州金坛区10kV集镇线圩田村支上汤站配发货 | F113: 18104117A1D900A1310Z0001 | G113: 杆上配变 | H113: 18104117A1D9 | I113: 常州金坛区10kV东明线城东界沟站配变改造工程 | J113: 9201030000 | K113: 工程成本-在安装设备 | L113: 借 | M113: 28464.86 | N113: 1 | O113: 500007396 | P113: 10kV变压器,400kVA,普通,硅钢片,油浸 | Q113: 台 | R113: 4839.03 | S113: 0
A114: 2017-12-27 | B114: 4900423065 | C114: 发货 | D114: 253 | E114: 对常州金坛区10kV集镇线圩田村支上汤站配发货 | F114: 18104117A1D700A1310Z0001 | G114: 杆上配变 | H114: 18104117A1D7 | I114: 常州金坛区10kV集镇线圩田村支上汤站配变改造工程 | J114: 9201030000 | K114: 工程成本-在安装设备 | L114: 借 | M114: 21749.38 | N114: 1 | O114: 500007415 | P114: 10kV变压器,200kVA,普通,非晶合金,油浸 | Q114: 台 | R114: 3697.39 | S114: 0
A115: 2017-12-27 | B115: 4900423065 | C115: 发货 | D115: 253 | E115: 对常州金坛区10kV集镇线圩田村支上汤站配发货 | F115: 18104117A1D800A1310Z0001 | G115: 杆上配变 | H115: 18104117A1D8 | I115: 常州金坛区10kV尧塘线尧塘集镇4#变配变改造工程 | J115: 9201030000 | K115: 工程成本-在安装设备 | L115: 借 | M115: 21749.38 | N115: 1 | O115: 500007415 | P115: 10kV变压器,200kVA,普通,非晶合金,油浸 | Q115: 台 | R115: 3697.39 | S115: 0
A116: 2017-12-27 | B116: 4900423082 | C116: 发货 | D116: 261 | E116: 对常州金坛区10kV罗村线赤岗村2#变更换发货 | F116: 18104117A1DB00A1310Z0002 | G116: 杆上配变 | H116: 18104117A1DB | I116: 常州金坛区10kV罗村线赤岗村2#变更换工程 | J116: 9201030000 | K116: 工程成本-在安装设备 | L116: 借 | M116: 28464.87 | N116: 1 | O116: 500007396 | P116: 10kV变压器,400kVA,普通,硅钢片,油浸 | Q116: 台 | R116: 4839.03 | S116: 0
A117: 2018-03-24 | B117: 4900038161 | C117: 发货 | D117: 23 | E117: 对常州金坛区10kV岸头线岸头亚明机械厂配发货 | F117: 18104117A1D900A1321000 | G117: 10kV（20kV）配电装置 | H117: 18104117A1D9 | I117: 常州金坛区10kV东明线城东界沟站配变改造工程 | J117: 9201030000 | K117: 工程成本-在安装设备 | L117: 借 | M117: 13.4 | N117: 1 | O117: 500020748 | P117: 拉线金具-UT型线夹,NUT-1 | Q117: 付 | R117: 2.28 | S117: 0
A118: 2018-03-24 | B118: 4900038161 | C118: 发货 | D118: 23 | E118: 对常州金坛区10kV岸头线岸头亚明机械厂配发货 | F118: 18104117A1D900A1321000 | G118: 10kV（20kV）配电装置 | H118: 18104117A1D9 | I118: 常州金坛区10kV东明线城东界沟站配变改造工程 | J118: 9201030000 | K118: 工程成本-在安装设备 | L118: 借 | M118: 44.67 | N118: 6 | O118: 500020370 | P118: 联结金具-碗头挂板,WS-7 | Q118: 只 | R118: 7.59 | S118: 0
A119: 2018-03-24 | B119: 4900038161 | C119: 发货 | D119: 23 | E119: 对常州金坛区10kV岸头线岸头亚明机械厂配发货 | F119: 18104117A1D900A1321000 | G119: 10kV（20kV）配电装置 | H119: 18104117A1D9 | I119: 常州金坛区10kV东明线城东界沟站配变改造工程 | J119: 9201030000 | K119: 工程成本-在安装设备 | L119: 借 | M119: 8.05 | N119: 2 | O119: 500020410 | P119: 联结金具-延长环,PH-7 | Q119: 只 | R119: 1.37 | S119: 0
A120: 2018-03-24 | B120: 4900038161 | C120: 发货 | D120: 23 | E120: 对常州金坛区10kV岸头线岸头亚明机械厂配发货 | F120: 18104117A1D900A1321000 | G120: 10kV（20kV）配电装置 | H120: 18104117A1D9 | I120: 常州金坛区10kV东明线城东界沟站配变改造工程 | J120: 9201030000 | K120: 工程成本-在安装设备 | L120: 借 | M120: 19.76 | N120: 6 | O120: 500020354 | P120: 联结金具-球头挂环,Q-7 | Q120: 只 | R120: 3.36 | S120: 0
A121: 2018-03-24 | B121: 4900038161 | C121: 发货 | D121: 23 | E121: 对常州金坛区10kV岸头线岸头亚明机械厂配发货 | F121: 18104117A1D900A1321000 | G121: 10kV（20kV）配电装置 | H121: 18104117A1D9 | I121: 常州金坛区10kV东明线城东界沟站配变改造工程 | J121: 9201030000 | K121: 工程成本-在安装设备 | L121: 借 | M121: 429.46 | N121: 13 | O121: 500122792 | P121: 交流盘形悬式瓷绝缘子,U70B/146,255,320 | Q121: 片 | R121: 73.01 | S121: 0
A122: 2018-03-24 | B122: 4900038161 | C122: 发货 | D122: 23 | E122: 对常州金坛区10kV岸头线岸头亚明机械厂配发货 | F122: 18104117A1D900A1321000 | G122: 10kV（20kV）配电装置 | H122: 18104117A1D9 | I122: 常州金坛区10kV东明线城东界沟站配变改造工程 | J122: 9201030000 | K122: 工程成本-在安装设备 | L122: 借 | M122: 25.72 | N122: 3 | O122: 500029690 | P122: 拉线金具-锲型线夹,NX-1 | Q122: 付 | R122: 4.37 | S122: 0
A123: 2018-03-24 | B123: 4900038161 | C123: 发货 | D123: 23 | E123: 对常州金坛区10kV岸头线岸头亚明机械厂配发货 | F123: 18104117A1D900A1321000 | G123: 10kV（20kV）配电装置 | H123: 18104117A1D9 | I123: 常州金坛区10kV东明线城东界沟站配变改造工程 | J123: 9201030000 | K123: 工程成本-在安装设备 | L123: 借 | M123: 58.88 | N123: 1 | O123: 500027409 | P123: 水泥制品,拉盘,400×800×200 | Q123: 块 | R123: 10.01 | S123: 0
A124: 2018-03-24 | B124: 4900038161 | C124: 发货 | D124: 23 | E124: 对常州金坛区10kV岸头线岸头亚明机械厂配发货 | F124: 18104117A1D900A1321000 | G124: 10kV（20kV）配电装置 | H124: 18104117A1D9 | I124: 常州金坛区10kV东明线城东界沟站配变改造工程 | J124: 9201030000 | K124: 工程成本-在安装设备 | L124: 借 | M124: 34.39 | N124: 6 | O124: 500020399 | P124: 联结金具-直角挂板,Z-7 | Q124: 只 | R124: 5.85 | S124: 0
A125: 2018-03-24 | B125: 4900038161 | C125: 发货 | D125: 23 | E125: 对常州金坛区10kV岸头线岸头亚明机械厂配发货 | F125: 18104117A1D900A1370Z0002 | G125: 中压架空线路 | H125: 18104117A1D9 | I125: 常州金坛区10kV东明线城东界沟站配变改造工程 | J125: 9201030000 | K125: 工程成本-在安装设备 | L125: 借 | M125: 150.42 | N125: 0.018 | O125: 500014661 | P125: 架空绝缘导线,AC10kV,JKLYJ,150 | Q125: 千米 | R125: 25.57 | S125: 0
A126: 2018-03-24 | B126: 4900038161 | C126: 发货 | D126: 23 | E126: 对常州金坛区10kV岸头线岸头亚明机械厂配发货 | F126: 18104117A1D900A1321000 | G126: 10kV（20kV）配电装置 | H126: 18104117A1D9 | I126: 常州金坛区10kV东明线城东界沟站配变改造工程 | J126: 9201030000 | K126: 工程成本-在安装设备 | L126: 借 | M126: 43.01 | N126: 2 | O126: 500122534 | P126: 线路柱式瓷绝缘子,R5ET105L,125,283,360 | Q126: 只 | R126: 7.31 | S126: 0
A127: 2018-03-24 | B127: 4900038161 | C127: 发货 | D127: 23 | E127: 对常州金坛区10kV岸头线岸头亚明机械厂配发货 | F127: 18104117A1D900A1321000 | G127: 10kV（20kV）配电装置 | H127: 18104117A1D9 | I127: 常州金坛区10kV东明线城东界沟站配变改造工程 | J127: 9201030000 | K127: 工程成本-在安装设备 | L127: 借 | M127: 8.51 | N127: 4 | O127: 500020760 | P127: 拉线金具-钢线卡子,JK-1 | Q127: 只 | R127: 1.45 | S127: 0
A128: 2018-03-24 | B128: 4900038161 | C128: 发货 | D128: 23 | E128: 对常州金坛区10kV岸头线岸头亚明机械厂配发货 | F128: 18104117A1D900A1321000 | G128: 10kV（20kV）配电装置 | H128: 18104117A1D9 | I128: 常州金坛区10kV东明线城东界沟站配变改造工程 | J128: 9201030000 | K128: 工程成本-在安装设备 | L128: 借 | M128: 45.71 | N128: 0.01 | O128: 500065920 | P128: 钢绞线,1×7-7.8-1270-B,35,镀锌 | Q128: 吨 | R128: 7.77 | S128: 0
A129: 2018-03-24 | B129: 4900038161 | C129: 发货 | D129: 23 | E129: 对常州金坛区10kV岸头线岸头亚明机械厂配发货 | F129: 18104117A1D900A1321000 | G129: 10kV（20kV）配电装置 | H129: 18104117A1D9 | I129: 常州金坛区10kV东明线城东界沟站配变改造工程 | J129: 9201030000 | K129: 工程成本-在安装设备 | L129: 借 | M129: 156.06 | N129: 6 | O129: 500027946 | P129: 耐张线夹-楔型绝缘,NXJ-150/10KV | Q129: 付 | R129: 26.53 | S129: 0
A130: 2018-03-24 | B130: 4900038161 | C130: 发货 | D130: 23 | E130: 对常州金坛区10kV岸头线岸头亚明机械厂配发货 | F130: 18104117A1D900A1321000 | G130: 10kV（20kV）配电装置 | H130: 18104117A1D9 | I130: 常州金坛区10kV东明线城东界沟站配变改造工程 | J130: 9201030000 | K130: 工程成本-在安装设备 | L130: 借 | M130: 50.77 | N130: 3 | O130: 500020544 | P130: 接续金具-跳线线夹,JYT-150/20 | Q130: 付 | R130: 8.63 | S130: 0
A131: 2018-03-24 | B131: 4900038161 | C131: 发货 | D131: 23 | E131: 对常州金坛区10kV岸头线岸头亚明机械厂配发货 | F131: 18104117A1D900A1321000 | G131: 10kV（20kV）配电装置 | H131: 18104117A1D9 | I131: 常州金坛区10kV东明线城东界沟站配变改造工程 | J131: 9201030000 | K131: 工程成本-在安装设备 | L131: 借 | M131: 59.51 | N131: 3 | O131: 500020770 | P131: T型线夹-T型线夹,TY-150/20 | Q131: 付 | R131: 10.12 | S131: 0
A132: 2018-03-24 | B132: 4900038161 | C132: 发货 | D132: 23 | E132: 对常州金坛区10kV岸头线岸头亚明机械厂配发货 | F132: 18104117A1D900A1321000 | G132: 10kV（20kV）配电装置 | H132: 18104117A1D9 | I132: 常州金坛区10kV东明线城东界沟站配变改造工程 | J132: 9201030000 | K132: 工程成本-在安装设备 | L132: 借 | M132: 40.82 | N132: 3 | O132: 500058163 | P132: 接续金具-接地线夹,JDL-50-240 | Q132: 付 | R132: 6.94 | S132: 0
A133: 2018-03-24 | B133: 4900038161 | C133: 发货 | D133: 23 | E133: 对常州金坛区10kV岸头线岸头亚明机械厂配发货 | F133: 18104117A1D900A1321000 | G133: 10kV（20kV）配电装置 | H133: 18104117A1D9 | I133: 常州金坛区10kV东明线城东界沟站配变改造工程 | J133: 9201030000 | K133: 工程成本-在安装设备 | L133: 借 | M133: 44.31 | N133: 3 | O133: 500052569 | P133: 设备线夹-铜铝过渡设备线夹,SYG-150/20A | Q133: 付 | R133: 7.53 | S133: 0
A134: 2018-03-24 | B134: 4900038161 | C134: 发货 | D134: 23 | E134: 对常州金坛区10kV岸头线岸头亚明机械厂配发货 | F134: 18104117A1D900A1321000 | G134: 10kV（20kV）配电装置 | H134: 18104117A1D9 | I134: 常州金坛区10kV东明线城东界沟站配变改造工程 | J134: 9201030000 | K134: 工程成本-在安装设备 | L134: 借 | M134: 46.58 | N134: 32 | O134: 500014806 | P134: 布电线,BV,铜,4,1 | Q134: 米 | R134: 7.92 | S134: 0
A135: 2018-03-24 | B135: 4900038161 | C135: 发货 | D135: 23 | E135: 对常州金坛区10kV岸头线岸头亚明机械厂配发货 | F135: 18104117A1D900A1321000 | G135: 10kV（20kV）配电装置 | H135: 18104117A1D9 | I135: 常州金坛区10kV东明线城东界沟站配变改造工程 | J135: 9201030000 | K135: 工程成本-在安装设备 | L135: 借 | M135: 213.38 | N135: 3 | O135: 500027151 | P135: 交流避雷器,AC10kV,17kV,硅橡胶,50kV,不带间隙 | Q135: 台 | R135: 36.27 | S135: 0
A136: 2018-03-24 | B136: 4900038161 | C136: 发货 | D136: 23 | E136: 对常州金坛区10kV岸头线岸头亚明机械厂配发货 | F136: 18104117A1DC00A1321000 | G136: 10kV（20kV）配电装置 | H136: 18104117A1DC | I136: 常州金坛区10kV岸头线岸头亚明机械厂配变改造工程 | J136: 9201030000 | K136: 工程成本-在安装设备 | L136: 借 | M136: 22.86 | N136: 0.005 | O136: 500065920 | P136: 钢绞线,1×7-7.8-1270-B,35,镀锌 | Q136: 吨 | R136: 3.89 | S136: 0
A137: 2018-03-24 | B137: 4900038161 | C137: 发货 | D137: 23 | E137: 对常州金坛区10kV岸头线岸头亚明机械厂配发货 | F137: 18104117A1DC00A1321000 | G137: 10kV（20kV）配电装置 | H137: 18104117A1DC | I137: 常州金坛区10kV岸头线岸头亚明机械厂配变改造工程 | J137: 9201030000 | K137: 工程成本-在安装设备 | L137: 借 | M137: 30.51 | N137: 8 | O137: 500021863 | P137: 电缆接线端子,铜,50mm2,单孔 | Q137: 只 | R137: 5.19 | S137: 0
A138: 2018-03-24 | B138: 4900038161 | C138: 发货 | D138: 23 | E138: 对常州金坛区10kV岸头线岸头亚明机械厂配发货 | F138: 18104117A1D900A1321000 | G138: 10kV（20kV）配电装置 | H138: 18104117A1D9 | I138: 常州金坛区10kV东明线城东界沟站配变改造工程 | J138: 9201030000 | K138: 工程成本-在安装设备 | L138: 借 | M138: 9.52 | N138: 2 | O138: 500020515 | P138: 接续金具-并沟线夹,JBB-1 | Q138: 付 | R138: 1.62 | S138: 0
A139: 2018-03-24 | B139: 4900038161 | C139: 发货 | D139: 23 | E139: 对常州金坛区10kV岸头线岸头亚明机械厂配发货 | F139: 18104117A1D900A1321000 | G139: 10kV（20kV）配电装置 | H139: 18104117A1D9 | I139: 常州金坛区10kV东明线城东界沟站配变改造工程 | J139: 9201030000 | K139: 工程成本-在安装设备 | L139: 借 | M139: 106.8 | N139: 28 | O139: 500021863 | P139: 电缆接线端子,铜,50mm2,单孔 | Q139: 只 | R139: 18.16 | S139: 0
A140: 2018-03-24 | B140: 4900038161 | C140: 发货 | D140: 23 | E140: 对常州金坛区10kV岸头线岸头亚明机械厂配发货 | F140: 18104117A1D900A1321000 | G140: 10kV（20kV）配电装置 | H140: 18104117A1D9 | I140: 常州金坛区10kV东明线城东界沟站配变改造工程 | J140: 9201030000 | K140: 工程成本-在安装设备 | L140: 借 | M140: 149.04 | N140: 8 | O140: 500021869 | P140: 电缆接线端子,铜,240mm2,单孔 | Q140: 只 | R140: 25.34 | S140: 0
A141: 2018-03-24 | B141: 4900038161 | C141: 发货 | D141: 23 | E141: 对常州金坛区10kV岸头线岸头亚明机械厂配发货 | F141: 18104117A1D900A1321000 | G141: 10kV（20kV）配电装置 | H141: 18104117A1D9 | I141: 常州金坛区10kV东明线城东界沟站配变改造工程 | J141: 9201030000 | K141: 工程成本-在安装设备 | L141: 借 | M141: 275.07 | N141: 2 | O141: 500051152 | P141: 1kV电缆终端,4×240,户外终端,冷缩,铜 | Q141: 套 | R141: 46.76 | S141: 0
A142: 2018-03-24 | B142: 4900038161 | C142: 发货 | D142: 23 | E142: 对常州金坛区10kV岸头线岸头亚明机械厂配发货 | F142: 18104117A1D900A1321000 | G142: 10kV（20kV）配电装置 | H142: 18104117A1D9 | I142: 常州金坛区10kV东明线城东界沟站配变改造工程 | J142: 9201030000 | K142: 工程成本-在安装设备 | L142: 借 | M142: 1328.98 | N142: 0.25 | O142: 500010828 | P142: 槽钢,#10,Q345 | Q142: 千克 | R142: 225.93 | S142: 0
A143: 2018-03-24 | B143: 4900038161 | C143: 发货 | D143: 23 | E143: 对常州金坛区10kV岸头线岸头亚明机械厂配发货 | F143: 18104117A1D900A1310Z0001 | G143: 杆上配变 | H143: 18104117A1D9 | I143: 常州金坛区10kV东明线城东界沟站配变改造工程 | J143: 9201030000 | K143: 工程成本-在安装设备 | L143: 借 | M143: 5589.93 | N143: 0.016 | O143: 500108897 | P143: 低压电力电缆,YJV,铜,240,4芯,ZC,22,普通 | Q143: 千米 | R143: 950.29 | S143: 0
A144: 2018-03-24 | B144: 4900038161 | C144: 发货 | D144: 23 | E144: 对常州金坛区10kV岸头线岸头亚明机械厂配发货 | F144: 18104117A1D900A1310Z0001 | G144: 杆上配变 | H144: 18104117A1D9 | I144: 常州金坛区10kV东明线城东界沟站配变改造工程 | J144: 9201030000 | K144: 工程成本-在安装设备 | L144: 借 | M144: 916.67 | N144: 1 | O144: 500002150 | P144: 10kV三相隔离开关,630A,20kA,手动双柱立开式,不接地 | Q144: 组 | R144: 155.83 | S144: 0
A145: 2018-03-24 | B145: 4900038161 | C145: 发货 | D145: 23 | E145: 对常州金坛区10kV岸头线岸头亚明机械厂配发货 | F145: 18104117A1D900A1310Z0001 | G145: 杆上配变 | H145: 18104117A1D9 | I145: 常州金坛区10kV东明线城东界沟站配变改造工程 | J145: 9201030000 | K145: 工程成本-在安装设备 | L145: 借 | M145: 578.33 | N145: 3 | O145: 500007914 | P145: 高压熔断器,AC10kV,跌落式,100A | Q145: 只 | R145: 98.32 | S145: 0
A146: 2018-03-24 | B146: 4900038172 | C146: 发货 | D146: 24 | E146: 对常州金坛区10kV罗村线赤岗村2#变更换发货 | F146: 18104117A1DB00A1321000 | G146: 10kV（20kV）配电装置 | H146: 18104117A1DB | I146: 常州金坛区10kV罗村线赤岗村2#变更换工程 | J146: 9201030000 | K146: 工程成本-在安装设备 | L146: 借 | M146: 213.38 | N146: 3 | O146: 500027151 | P146: 交流避雷器,AC10kV,17kV,硅橡胶,50kV,不带间隙 | Q146: 台 | R146: 36.27 | S146: 0
A147: 2018-03-24 | B147: 4900038172 | C147: 发货 | D147: 24 | E147: 对常州金坛区10kV罗村线赤岗村2#变更换发货 | F147: 18104117A1DB00A1321000 | G147: 10kV（20kV）配电装置 | H147: 18104117A1DB | I147: 常州金坛区10kV罗村线赤岗村2#变更换工程 | J147: 9201030000 | K147: 工程成本-在安装设备 | L147: 借 | M147: 40.82 | N147: 3 | O147: 500058163 | P147: 接续金具-接地线夹,JDL-50-240 | Q147: 付 | R147: 6.94 | S147: 0
A148: 2018-03-24 | B148: 4900038172 | C148: 发货 | D148: 24 | E148: 对常州金坛区10kV罗村线赤岗村2#变更换发货 | F148: 18104117A1DB00A1321000 | G148: 10kV（20kV）配电装置 | H148: 18104117A1DB | I148: 常州金坛区10kV罗村线赤岗村2#变更换工程 | J148: 9201030000 | K148: 工程成本-在安装设备 | L148: 借 | M148: 22.86 | N148: 0.005 | O148: 500065920 | P148: 钢绞线,1×7-7.8-1270-B,35,镀锌 | Q148: 吨 | R148: 3.89 | S148: 0
A149: 2018-03-24 | B149: 4900038172 | C149: 发货 | D149: 24 | E149: 对常州金坛区10kV罗村线赤岗村2#变更换发货 | F149: 18104117A1DD00A1310Z0001 | G149: 杆上配变 | H149: 18104117A1DD | I149: 常州金坛区10kV罗村线洪村变更换工程 | J149: 9201030000 | K149: 工程成本-在安装设备 | L149: 借 | M149: 5589.93 | N149: 0.016 | O149: 500108897 | P149: 低压电力电缆,YJV,铜,240,4芯,ZC,22,普通 | Q149: 千米 | R149: 950.29 | S149: 0
A150: 2018-03-24 | B150: 4900038172 | C150: 发货 | D150: 24 | E150: 对常州金坛区10kV罗村线赤岗村2#变更换发货 | F150: 18104117A1DD00A1321000 | G150: 10kV（20kV）配电装置 | H150: 18104117A1DD | I150: 常州金坛区10kV罗村线洪村变更换工程 | J150: 9201030000 | K150: 工程成本-在安装设备 | L150: 借 | M150: 1328.98 | N150: 0.25 | O150: 500010828 | P150: 槽钢,#10,Q345 | Q150: 千克 | R150: 225.93 | S150: 0
A151: 2018-03-24 | B151: 4900038172 | C151: 发货 | D151: 24 | E151: 对常州金坛区10kV罗村线赤岗村2#变更换发货 | F151: 18104117A1DD00A1321000 | G151: 10kV（20kV）配电装置 | H151: 18104117A1DD | I151: 常州金坛区10kV罗村线洪村变更换工程 | J151: 9201030000 | K151: 工程成本-在安装设备 | L151: 借 | M151: 275.07 | N151: 2 | O151: 500051152 | P151: 1kV电缆终端,4×240,户外终端,冷缩,铜 | Q151: 套 | R151: 46.76 | S151: 0
A152: 2018-03-24 | B152: 4900038172 | C152: 发货 | D152: 24 | E152: 对常州金坛区10kV罗村线赤岗村2#变更换发货 | F152: 18104117A1DD00A1321000 | G152: 10kV（20kV）配电装置 | H152: 18104117A1DD | I152: 常州金坛区10kV罗村线洪村变更换工程 | J152: 9201030000 | K152: 工程成本-在安装设备 | L152: 借 | M152: 149.04 | N152: 8 | O152: 500021869 | P152: 电缆接线端子,铜,240mm2,单孔 | Q152: 只 | R152: 25.34 | S152: 0
A153: 2018-03-24 | B153: 4900038172 | C153: 发货 | D153: 24 | E153: 对常州金坛区10kV罗村线赤岗村2#变更换发货 | F153: 18104117A1DD00A1321000 | G153: 10kV（20kV）配电装置 | H153: 18104117A1DD | I153: 常州金坛区10kV罗村线洪村变更换工程 | J153: 9201030000 | K153: 工程成本-在安装设备 | L153: 借 | M153: 106.8 | N153: 28 | O153: 500021863 | P153: 电缆接线端子,铜,50mm2,单孔 | Q153: 只 | R153: 18.16 | S153: 0
A154: 2018-03-24 | B154: 4900038172 | C154: 发货 | D154: 24 | E154: 对常州金坛区10kV罗村线赤岗村2#变更换发货 | F154: 18104117A1DD00A1321000 | G154: 10kV（20kV）配电装置 | H154: 18104117A1DD | I154: 常州金坛区10kV罗村线洪村变更换工程 | J154: 9201030000 | K154: 工程成本-在安装设备 | L154: 借 | M154: 9.52 | N154: 2 | O154: 500020515 | P154: 接续金具-并沟线夹,JBB-1 | Q154: 付 | R154: 1.62 | S154: 0
A155: 2018-03-24 | B155: 4900038172 | C155: 发货 | D155: 24 | E155: 对常州金坛区10kV罗村线赤岗村2#变更换发货 | F155: 18104117A1DD00A1321000 | G155: 10kV（20kV）配电装置 | H155: 18104117A1DD | I155: 常州金坛区10kV罗村线洪村变更换工程 | J155: 9201030000 | K155: 工程成本-在安装设备 | L155: 借 | M155: 213.38 | N155: 3 | O155: 500027151 | P155: 交流避雷器,AC10kV,17kV,硅橡胶,50kV,不带间隙 | Q155: 台 | R155: 36.27 | S155: 0
A156: 2018-03-24 | B156: 4900038172 | C156: 发货 | D156: 24 | E156: 对常州金坛区10kV罗村线赤岗村2#变更换发货 | F156: 18104117A1DD00A1321000 | G156: 10kV（20kV）配电装置 | H156: 18104117A1DD | I156: 常州金坛区10kV罗村线洪村变更换工程 | J156: 9201030000 | K156: 工程成本-在安装设备 | L156: 借 | M156: 40.82 | N156: 3 | O156: 500058163 | P156: 接续金具-接地线夹,JDL-50-240 | Q156: 付 | R156: 6.94 | S156: 0
A157: 2018-03-24 | B157: 4900038172 | C157: 发货 | D157: 24 | E157: 对常州金坛区10kV罗村线赤岗村2#变更换发货 | F157: 18104117A1DD00A1321000 | G157: 10kV（20kV）配电装置 | H157: 18104117A1DD | I157: 常州金坛区10kV罗村线洪村变更换工程 | J157: 9201030000 | K157: 工程成本-在安装设备 | L157: 借 | M157: 22.86 | N157: 0.005 | O157: 500065920 | P157: 钢绞线,1×7-7.8-1270-B,35,镀锌 | Q157: 吨 | R157: 3.89 | S157: 0
A158: 2018-03-24 | B158: 4900038172 | C158: 发货 | D158: 24 | E158: 对常州金坛区10kV罗村线赤岗村2#变更换发货 | F158: 18104117A1DD00A1310Z0001 | G158: 杆上配变 | H158: 18104117A1DD | I158: 常州金坛区10kV罗村线洪村变更换工程 | J158: 9201030000 | K158: 工程成本-在安装设备 | L158: 借 | M158: 916.67 | N158: 1 | O158: 500002150 | P158: 10kV三相隔离开关,630A,20kA,手动双柱立开式,不接地 | Q158: 组 | R158: 155.83 | S158: 0
A159: 2018-03-24 | B159: 4900038172 | C159: 发货 | D159: 24 | E159: 对常州金坛区10kV罗村线赤岗村2#变更换发货 | F159: 18104117A1DD00A1310Z0001 | G159: 杆上配变 | H159: 18104117A1DD | I159: 常州金坛区10kV罗村线洪村变更换工程 | J159: 9201030000 | K159: 工程成本-在安装设备 | L159: 借 | M159: 578.33 | N159: 3 | O159: 500007914 | P159: 高压熔断器,AC10kV,跌落式,100A | Q159: 只 | R159: 98.32 | S159: 0
A160: 2018-03-24 | B160: 4900038172 | C160: 发货 | D160: 24 | E160: 对常州金坛区10kV罗村线赤岗村2#变更换发货 | F160: 18104117A1D600A1310Z0001 | G160: 杆上配变 | H160: 18104117A1D6 | I160: 常州金坛区10kV茅东线西阳1#变更换工程 | J160: 9201030000 | K160: 工程成本-在安装设备 | L160: 借 | M160: 5589.93 | N160: 0.016 | O160: 500108897 | P160: 低压电力电缆,YJV,铜,240,4芯,ZC,22,普通 | Q160: 千米 | R160: 950.29 | S160: 0
A161: 2018-03-24 | B161: 4900038172 | C161: 发货 | D161: 24 | E161: 对常州金坛区10kV罗村线赤岗村2#变更换发货 | F161: 18104117A1DB00A1310Z0001 | G161: 杆上配变 | H161: 18104117A1DB | I161: 常州金坛区10kV罗村线赤岗村2#变更换工程 | J161: 9201030000 | K161: 工程成本-在安装设备 | L161: 借 | M161: 578.33 | N161: 3 | O161: 500007914 | P161: 高压熔断器,AC10kV,跌落式,100A | Q161: 只 | R161: 98.32 | S161: 0
A162: 2018-03-24 | B162: 4900038172 | C162: 发货 | D162: 24 | E162: 对常州金坛区10kV罗村线赤岗村2#变更换发货 | F162: 18104117A1DB00A1310Z0001 | G162: 杆上配变 | H162: 18104117A1DB | I162: 常州金坛区10kV罗村线赤岗村2#变更换工程 | J162: 9201030000 | K162: 工程成本-在安装设备 | L162: 借 | M162: 916.67 | N162: 1 | O162: 500002150 | P162: 10kV三相隔离开关,630A,20kA,手动双柱立开式,不接地 | Q162: 组 | R162: 155.83 | S162: 0
A163: 2018-03-24 | B163: 4900038172 | C163: 发货 | D163: 24 | E163: 对常州金坛区10kV罗村线赤岗村2#变更换发货 | F163: 18104117A1D600A1310Z0001 | G163: 杆上配变 | H163: 18104117A1D6 | I163: 常州金坛区10kV茅东线西阳1#变更换工程 | J163: 9201030000 | K163: 工程成本-在安装设备 | L163: 借 | M163: 916.67 | N163: 1 | O163: 500002150 | P163: 10kV三相隔离开关,630A,20kA,手动双柱立开式,不接地 | Q163: 组 | R163: 155.83 | S163: 0
A164: 2018-03-24 | B164: 4900038172 | C164: 发货 | D164: 24 | E164: 对常州金坛区10kV罗村线赤岗村2#变更换发货 | F164: 18104117A1D600A1321000 | G164: 10kV（20kV）配电装置 | H164: 18104117A1D6 | I164: 常州金坛区10kV茅东线西阳1#变更换工程 | J164: 9201030000 | K164: 工程成本-在安装设备 | L164: 借 | M164: 9.52 | N164: 2 | O164: 500020515 | P164: 接续金具-并沟线夹,JBB-1 | Q164: 付 | R164: 1.62 | S164: 0
A165: 2018-03-24 | B165: 4900038172 | C165: 发货 | D165: 24 | E165: 对常州金坛区10kV罗村线赤岗村2#变更换发货 | F165: 18104117A1D600A1321000 | G165: 10kV（20kV）配电装置 | H165: 18104117A1D6 | I165: 常州金坛区10kV茅东线西阳1#变更换工程 | J165: 9201030000 | K165: 工程成本-在安装设备 | L165: 借 | M165: 106.8 | N165: 28 | O165: 500021863 | P165: 电缆接线端子,铜,50mm2,单孔 | Q165: 只 | R165: 18.16 | S165: 0
A166: 2018-03-24 | B166: 4900038172 | C166: 发货 | D166: 24 | E166: 对常州金坛区10kV罗村线赤岗村2#变更换发货 | F166: 18104117A1D600A1321000 | G166: 10kV（20kV）配电装置 | H166: 18104117A1D6 | I166: 常州金坛区10kV茅东线西阳1#变更换工程 | J166: 9201030000 | K166: 工程成本-在安装设备 | L166: 借 | M166: 149.04 | N166: 8 | O166: 500021869 | P166: 电缆接线端子,铜,240mm2,单孔 | Q166: 只 | R166: 25.34 | S166: 0
A167: 2018-03-24 | B167: 4900038172 | C167: 发货 | D167: 24 | E167: 对常州金坛区10kV罗村线赤岗村2#变更换发货 | F167: 18104117A1D600A1321000 | G167: 10kV（20kV）配电装置 | H167: 18104117A1D6 | I167: 常州金坛区10kV茅东线西阳1#变更换工程 | J167: 9201030000 | K167: 工程成本-在安装设备 | L167: 借 | M167: 275.07 | N167: 2 | O167: 500051152 | P167: 1kV电缆终端,4×240,户外终端,冷缩,铜 | Q167: 套 | R167: 46.76 | S167: 0
A168: 2018-03-24 | B168: 4900038172 | C168: 发货 | D168: 24 | E168: 对常州金坛区10kV罗村线赤岗村2#变更换发货 | F168: 18104117A1D600A1321000 | G168: 10kV（20kV）配电装置 | H168: 18104117A1D6 | I168: 常州金坛区10kV茅东线西阳1#变更换工程 | J168: 9201030000 | K168: 工程成本-在安装设备 | L168: 借 | M168: 1328.97 | N168: 0.25 | O168: 500010828 | P168: 槽钢,#10,Q345 | Q168: 千克 | R168: 225.92 | S168: 0
A169: 2018-03-24 | B169: 4900038172 | C169: 发货 | D169: 24 | E169: 对常州金坛区10kV罗村线赤岗村2#变更换发货 | F169: 18104117A1DB00A1310Z0001 | G169: 杆上配变 | H169: 18104117A1DB | I169: 常州金坛区10kV罗村线赤岗村2#变更换工程 | J169: 9201030000 | K169: 工程成本-在安装设备 | L169: 借 | M169: 5589.93 | N169: 0.016 | O169: 500108897 | P169: 低压电力电缆,YJV,铜,240,4芯,ZC,22,普通 | Q169: 千米 | R169: 950.29 | S169: 0
A170: 2018-03-24 | B170: 4900038172 | C170: 发货 | D170: 24 | E170: 对常州金坛区10kV罗村线赤岗村2#变更换发货 | F170: 18104117A1DB00A1321000 | G170: 10kV（20kV）配电装置 | H170: 18104117A1DB | I170: 常州金坛区10kV罗村线赤岗村2#变更换工程 | J170: 9201030000 | K170: 工程成本-在安装设备 | L170: 借 | M170: 1328.97 | N170: 0.25 | O170: 500010828 | P170: 槽钢,#10,Q345 | Q170: 千克 | R170: 225.92 | S170: 0
A171: 2018-03-24 | B171: 4900038172 | C171: 发货 | D171: 24 | E171: 对常州金坛区10kV罗村线赤岗村2#变更换发货 | F171: 18104117A1DB00A1321000 | G171: 10kV（20kV）配电装置 | H171: 18104117A1DB | I171: 常州金坛区10kV罗村线赤岗村2#变更换工程 | J171: 9201030000 | K171: 工程成本-在安装设备 | L171: 借 | M171: 275.07 | N171: 2 | O171: 500051152 | P171: 1kV电缆终端,4×240,户外终端,冷缩,铜 | Q171: 套 | R171: 46.76 | S171: 0
A172: 2018-03-24 | B172: 4900038172 | C172: 发货 | D172: 24 | E172: 对常州金坛区10kV罗村线赤岗村2#变更换发货 | F172: 18104117A1DB00A1321000 | G172: 10kV（20kV）配电装置 | H172: 18104117A1DB | I172: 常州金坛区10kV罗村线赤岗村2#变更换工程 | J172: 9201030000 | K172: 工程成本-在安装设备 | L172: 借 | M172: 149.04 | N172: 8 | O172: 500021869 | P172: 电缆接线端子,铜,240mm2,单孔 | Q172: 只 | R172: 25.34 | S172: 0
A173: 2018-03-24 | B173: 4900038172 | C173: 发货 | D173: 24 | E173: 对常州金坛区10kV罗村线赤岗村2#变更换发货 | F173: 18104117A1DB00A1321000 | G173: 10kV（20kV）配电装置 | H173: 18104117A1DB | I173: 常州金坛区10kV罗村线赤岗村2#变更换工程 | J173: 9201030000 | K173: 工程成本-在安装设备 | L173: 借 | M173: 106.8 | N173: 28 | O173: 500021863 | P173: 电缆接线端子,铜,50mm2,单孔 | Q173: 只 | R173: 18.16 | S173: 0
A174: 2018-03-24 | B174: 4900038172 | C174: 发货 | D174: 24 | E174: 对常州金坛区10kV罗村线赤岗村2#变更换发货 | F174: 18104117A1DB00A1321000 | G174: 10kV（20kV）配电装置 | H174: 18104117A1DB | I174: 常州金坛区10kV罗村线赤岗村2#变更换工程 | J174: 9201030000 | K174: 工程成本-在安装设备 | L174: 借 | M174: 9.52 | N174: 2 | O174: 500020515 | P174: 接续金具-并沟线夹,JBB-1 | Q174: 付 | R174: 1.62 | S174: 0
A175: 2018-03-24 | B175: 4900038180 | C175: 发货 | D175: 25 | E175: 对常州金坛区10kV民丰线毛白塘支五家站配发货 | F175: 18104117A1D800A1310Z0001 | G175: 杆上配变 | H175: 18104117A1D8 | I175: 常州金坛区10kV尧塘线尧塘集镇4#变配变改造工程 | J175: 9201030000 | K175: 工程成本-在安装设备 | L175: 借 | M175: 2794.97 | N175: 0.008 | O175: 500108897 | P175: 低压电力电缆,YJV,铜,240,4芯,ZC,22,普通 | Q175: 千米 | R175: 475.14 | S175: 0
A176: 2018-03-24 | B176: 4900038180 | C176: 发货 | D176: 25 | E176: 对常州金坛区10kV民丰线毛白塘支五家站配发货 | F176: 18104117A1D800A1321000 | G176: 10kV（20kV）配电装置 | H176: 18104117A1D8 | I176: 常州金坛区10kV尧塘线尧塘集镇4#变配变改造工程 | J176: 9201030000 | K176: 工程成本-在安装设备 | L176: 借 | M176: 1328.97 | N176: 0.25 | O176: 500010828 | P176: 槽钢,#10,Q345 | Q176: 千克 | R176: 225.92 | S176: 0
A177: 2018-03-24 | B177: 4900038180 | C177: 发货 | D177: 25 | E177: 对常州金坛区10kV民丰线毛白塘支五家站配发货 | F177: 18104117A1D800A1321000 | G177: 10kV（20kV）配电装置 | H177: 18104117A1D8 | I177: 常州金坛区10kV尧塘线尧塘集镇4#变配变改造工程 | J177: 9201030000 | K177: 工程成本-在安装设备 | L177: 借 | M177: 137.54 | N177: 1 | O177: 500051152 | P177: 1kV电缆终端,4×240,户外终端,冷缩,铜 | Q177: 套 | R177: 23.38 | S177: 0
A178: 2018-03-24 | B178: 4900038180 | C178: 发货 | D178: 25 | E178: 对常州金坛区10kV民丰线毛白塘支五家站配发货 | F178: 18104117A1D800A1321000 | G178: 10kV（20kV）配电装置 | H178: 18104117A1D8 | I178: 常州金坛区10kV尧塘线尧塘集镇4#变配变改造工程 | J178: 9201030000 | K178: 工程成本-在安装设备 | L178: 借 | M178: 74.52 | N178: 4 | O178: 500021869 | P178: 电缆接线端子,铜,240mm2,单孔 | Q178: 只 | R178: 12.67 | S178: 0
A179: 2018-03-24 | B179: 4900038180 | C179: 发货 | D179: 25 | E179: 对常州金坛区10kV民丰线毛白塘支五家站配发货 | F179: 18104117A1D800A1321000 | G179: 10kV（20kV）配电装置 | H179: 18104117A1D8 | I179: 常州金坛区10kV尧塘线尧塘集镇4#变配变改造工程 | J179: 9201030000 | K179: 工程成本-在安装设备 | L179: 借 | M179: 45.77 | N179: 12 | O179: 500021863 | P179: 电缆接线端子,铜,50mm2,单孔 | Q179: 只 | R179: 7.78 | S179: 0
A180: 2018-03-24 | B180: 4900038180 | C180: 发货 | D180: 25 | E180: 对常州金坛区10kV民丰线毛白塘支五家站配发货 | F180: 18104117A1DE00A1310Z0001 | G180: 杆上配变 | H180: 18104117A1DE | I180: 常州金坛区10kV民丰线毛白塘支五家站配变改造工程 | J180: 9201030000 | K180: 工程成本-在安装设备 | L180: 借 | M180: 578.33 | N180: 3 | O180: 500007914 | P180: 高压熔断器,AC10kV,跌落式,100A | Q180: 只 | R180: 98.32 | S180: 0
A181: 2018-03-24 | B181: 4900038180 | C181: 发货 | D181: 25 | E181: 对常州金坛区10kV民丰线毛白塘支五家站配发货 | F181: 18104117A1DE00A1310Z0001 | G181: 杆上配变 | H181: 18104117A1DE | I181: 常州金坛区10kV民丰线毛白塘支五家站配变改造工程 | J181: 9201030000 | K181: 工程成本-在安装设备 | L181: 借 | M181: 916.67 | N181: 1 | O181: 500002150 | P181: 10kV三相隔离开关,630A,20kA,手动双柱立开式,不接地 | Q181: 组 | R181: 155.83 | S181: 0
A182: 2018-03-24 | B182: 4900038180 | C182: 发货 | D182: 25 | E182: 对常州金坛区10kV民丰线毛白塘支五家站配发货 | F182: 18104117A1DE00A1310Z0001 | G182: 杆上配变 | H182: 18104117A1DE | I182: 常州金坛区10kV民丰线毛白塘支五家站配变改造工程 | J182: 9201030000 | K182: 工程成本-在安装设备 | L182: 借 | M182: 5589.93 | N182: 0.016 | O182: 500108897 | P182: 低压电力电缆,YJV,铜,240,4芯,ZC,22,普通 | Q182: 千米 | R182: 950.29 | S182: 0
A183: 2018-03-24 | B183: 4900038180 | C183: 发货 | D183: 25 | E183: 对常州金坛区10kV民丰线毛白塘支五家站配发货 | F183: 18104117A1DE00A1321000 | G183: 10kV（20kV）配电装置 | H183: 18104117A1DE | I183: 常州金坛区10kV民丰线毛白塘支五家站配变改造工程 | J183: 9201030000 | K183: 工程成本-在安装设备 | L183: 借 | M183: 1328.98 | N183: 0.25 | O183: 500010828 | P183: 槽钢,#10,Q345 | Q183: 千克 | R183: 225.93 | S183: 0
A184: 2018-03-24 | B184: 4900038180 | C184: 发货 | D184: 25 | E184: 对常州金坛区10kV民丰线毛白塘支五家站配发货 | F184: 18104117A1DE00A1321000 | G184: 10kV（20kV）配电装置 | H184: 18104117A1DE | I184: 常州金坛区10kV民丰线毛白塘支五家站配变改造工程 | J184: 9201030000 | K184: 工程成本-在安装设备 | L184: 借 | M184: 275.07 | N184: 2 | O184: 500051152 | P184: 1kV电缆终端,4×240,户外终端,冷缩,铜 | Q184: 套 | R184: 46.76 | S184: 0
A185: 2018-03-24 | B185: 4900038180 | C185: 发货 | D185: 25 | E185: 对常州金坛区10kV民丰线毛白塘支五家站配发货 | F185: 18104117A1DE00A1321000 | G185: 10kV（20kV）配电装置 | H185: 18104117A1DE | I185: 常州金坛区10kV民丰线毛白塘支五家站配变改造工程 | J185: 9201030000 | K185: 工程成本-在安装设备 | L185: 借 | M185: 149.04 | N185: 8 | O185: 500021869 | P185: 电缆接线端子,铜,240mm2,单孔 | Q185: 只 | R185: 25.34 | S185: 0
A186: 2018-03-24 | B186: 4900038180 | C186: 发货 | D186: 25 | E186: 对常州金坛区10kV民丰线毛白塘支五家站配发货 | F186: 18104117A1DE00A1321000 | G186: 10kV（20kV）配电装置 | H186: 18104117A1DE | I186: 常州金坛区10kV民丰线毛白塘支五家站配变改造工程 | J186: 9201030000 | K186: 工程成本-在安装设备 | L186: 借 | M186: 106.8 | N186: 28 | O186: 500021863 | P186: 电缆接线端子,铜,50mm2,单孔 | Q186: 只 | R186: 18.16 | S186: 0
A187: 2018-03-24 | B187: 4900038180 | C187: 发货 | D187: 25 | E187: 对常州金坛区10kV民丰线毛白塘支五家站配发货 | F187: 18104117A1DE00A1321000 | G187: 10kV（20kV）配电装置 | H187: 18104117A1DE | I187: 常州金坛区10kV民丰线毛白塘支五家站配变改造工程 | J187: 9201030000 | K187: 工程成本-在安装设备 | L187: 借 | M187: 9.52 | N187: 2 | O187: 500020515 | P187: 接续金具-并沟线夹,JBB-1 | Q187: 付 | R187: 1.62 | S187: 0
A188: 2018-03-24 | B188: 4900038180 | C188: 发货 | D188: 25 | E188: 对常州金坛区10kV民丰线毛白塘支五家站配发货 | F188: 18104117A1DE00A1370Z0002 | G188: 中压架空线路 | H188: 18104117A1DE | I188: 常州金坛区10kV民丰线毛白塘支五家站配变改造工程 | J188: 9201030000 | K188: 工程成本-在安装设备 | L188: 借 | M188: 150.42 | N188: 0.018 | O188: 500014661 | P188: 架空绝缘导线,AC10kV,JKLYJ,150 | Q188: 千米 | R188: 25.57 | S188: 0
A189: 2018-03-24 | B189: 4900038180 | C189: 发货 | D189: 25 | E189: 对常州金坛区10kV民丰线毛白塘支五家站配发货 | F189: 18104117A1DE00A1321000 | G189: 10kV（20kV）配电装置 | H189: 18104117A1DE | I189: 常州金坛区10kV民丰线毛白塘支五家站配变改造工程 | J189: 9201030000 | K189: 工程成本-在安装设备 | L189: 借 | M189: 22.86 | N189: 0.005 | O189: 500065920 | P189: 钢绞线,1×7-7.8-1270-B,35,镀锌 | Q189: 吨 | R189: 3.89 | S189: 0
A190: 2018-03-24 | B190: 4900038180 | C190: 发货 | D190: 25 | E190: 对常州金坛区10kV民丰线毛白塘支五家站配发货 | F190: 18104117A1DF00A1321000 | G190: 10kV（20kV）配电装置 | H190: 18104117A1DF | I190: 常州金坛区10kV思模线天赐园小区1#、3#箱变改造工程 | J190: 9201030000 | K190: 工程成本-在安装设备 | L190: 借 | M190: 45.77 | N190: 12 | O190: 500021863 | P190: 电缆接线端子,铜,50mm2,单孔 | Q190: 只 | R190: 7.78 | S190: 0
A191: 2018-03-24 | B191: 4900038180 | C191: 发货 | D191: 25 | E191: 对常州金坛区10kV民丰线毛白塘支五家站配发货 | F191: 18104117A1DE00A1321000 | G191: 10kV（20kV）配电装置 | H191: 18104117A1DE | I191: 常州金坛区10kV民丰线毛白塘支五家站配变改造工程 | J191: 9201030000 | K191: 工程成本-在安装设备 | L191: 借 | M191: 59.51 | N191: 3 | O191: 500020770 | P191: T型线夹-T型线夹,TY-150/20 | Q191: 付 | R191: 10.12 | S191: 0
A192: 2018-03-24 | B192: 4900038180 | C192: 发货 | D192: 25 | E192: 对常州金坛区10kV民丰线毛白塘支五家站配发货 | F192: 18104117A1DE00A1321000 | G192: 10kV（20kV）配电装置 | H192: 18104117A1DE | I192: 常州金坛区10kV民丰线毛白塘支五家站配变改造工程 | J192: 9201030000 | K192: 工程成本-在安装设备 | L192: 借 | M192: 40.82 | N192: 3 | O192: 500058163 | P192: 接续金具-接地线夹,JDL-50-240 | Q192: 付 | R192: 6.94 | S192: 0
A193: 2018-03-24 | B193: 4900038180 | C193: 发货 | D193: 25 | E193: 对常州金坛区10kV民丰线毛白塘支五家站配发货 | F193: 18104117A1DE00A1321000 | G193: 10kV（20kV）配电装置 | H193: 18104117A1DE | I193: 常州金坛区10kV民丰线毛白塘支五家站配变改造工程 | J193: 9201030000 | K193: 工程成本-在安装设备 | L193: 借 | M193: 44.31 | N193: 3 | O193: 500052569 | P193: 设备线夹-铜铝过渡设备线夹,SYG-150/20A | Q193: 付 | R193: 7.53 | S193: 0
A194: 2018-03-24 | B194: 4900038180 | C194: 发货 | D194: 25 | E194: 对常州金坛区10kV民丰线毛白塘支五家站配发货 | F194: 18104117A1DA00A1321000 | G194: 10kV（20kV）配电装置 | H194: 18104117A1DA | I194: 常州金坛区10kV愚池线愚池2#箱变改造工程 | J194: 9201030000 | K194: 工程成本-在安装设备 | L194: 借 | M194: 22.89 | N194: 6 | O194: 500021863 | P194: 电缆接线端子,铜,50mm2,单孔 | Q194: 只 | R194: 3.89 | S194: 0
A195: 2018-03-24 | B195: 4900038180 | C195: 发货 | D195: 25 | E195: 对常州金坛区10kV民丰线毛白塘支五家站配发货 | F195: 18104117A1DE00A1321000 | G195: 10kV（20kV）配电装置 | H195: 18104117A1DE | I195: 常州金坛区10kV民丰线毛白塘支五家站配变改造工程 | J195: 9201030000 | K195: 工程成本-在安装设备 | L195: 借 | M195: 43.67 | N195: 30 | O195: 500014806 | P195: 布电线,BV,铜,4,1 | Q195: 米 | R195: 7.42 | S195: 0
A196: 2018-03-24 | B196: 4900038180 | C196: 发货 | D196: 25 | E196: 对常州金坛区10kV民丰线毛白塘支五家站配发货 | F196: 18104117A1DE00A1321000 | G196: 10kV（20kV）配电装置 | H196: 18104117A1DE | I196: 常州金坛区10kV民丰线毛白塘支五家站配变改造工程 | J196: 9201030000 | K196: 工程成本-在安装设备 | L196: 借 | M196: 213.38 | N196: 3 | O196: 500027151 | P196: 交流避雷器,AC10kV,17kV,硅橡胶,50kV,不带间隙 | Q196: 台 | R196: 36.27 | S196: 0
A197: 2018-03-24 | B197: 4900038189 | C197: 发货 | D197: 26 | E197: 对常州金坛区10kV长兴线小木桥3#配变新发货 | F197: 18104117A1D500A1321000 | G197: 10kV（20kV）配电装置 | H197: 18104117A1D5 | I197: 常州金坛区10kV长兴线小木桥3#配变新增工程 | J197: 9201030000 | K197: 工程成本-在安装设备 | L197: 借 | M197: 149.04 | N197: 8 | O197: 500021869 | P197: 电缆接线端子,铜,240mm2,单孔 | Q197: 只 | R197: 25.34 | S197: 0
A198: 2018-03-24 | B198: 4900038189 | C198: 发货 | D198: 26 | E198: 对常州金坛区10kV长兴线小木桥3#配变新发货 | F198: 18104117A1D500A1321000 | G198: 10kV（20kV）配电装置 | H198: 18104117A1D5 | I198: 常州金坛区10kV长兴线小木桥3#配变新增工程 | J198: 9201030000 | K198: 工程成本-在安装设备 | L198: 借 | M198: 275.07 | N198: 2 | O198: 500051152 | P198: 1kV电缆终端,4×240,户外终端,冷缩,铜 | Q198: 套 | R198: 46.76 | S198: 0
A199: 2018-03-24 | B199: 4900038189 | C199: 发货 | D199: 26 | E199: 对常州金坛区10kV长兴线小木桥3#配变新发货 | F199: 18104117A1D500A1321000 | G199: 10kV（20kV）配电装置 | H199: 18104117A1D5 | I199: 常州金坛区10kV长兴线小木桥3#配变新增工程 | J199: 9201030000 | K199: 工程成本-在安装设备 | L199: 借 | M199: 1133.33 | N199: 1 | O199: 500003780 | P199: 10kV三相隔离开关,1250A,20kA,手动双柱立开式,不接地 | Q199: 组 | R199: 192.67 | S199: 0
A200: 2018-03-24 | B200: 4900038189 | C200: 发货 | D200: 26 | E200: 对常州金坛区10kV长兴线小木桥3#配变新发货 | F200: 18104117A1D500A1321000 | G200: 10kV（20kV）配电装置 | H200: 18104117A1D5 | I200: 常州金坛区10kV长兴线小木桥3#配变新增工程 | J200: 9201030000 | K200: 工程成本-在安装设备 | L200: 借 | M200: 106.8 | N200: 28 | O200: 500021863 | P200: 电缆接线端子,铜,50mm2,单孔 | Q200: 只 | R200: 18.16 | S200: 0
... 288 more rows
